{"text_format":"1","workbook":"xlsx","n_sheets":23,"sheets":["Toelichting","Lijsten","Podia opgaven","Rep 1","Rep 2","Rep 3","Rep 4","Rep 5","Rep 6","Rep 7","Rep 8","Rep 9","Rep 10","Rep 11","Rep 12","Rep 13","Rep 14","Rep 15","Rep 16","Rep 17","Rep 18","Rep 19","Rep 20"],"not_rendered":{"charts":0,"images":1,"macros":1,"external_links":0,"defined_names":0,"comments":0,"pivot_tables":0},"unopened":[],"bounds":{"document_bytes":16777216,"sheet_cells":100000,"rows_first":2000,"rows_last":500,"rows_between":2000,"halvings":0,"cell_chars":16384,"cell_head_chars":4096},"cells_cut":0,"cells_raw":0,"read":"whole","date_system":"1900"}

{"sheet":"Toelichting","index":0,"n_rows":45,"n_cols":12,"rows_kept":45,"cut":false,"hidden":true,"merged":[[45,2,45,3],[35,7,35,8],[36,2,36,3],[36,7,36,8],[37,2,37,3],[38,2,38,3],[39,2,39,3],[35,3,35,4],[40,2,40,3],[41,2,41,3],[42,2,42,3],[43,2,43,3],[44,2,44,3],[27,2,27,3],[28,2,28,3],[29,2,29,3],[30,2,30,3],[31,2,31,3],[26,2,26,3],[23,3,23,4],[23,7,23,8],[24,2,24,3],[24,7,24,8],[25,2,25,3]]}
["Toelichting bij Excel sheet ivm opgave podia voorstellingen."]
[]
["Kolom nummer 1:","Datum volgens formule dd-mm-yyyy  invullen"]
["Kolom nummer 2","Naam uitvoerende(n). De naam volledig uitschrijven. Als er sprake is van een evenement, voorstelling, festival waaraan meerdere uitvoerenden hebben meegewerkt, dan de gegevens invullen zoals in VOORBEELD 1 en 2. Dus op de regel van de datum en naam evenement vult u het totaal aan uitkoopsommen in voor alle uitvoerenden en de netto-recette. In de regels eronder vermeldt u in de kolom 'uitvoerenden' de naam van de uitvoerende en in de kolom 'uitkoopsom/garantiesom' de uitkoopsom/garantiesom van de desbetreffende uitvoerende."]
["Kolom nummer 3","Naam voorstelling, festival, evenement"]
["Kolom nummer 4","Genre. Vul de letter in van het desbetreffende genre.  Indien er sprake is van 'verhuur; vul dan de naam en adresgegevens in in kolom nummer 17"]
["Kolom nummer 5","naam zaal "]
["Kolom nummer 6","oppervlakte zaal. Alleen cijfers, zonder decimalen invullen"]
["Kolom nummer 7","Naam lokatie Evenement"]
["Kolom nummer 8","Plaats locatie Evenement"]
["Kolom nummer 9","Repertoire. Als u over repertoire van het optreden beschikt dan ontvangen wij dat graag. Vermeld u hier de naam van het TAB blad/sheet (bijvoorbeeld \"Rep.1\") en vul op het desbetreffende TAB blad/sheet de gegevens in. "]
["Kolom nummer 10","Naam impressariaat/ boekingskantoor"]
["Kolom nummer 11","Wel/ Geen Buma rechten voldaan aan impresariaat. 'wel' of 'geen' in."]
["Kolom nummer 12","Wel/ Geen Muziek in de voorstelling. Vul 'wel' of 'geen' in."]
["Kolom nummer 13","Uitkoopsom/ Gages/ Garantiesom (excl. btw) LET OP! alleen cijfers invullen ivm automatische berekeningen. Als er geen sprake is van een uitkoopsom of garantiesom, vult u dan 0,00 in."]
["Kolom nummer 14","Netto-recette (excl btw) LET OP! alleen cijfers invullen ivm automatische berekeningen. Als er geen sprake is van een uitkoopsom of garantiesom, vult u dan 0,00 in."]
["Kolom nummer 15","Vergoedings percentage (indien nb in te vullen door Buma) LET OP! alleen cijfers invullen ivm automatische berekeningen. Als er sprake is geweest van een gratis voorstelling en de uitvoerenden geen vergoeding hebben ontvangen, vult u dan in deze kolom 0 in."]
["Kolom nummer 16","Verschuldigd. Aan de hand van de ingevulde gegevens, staat hier het verschuldigde bedrag."]
["Kolom nummer 17","Vraag/Opmerking; Deze kolom kunt u gebruiken als u een opmerking of vraag heeft."]
["Kolom nummer 18","entreeprijs"]
[]
[]
["VOORBEELD 1"]
["OPGAVE","naam","plaatsnaam","periode van",null,"periode tot","datum opgave","Debiteurennummer"]
[null,"Discotheek PeeJee","Utrecht",null,"2009-10-01","2009-12-31","2009-03-03"]
[]
[1,2,3,null,4,9,13,14,15,16,17,18]
["2009-10-07",null,"Oktoberfeest",null,"p",null,4000,6000,7.0000000000000007E-2,420,null,15]
[null,"Thomas Berge",null,null,null,null,2000,null,null,0]
[null,"DJ Andries",null,null,null,"Zie rep 1",2000,null,null,0]
["2009-11-02","Nynke Laverman","nomade",null,"v",null,null,null,null,0,"Stichting ABC, Dorpsstraat 3, Amsterdam"]
[]
[]
[]
["VOORBEELD 2"]
["OPGAVE","naam","plaatsnaam","periode van",null,"periode tot","datum opgave","Debiteurennummer"]
[null,"Poppodium Pieterse","Rotterdam",null,"2010-01-01","2010-05-31","2010-06-10"]
[]
[1,2,3,null,4,9,13,14,15,16,17,18]
["2010-01-01",null,"Nieuwjaarsfeest",null,"p",null,8000,12199,7.0000000000000007E-2,853.93,null,16]
[null,"Chipz",null,null,null,"Zie rep 1",2000,null,null,0]
[null,"Nick & Simon",null,null,null,null,2000,null,null,0]
[null,"Wolter Kroes",null,null,null,"Zie rep 2",2000,null,null,0]
[null,"Kane",null,null,null,null,2000,null,null,0]
["2010-01-02","Wipneus en Pim","Toppop",null,"p",null,3500,1500,7.0000000000000007E-2,245,null,13.5]

{"sheet":"Lijsten","index":1,"n_rows":9,"n_cols":4,"rows_kept":9,"cut":false,"hidden":true,"merged":[]}
[]
[]
[]
[]
[]
[]
[]
[null,null,null,"Beschermd"]
[null,null,null,"Vrij"]

{"sheet":"Podia opgaven","index":2,"n_rows":389,"n_cols":26,"rows_kept":389,"cut":false,"hidden":false,"merged":[[1,4,1,5],[2,4,2,5]]}
[]
[null,null,"Datum","Naam","Periode van - periode tot",null,"Debiteur /\nrelatienummer"]
["HDR"]
[]
[]
[null,null,"Datum","Naam uitvoerende(n)","Naam concert / optreden","Naam locatie \nconcert / optreden","Naam zaal","Plaats locatie concert/optreden","Aantal bezoekers"," Netto gages","Netto recette","Repertoire","%","m2","Vraag/Opmerking","Verschuldigd","Entreeprijs","Minimum oppervlakteprijs","Hoogste van de (recette vs Uitkoopsom)*percentage","Hier wordt hoogste waarde getoont van de vergelijking (hoogste van recette/uitkoopsom) vs (minimumprijs op basis van m2)","Correctie kolom voor als het resultaat in Kolom U 0 is. Is dat het geval dan moet het resultaat uit Kolom S getoont worden.","Correctie kolom: Als in kolom P de tekst \"minimum\" vermeld staat dan moet het resultaat van kolom S worden getoont.","Correctie kolom: Als kolom P leeg is dan hoeft er geen vergoeding betaald te worden en moet als resultaat 0,00 worden gegeven.","Correctie kolom: Als in Kolom A de tekst ART staat dan moet de kolom gevuld worden met 0,00."]
[{"$f":"IF(#REF!&#REF!=\"\",\"\",IF(#REF!=\"\",\"ART\",IF(#REF!=\"\",\"EVT\",IF(#REF!&#REF!<>\"\",\"EVT\"))))","v":{"$error":"#REF!"}},{"$f":"1+B6","v":1},null,null,null,null,null,null,null,null,null,"cultureel",{"$f":"'Rep 1'!C3/100","v":{"$error":"#REF!"}},{"$f":"50/75*I7","v":0},null,{"$f":"X7","v":{"$error":"#REF!"}},null,{"$f":"SUM((((CEILING(I7,50)/50))-1)*3.32)+23.81","v":20.49},{"$f":"IF(J7>K7,J7,K7)*M7","v":{"$error":"#REF!"}},{"$f":"IF(S7>R7,S7,R7)","v":{"$error":"#REF!"}},{"$f":"IF(T7=0,R7,T7)","v":{"$error":"#REF!"}},{"$f":"IF(M7=\"minimum\",R7,U7)","v":{"$error":"#REF!"}},{"$f":"IF(M7=\"\",0,V7)","v":{"$error":"#REF!"}},{"$f":"IF('Podia opgaven'!C8=\"ART\",0,W7)","v":{"$error":"#REF!"}},null,{"$f":"IF('Rep 1'!$F$7=\"Waar\",\"Waar\",\"Onwaar\")","v":{"$error":"#N/A"}}]
[{"$f":"IF(C8&D8=\"\",\"\",IF(C8=\"\",\"ART\",IF(D8=\"\",\"EVT\",IF(C8&D8<>\"\",\"EVT\"))))","v":""},{"$f":"1+B7","v":2},null,null,null,null,null,null,null,null,null,null,{"$f":"'Rep 2'!$C$3/100","v":0},0,null,20.49,null,20.49,0,20.49,20.49,20.49,20.49,{"$f":"IF('Podia opgaven'!C9=\"ART\",0,W8)","v":20.49},null,{"$f":"IF('Rep 2'!$F$7=\"Waar\",\"Waar\",\"Onwaar\")","v":{"$error":"#N/A"}}]
["",3,null,null,null,null,null,null,null,null,null,null,{"$f":"'Rep 3'!#REF!/100","v":{"$error":"#REF!"}},0,null,{"$error":"#REF!"},null,20.49,{"$error":"#REF!"},{"$error":"#REF!"},{"$error":"#REF!"},{"$error":"#REF!"},{"$error":"#REF!"},{"$f":"IF('Podia opgaven'!C10=\"ART\",0,W9)","v":{"$error":"#REF!"}},null,{"$f":"IF('Rep 3'!$F$7=\"Waar\",\"Waar\",\"Onwaar\")","v":{"$error":"#N/A"}}]
["",4,null,null,null,null,null,null,null,null,null,null,{"$f":"'Rep 4'!#REF!/100","v":{"$error":"#REF!"}},0,null,{"$error":"#REF!"},null,20.49,{"$error":"#REF!"},{"$error":"#REF!"},{"$error":"#REF!"},{"$error":"#REF!"},{"$error":"#REF!"},{"$f":"IF('Podia opgaven'!C11=\"ART\",0,W10)","v":{"$error":"#REF!"}},null,{"$f":"IF('Rep 4'!$F$7=\"Waar\",\"Waar\",\"Onwaar\")","v":{"$error":"#N/A"}}]
["",5,null,null,null,null,null,null,null,null,null,null,{"$f":"'Rep 5'!#REF!/100","v":{"$error":"#REF!"}},0,null,{"$error":"#REF!"},null,20.49,{"$error":"#REF!"},{"$error":"#REF!"},{"$error":"#REF!"},{"$error":"#REF!"},{"$error":"#REF!"},{"$f":"IF('Podia opgaven'!C12=\"ART\",0,W11)","v":{"$error":"#REF!"}},null,{"$f":"IF('Rep 5'!$F$7=\"Waar\",\"Waar\",\"Onwaar\")","v":{"$error":"#N/A"}}]
["",6,null,null,null,null,null,null,null,null,null,null,{"$f":"'Rep 6'!#REF!/100","v":{"$error":"#REF!"}},0,null,{"$error":"#REF!"},null,20.49,{"$error":"#REF!"},{"$error":"#REF!"},{"$error":"#REF!"},{"$error":"#REF!"},{"$error":"#REF!"},{"$f":"IF('Podia opgaven'!C13=\"ART\",0,W12)","v":{"$error":"#REF!"}},null,{"$f":"IF('Rep 6'!$F$7=\"Waar\",\"Waar\",\"Onwaar\")","v":{"$error":"#N/A"}}]
["",7,null,null,null,null,null,null,null,null,null,null,{"$f":"'Rep 7'!$C$3/100","v":0},0,null,20.49,null,20.49,0,20.49,20.49,20.49,20.49,{"$f":"IF('Podia opgaven'!C14=\"ART\",0,W13)","v":20.49},null,{"$f":"IF('Rep 7'!$F$7=\"Waar\",\"Waar\",\"Onwaar\")","v":{"$error":"#N/A"}}]
["",8,null,null,null,null,null,null,null,null,null,null,{"$f":"'Rep 8'!$C$3/100","v":0},0,null,20.49,null,20.49,0,20.49,20.49,20.49,20.49,{"$f":"IF('Podia opgaven'!C15=\"ART\",0,W14)","v":20.49},null,{"$f":"IF('Rep 8'!$F$7=\"Waar\",\"Waar\",\"Onwaar\")","v":{"$error":"#N/A"}}]
["",9,null,null,null,null,null,null,null,null,null,null,{"$f":"'Rep 9'!$C$3/100","v":0},0,null,20.49,null,20.49,0,20.49,20.49,20.49,20.49,{"$f":"IF('Podia opgaven'!C16=\"ART\",0,W15)","v":20.49},null,{"$f":"IF('Rep 9'!$F$7=\"Waar\",\"Waar\",\"Onwaar\")","v":{"$error":"#N/A"}}]
["",10,null,null,null,null,null,null,null,null,null,null,{"$f":"'Rep 10'!$C$3/100","v":0},0,null,{"$error":"#REF!"},null,20.49,0,20.49,20.49,20.49,20.49,{"$f":"IF('Podia opgaven'!#REF!=\"ART\",0,W16)","v":{"$error":"#REF!"}},null,{"$f":"IF('Rep 10'!$F$7=\"Waar\",\"Waar\",\"Onwaar\")","v":{"$error":"#N/A"}}]
["",11,null,null,null,null,null,null,null,null,null,null,{"$f":"'Rep 11'!$C$3/100","v":0},0,null,null,null,null,null,null,null,null,null,null,null,{"$f":"IF('Rep 11'!$F$7=\"Waar\",\"Waar\",\"Onwaar\")","v":{"$error":"#N/A"}}]
["",12,null,null,null,null,null,null,null,null,null,null,{"$f":"'Rep 1'!C15/100","v":0},0,null,null,null,null,null,null,null,null,null,null,null,{"$f":"IF('Rep 12'!$F$7=\"Waar\",\"Waar\",\"Onwaar\")","v":{"$error":"#N/A"}}]
["",13,null,null,null,null,null,null,null,null,null,null,{"$f":"'Rep 2'!$C$3/100","v":0},0,null,null,null,null,null,null,null,null,null,null,null,{"$f":"IF('Rep 13'!$F$7=\"Waar\",\"Waar\",\"Onwaar\")","v":{"$error":"#N/A"}}]
["",14,null,null,null,null,null,null,null,null,null,null,{"$f":"'Rep 3'!#REF!/100","v":{"$error":"#REF!"}},0,null,null,{"$f":"SUM((((CEILING(F20,50)/50))-1)*3.32)+23.81","v":20.49},{"$f":"IF(#REF!>J20,#REF!,J20)*K20","v":{"$error":"#REF!"}},{"$error":"#REF!"},{"$error":"#REF!"},{"$f":"IF(K20=\"minimum\",Q20,T20)","v":{"$error":"#REF!"}},{"$f":"IF(K20=\"\",0,U20)","v":0},{"$f":"IF('Podia opgaven'!#REF!=\"ART\",0,V20)","v":{"$error":"#REF!"}},{"$f":"50/70*F20","v":0},null,{"$f":"IF('Rep 14'!$F$7=\"Waar\",\"Waar\",\"Onwaar\")","v":{"$error":"#N/A"}}]
["",15,null,null,null,null,null,null,null,null,null,null,{"$f":"'Rep 4'!#REF!/100","v":{"$error":"#REF!"}},0,null,null,null,{"$f":"SUM((((CEILING(F21,50)/50))-1)*3.32)+23.81","v":20.49},{"$f":"IF(J21>K21,J21,K21)*M21","v":{"$error":"#REF!"}},{"$f":"IF(S21>R21,S21,R21)","v":{"$error":"#REF!"}},{"$f":"IF(T21=0,R21,T21)","v":{"$error":"#REF!"}},{"$f":"IF(M21=\"minimum\",R21,U21)","v":{"$error":"#REF!"}},{"$f":"IF(M21=\"\",0,V21)","v":{"$error":"#REF!"}},{"$f":"IF('Podia opgaven'!C22=\"ART\",0,W21)","v":{"$error":"#REF!"}},null,{"$f":"IF('Rep 15'!$F$7=\"Waar\",\"Waar\",\"Onwaar\")","v":{"$error":"#N/A"}}]
["",16,null,null,null,null,null,null,null,null,null,null,{"$f":"'Rep 5'!#REF!/100","v":{"$error":"#REF!"}},0,null,null,null,20.49,{"$error":"#REF!"},{"$error":"#REF!"},{"$error":"#REF!"},{"$error":"#REF!"},{"$error":"#REF!"},{"$f":"IF('Podia opgaven'!C23=\"ART\",0,W22)","v":{"$error":"#REF!"}},null,{"$f":"IF('Rep 16'!$F$7=\"Waar\",\"Waar\",\"Onwaar\")","v":{"$error":"#N/A"}}]
["",17,null,null,null,null,null,null,null,null,null,null,{"$f":"'Rep 6'!#REF!/100","v":{"$error":"#REF!"}},0,null,null,null,20.49,{"$error":"#REF!"},{"$error":"#REF!"},{"$error":"#REF!"},{"$error":"#REF!"},{"$error":"#REF!"},{"$f":"IF('Podia opgaven'!C24=\"ART\",0,W23)","v":{"$error":"#REF!"}},null,{"$f":"IF('Rep 17'!$F$7=\"Waar\",\"Waar\",\"Onwaar\")","v":{"$error":"#N/A"}}]
["",18,null,null,null,null,null,null,null,null,null,null,{"$f":"'Rep 7'!$C$3/100","v":0},0,null,null,null,20.49,0,20.49,20.49,20.49,20.49,{"$f":"IF('Podia opgaven'!C25=\"ART\",0,W24)","v":20.49},null,{"$f":"IF('Rep 18'!$F$7=\"Waar\",\"Waar\",\"Onwaar\")","v":{"$error":"#N/A"}}]
["",19,null,null,null,null,null,null,null,null,null,null,{"$f":"'Rep 8'!$C$3/100","v":0},0,null,null,null,20.49,0,20.49,20.49,20.49,20.49,{"$f":"IF('Podia opgaven'!C26=\"ART\",0,W25)","v":20.49},null,{"$f":"IF('Rep 19'!$F$7=\"Waar\",\"Waar\",\"Onwaar\")","v":{"$error":"#N/A"}}]
["",20,null,null,null,null,null,null,null,null,null,null,{"$f":"'Rep 9'!$C$3/100","v":0},0,null,null,null,20.49,0,{"$f":"IF(S26>R26,S26,R26)","v":20.49},{"$f":"IF(T26=0,R26,T26)","v":20.49},20.49,20.49,{"$f":"IF('Podia opgaven'!#REF!=\"ART\",0,W26)","v":{"$error":"#REF!"}},null,{"$f":"IF('Rep 20'!$F$7=\"Waar\",\"Waar\",\"Onwaar\")","v":{"$error":"#N/A"}}]
[{"$f":"IF(C27&D27=\"\",\"\",IF(C27=\"\",\"ART\",IF(D27=\"\",\"EVT\",IF(C27&D27<>\"\",\"EVT\"))))","v":""},null,null,null,null,null,null,null,null,null,null,null,null,null,null,null,null,20.49,0,20.49,20.49,20.49,0,{"$f":"IF('Podia opgaven'!C28=\"ART\",0,W27)","v":0}]
["",null,null,null,null,null,null,null,null,null,null,null,null,null,null,null,null,20.49,0,20.49,20.49,20.49,0,{"$f":"IF('Podia opgaven'!C29=\"ART\",0,W28)","v":0}]
["",null,null,null,null,null,null,null,null,null,null,null,null,null,null,null,null,20.49,0,20.49,20.49,20.49,0,{"$f":"IF('Podia opgaven'!C30=\"ART\",0,W29)","v":0}]
["",null,null,null,null,null,null,null,null,null,null,null,null,null,null,null,null,20.49,0,20.49,20.49,20.49,0,{"$f":"IF('Podia opgaven'!C31=\"ART\",0,W30)","v":0}]
["",null,null,null,null,null,null,null,null,null,null,null,null,null,null,null,null,20.49,0,20.49,20.49,20.49,0,{"$f":"IF('Podia opgaven'!C32=\"ART\",0,W31)","v":0}]
["",null,null,null,null,null,null,null,null,null,null,null,null,null,null,null,null,20.49,0,20.49,20.49,20.49,0,{"$f":"IF('Podia opgaven'!C33=\"ART\",0,W32)","v":0}]
["",null,null,null,null,null,null,null,null,null,null,null,null,null,null,null,null,20.49,0,20.49,20.49,20.49,0,{"$f":"IF('Podia opgaven'!C34=\"ART\",0,W33)","v":0}]
["",null,null,null,null,null,null,null,null,null,null,null,null,null,null,null,null,20.49,0,20.49,20.49,20.49,0,{"$f":"IF('Podia opgaven'!C35=\"ART\",0,W34)","v":0}]
["",null,null,null,null,null,null,null,null,null,null,null,null,null,null,null,null,20.49,0,20.49,20.49,20.49,0,{"$f":"IF('Podia opgaven'!C36=\"ART\",0,W35)","v":0}]
["",null,null,null,null,null,null,null,null,null,null,null,null,null,null,null,null,20.49,0,20.49,20.49,20.49,0,{"$f":"IF('Podia opgaven'!C37=\"ART\",0,W36)","v":0}]
["",null,null,null,null,null,null,null,null,null,null,null,null,null,null,null,null,20.49,0,20.49,20.49,20.49,0,{"$f":"IF('Podia opgaven'!C38=\"ART\",0,W37)","v":0}]
["",null,null,null,null,null,null,null,null,null,null,null,null,null,null,null,null,20.49,0,20.49,20.49,20.49,0,{"$f":"IF('Podia opgaven'!C39=\"ART\",0,W38)","v":0}]
["",null,null,null,null,null,null,null,null,null,null,null,null,null,null,null,null,20.49,0,20.49,20.49,20.49,0,{"$f":"IF('Podia opgaven'!C40=\"ART\",0,W39)","v":0}]
["",null,null,null,null,null,null,null,null,null,null,null,null,null,null,null,null,20.49,0,20.49,20.49,20.49,0,{"$f":"IF('Podia opgaven'!C41=\"ART\",0,W40)","v":0}]
["",null,null,null,null,null,null,null,null,null,null,null,null,null,null,null,null,20.49,0,20.49,20.49,20.49,0,{"$f":"IF('Podia opgaven'!C42=\"ART\",0,W41)","v":0}]
["",null,null,null,null,null,null,null,null,null,null,null,null,null,null,null,null,20.49,0,20.49,20.49,20.49,0,{"$f":"IF('Podia opgaven'!C43=\"ART\",0,W42)","v":0}]
["",null,null,null,null,null,null,null,null,null,null,null,null,null,null,null,null,20.49,0,20.49,20.49,20.49,0,{"$f":"IF('Podia opgaven'!C44=\"ART\",0,W43)","v":0}]
["",null,null,null,null,null,null,null,null,null,null,null,null,null,null,null,null,20.49,0,20.49,20.49,20.49,0,{"$f":"IF('Podia opgaven'!C45=\"ART\",0,W44)","v":0}]
["",null,null,null,null,null,null,null,null,null,null,null,null,null,null,null,null,20.49,0,20.49,20.49,20.49,0,{"$f":"IF('Podia opgaven'!C46=\"ART\",0,W45)","v":0}]
["",null,null,null,null,null,null,null,null,null,null,null,null,null,null,null,null,20.49,0,20.49,20.49,20.49,0,{"$f":"IF('Podia opgaven'!C47=\"ART\",0,W46)","v":0}]
["",null,null,null,null,null,null,null,null,null,null,null,null,null,null,null,null,20.49,0,20.49,20.49,20.49,0,{"$f":"IF('Podia opgaven'!C48=\"ART\",0,W47)","v":0}]
["",null,null,null,null,null,null,null,null,null,null,null,null,null,null,null,null,20.49,0,20.49,20.49,20.49,0,{"$f":"IF('Podia opgaven'!C49=\"ART\",0,W48)","v":0}]
["",null,null,null,null,null,null,null,null,null,null,null,null,null,null,null,null,20.49,0,20.49,20.49,20.49,0,{"$f":"IF('Podia opgaven'!C50=\"ART\",0,W49)","v":0}]
["",null,null,null,null,null,null,null,null,null,null,null,null,null,null,null,null,20.49,0,20.49,20.49,20.49,0,{"$f":"IF('Podia opgaven'!C51=\"ART\",0,W50)","v":0}]
["",null,null,null,null,null,null,null,null,null,null,null,null,null,null,null,null,20.49,0,20.49,20.49,20.49,0,{"$f":"IF('Podia opgaven'!C52=\"ART\",0,W51)","v":0}]
["",null,null,null,null,null,null,null,null,null,null,null,null,null,null,null,null,20.49,0,20.49,20.49,20.49,0,{"$f":"IF('Podia opgaven'!C53=\"ART\",0,W52)","v":0}]
["",null,null,null,null,null,null,null,null,null,null,null,null,null,null,null,null,20.49,0,20.49,20.49,20.49,0,{"$f":"IF('Podia opgaven'!C54=\"ART\",0,W53)","v":0}]
["",null,null,null,null,null,null,null,null,null,null,null,null,null,null,null,null,20.49,0,20.49,20.49,20.49,0,{"$f":"IF('Podia opgaven'!C55=\"ART\",0,W54)","v":0}]
["",null,null,null,null,null,null,null,null,null,null,null,null,null,null,null,null,20.49,0,20.49,20.49,20.49,0,{"$f":"IF('Podia opgaven'!C56=\"ART\",0,W55)","v":0}]
["",null,null,null,null,null,null,null,null,null,null,null,null,null,null,null,null,20.49,0,20.49,20.49,20.49,0,{"$f":"IF('Podia opgaven'!C57=\"ART\",0,W56)","v":0}]
["",null,null,null,null,null,null,null,null,null,null,null,null,null,null,null,null,20.49,0,20.49,20.49,20.49,0,{"$f":"IF('Podia opgaven'!C58=\"ART\",0,W57)","v":0}]
["",null,null,null,null,null,null,null,null,null,null,null,null,null,null,null,null,20.49,0,20.49,20.49,20.49,0,{"$f":"IF('Podia opgaven'!C59=\"ART\",0,W58)","v":0}]
["",null,null,null,null,null,null,null,null,null,null,null,null,null,null,null,null,20.49,0,20.49,20.49,20.49,0,{"$f":"IF('Podia opgaven'!C60=\"ART\",0,W59)","v":0}]
["",null,null,null,null,null,null,null,null,null,null,null,null,null,null,null,null,20.49,0,20.49,20.49,20.49,0,{"$f":"IF('Podia opgaven'!C61=\"ART\",0,W60)","v":0}]
["",null,null,null,null,null,null,null,null,null,null,null,null,null,null,null,null,20.49,0,20.49,20.49,20.49,0,{"$f":"IF('Podia opgaven'!C62=\"ART\",0,W61)","v":0}]
["",null,null,null,null,null,null,null,null,null,null,null,null,null,null,null,null,20.49,0,20.49,20.49,20.49,0,{"$f":"IF('Podia opgaven'!C63=\"ART\",0,W62)","v":0}]
["",null,null,null,null,null,null,null,null,null,null,null,null,null,null,null,null,20.49,0,20.49,20.49,20.49,0,{"$f":"IF('Podia opgaven'!C64=\"ART\",0,W63)","v":0}]
["",null,null,null,null,null,null,null,null,null,null,null,null,null,null,null,null,20.49,0,20.49,20.49,20.49,0,{"$f":"IF('Podia opgaven'!C65=\"ART\",0,W64)","v":0}]
["",null,null,null,null,null,null,null,null,null,null,null,null,null,null,null,null,20.49,0,20.49,20.49,20.49,0,{"$f":"IF('Podia opgaven'!C66=\"ART\",0,W65)","v":0}]
["",null,null,null,null,null,null,null,null,null,null,null,null,null,null,null,null,20.49,0,20.49,20.49,20.49,0,{"$f":"IF('Podia opgaven'!C67=\"ART\",0,W66)","v":0}]
["",null,null,null,null,null,null,null,null,null,null,null,null,null,null,null,null,20.49,0,20.49,20.49,20.49,0,{"$f":"IF('Podia opgaven'!C68=\"ART\",0,W67)","v":0}]
["",null,null,null,null,null,null,null,null,null,null,null,null,null,null,null,null,20.49,0,20.49,20.49,20.49,0,{"$f":"IF('Podia opgaven'!C69=\"ART\",0,W68)","v":0}]
["",null,null,null,null,null,null,null,null,null,null,null,null,null,null,null,null,20.49,0,20.49,20.49,20.49,0,{"$f":"IF('Podia opgaven'!C70=\"ART\",0,W69)","v":0}]
["",null,null,null,null,null,null,null,null,null,null,null,null,null,null,null,null,20.49,0,20.49,20.49,20.49,0,{"$f":"IF('Podia opgaven'!C71=\"ART\",0,W70)","v":0}]
["",null,null,null,null,null,null,null,null,null,null,null,null,null,null,null,null,20.49,0,20.49,20.49,20.49,0,{"$f":"IF('Podia opgaven'!C72=\"ART\",0,W71)","v":0}]
["",null,null,null,null,null,null,null,null,null,null,null,null,null,null,null,null,20.49,0,20.49,20.49,20.49,0,{"$f":"IF('Podia opgaven'!C73=\"ART\",0,W72)","v":0}]
["",null,null,null,null,null,null,null,null,null,null,null,null,null,null,null,null,20.49,0,20.49,20.49,20.49,0,{"$f":"IF('Podia opgaven'!C74=\"ART\",0,W73)","v":0}]
["",null,null,null,null,null,null,null,null,null,null,null,null,null,null,null,null,20.49,0,20.49,20.49,20.49,0,{"$f":"IF('Podia opgaven'!C75=\"ART\",0,W74)","v":0}]
["",null,null,null,null,null,null,null,null,null,null,null,null,null,null,null,null,20.49,0,20.49,20.49,20.49,0,{"$f":"IF('Podia opgaven'!C76=\"ART\",0,W75)","v":0}]
["",null,null,null,null,null,null,null,null,null,null,null,null,null,null,null,null,20.49,0,20.49,20.49,20.49,0,{"$f":"IF('Podia opgaven'!C77=\"ART\",0,W76)","v":0}]
["",null,null,null,null,null,null,null,null,null,null,null,null,null,null,null,null,20.49,0,20.49,20.49,20.49,0,{"$f":"IF('Podia opgaven'!C78=\"ART\",0,W77)","v":0}]
["",null,null,null,null,null,null,null,null,null,null,null,null,null,null,null,null,20.49,0,20.49,20.49,20.49,0,{"$f":"IF('Podia opgaven'!C79=\"ART\",0,W78)","v":0}]
["",null,null,null,null,null,null,null,null,null,null,null,null,null,null,null,null,20.49,0,20.49,20.49,20.49,0,{"$f":"IF('Podia opgaven'!C80=\"ART\",0,W79)","v":0}]
["",null,null,null,null,null,null,null,null,null,null,null,null,null,null,null,null,20.49,0,20.49,20.49,20.49,0,{"$f":"IF('Podia opgaven'!C81=\"ART\",0,W80)","v":0}]
["",null,null,null,null,null,null,null,null,null,null,null,null,null,null,null,null,20.49,0,20.49,20.49,20.49,0,{"$f":"IF('Podia opgaven'!C82=\"ART\",0,W81)","v":0}]
["",null,null,null,null,null,null,null,null,null,null,null,null,null,null,null,null,20.49,0,20.49,20.49,20.49,0,{"$f":"IF('Podia opgaven'!C83=\"ART\",0,W82)","v":0}]
["",null,null,null,null,null,null,null,null,null,null,null,null,null,null,null,null,20.49,0,20.49,20.49,20.49,0,{"$f":"IF('Podia opgaven'!C84=\"ART\",0,W83)","v":0}]
["",null,null,null,null,null,null,null,null,null,null,null,null,null,null,null,null,20.49,0,20.49,20.49,20.49,0,{"$f":"IF('Podia opgaven'!C85=\"ART\",0,W84)","v":0}]
["",null,null,null,null,null,null,null,null,null,null,null,null,null,null,null,null,{"$f":"SUM((((CEILING(F85,50)/50))-1)*3.32)+23.81","v":20.49},{"$f":"IF(J85>K85,J85,K85)*M85","v":0},20.49,20.49,{"$f":"IF(M85=\"minimum\",R85,U85)","v":20.49},{"$f":"IF(M85=\"\",0,V85)","v":0},{"$f":"IF('Podia opgaven'!C86=\"ART\",0,W85)","v":0}]
["",null,null,null,null,null,null,null,null,null,null,null,null,null,null,null,null,20.49,0,20.49,20.49,20.49,0,{"$f":"IF('Podia opgaven'!C87=\"ART\",0,W86)","v":0}]
[{"$f":"IF(C87&D87=\"\",\"\",IF(C87=\"\",\"ART\",IF(D87=\"\",\"EVT\",IF(C87&D87<>\"\",\"EVT\"))))","v":""},null,null,null,null,null,null,null,null,null,null,null,null,null,null,null,null,20.49,0,{"$f":"IF(S87>R87,S87,R87)","v":20.49},{"$f":"IF(T87=0,R87,T87)","v":20.49},20.49,0,{"$f":"IF('Podia opgaven'!C88=\"ART\",0,W87)","v":0}]
["",null,null,null,null,null,null,null,null,null,null,null,null,null,null,null,null,20.49,0,20.49,20.49,20.49,0,{"$f":"IF('Podia opgaven'!C89=\"ART\",0,W88)","v":0}]
["",null,null,null,null,null,null,null,null,null,null,null,null,null,null,null,null,20.49,0,20.49,20.49,20.49,0,{"$f":"IF('Podia opgaven'!C90=\"ART\",0,W89)","v":0}]
["",null,null,null,null,null,null,null,null,null,null,null,null,null,null,null,null,20.49,0,20.49,20.49,20.49,0,{"$f":"IF('Podia opgaven'!C91=\"ART\",0,W90)","v":0}]
["",null,null,null,null,null,null,null,null,null,null,null,null,null,null,null,null,20.49,0,20.49,20.49,20.49,0,{"$f":"IF('Podia opgaven'!C92=\"ART\",0,W91)","v":0}]
["",null,null,null,null,null,null,null,null,null,null,null,null,null,null,null,null,20.49,0,20.49,20.49,20.49,0,{"$f":"IF('Podia opgaven'!C93=\"ART\",0,W92)","v":0}]
["",null,null,null,null,null,null,null,null,null,null,null,null,null,null,null,null,20.49,0,20.49,20.49,20.49,0,{"$f":"IF('Podia opgaven'!C94=\"ART\",0,W93)","v":0}]
["",null,null,null,null,null,null,null,null,null,null,null,null,null,null,null,null,20.49,0,20.49,20.49,20.49,0,{"$f":"IF('Podia opgaven'!C95=\"ART\",0,W94)","v":0}]
["",null,null,null,null,null,null,null,null,null,null,null,null,null,null,null,null,20.49,0,20.49,20.49,20.49,0,{"$f":"IF('Podia opgaven'!C96=\"ART\",0,W95)","v":0}]
["",null,null,null,null,null,null,null,null,null,null,null,null,null,null,null,null,20.49,0,20.49,20.49,20.49,0,{"$f":"IF('Podia opgaven'!C97=\"ART\",0,W96)","v":0}]
["",null,null,null,null,null,null,null,null,null,null,null,null,null,null,null,null,20.49,0,20.49,20.49,20.49,0,{"$f":"IF('Podia opgaven'!C98=\"ART\",0,W97)","v":0}]
["",null,null,null,null,null,null,null,null,null,null,null,null,null,null,null,null,20.49,0,20.49,20.49,20.49,0,{"$f":"IF('Podia opgaven'!C99=\"ART\",0,W98)","v":0}]
["",null,null,null,null,null,null,null,null,null,null,null,null,null,null,null,null,20.49,0,20.49,20.49,20.49,0,{"$f":"IF('Podia opgaven'!C100=\"ART\",0,W99)","v":0}]
["",null,null,null,null,null,null,null,null,null,null,null,null,null,null,null,null,20.49,0,20.49,20.49,20.49,0,{"$f":"IF('Podia opgaven'!C101=\"ART\",0,W100)","v":0}]
["",null,null,null,null,null,null,null,null,null,null,null,null,null,null,null,null,20.49,0,20.49,20.49,20.49,0,{"$f":"IF('Podia opgaven'!C102=\"ART\",0,W101)","v":0}]
["",null,null,null,null,null,null,null,null,null,null,null,null,null,null,null,null,20.49,0,20.49,20.49,20.49,0,{"$f":"IF('Podia opgaven'!C103=\"ART\",0,W102)","v":0}]
["",null,null,null,null,null,null,null,null,null,null,null,null,null,null,null,null,20.49,0,20.49,20.49,20.49,0,{"$f":"IF('Podia opgaven'!C104=\"ART\",0,W103)","v":0}]
["",null,null,null,null,null,null,null,null,null,null,null,null,null,null,null,null,20.49,0,20.49,20.49,20.49,0,{"$f":"IF('Podia opgaven'!C105=\"ART\",0,W104)","v":0}]
["",null,null,null,null,null,null,null,null,null,null,null,null,null,null,null,null,20.49,0,20.49,20.49,20.49,0,{"$f":"IF('Podia opgaven'!C106=\"ART\",0,W105)","v":0}]
["",null,null,null,null,null,null,null,null,null,null,null,null,null,null,null,null,20.49,0,20.49,20.49,20.49,0,{"$f":"IF('Podia opgaven'!C107=\"ART\",0,W106)","v":0}]
["",null,null,null,null,null,null,null,null,null,null,null,null,null,null,null,null,20.49,0,20.49,20.49,20.49,0,{"$f":"IF('Podia opgaven'!C108=\"ART\",0,W107)","v":0}]
["",null,null,null,null,null,null,null,null,null,null,null,null,null,null,null,null,20.49,0,20.49,20.49,20.49,0,{"$f":"IF('Podia opgaven'!C109=\"ART\",0,W108)","v":0}]
["",null,null,null,null,null,null,null,null,null,null,null,null,null,null,null,null,20.49,0,20.49,20.49,20.49,0,{"$f":"IF('Podia opgaven'!C110=\"ART\",0,W109)","v":0}]
["",null,null,null,null,null,null,null,null,null,null,null,null,null,null,null,null,20.49,0,20.49,20.49,20.49,0,{"$f":"IF('Podia opgaven'!C111=\"ART\",0,W110)","v":0}]
["",null,null,null,null,null,null,null,null,null,null,null,null,null,null,null,null,20.49,0,20.49,20.49,20.49,0,{"$f":"IF('Podia opgaven'!C112=\"ART\",0,W111)","v":0}]
["",null,null,null,null,null,null,null,null,null,null,null,null,null,null,null,null,20.49,0,20.49,20.49,20.49,0,{"$f":"IF('Podia opgaven'!C113=\"ART\",0,W112)","v":0}]
["",null,null,null,null,null,null,null,null,null,null,null,null,null,null,null,null,20.49,0,20.49,20.49,20.49,0,{"$f":"IF('Podia opgaven'!C114=\"ART\",0,W113)","v":0}]
["",null,null,null,null,null,null,null,null,null,null,null,null,null,null,null,null,20.49,0,20.49,20.49,20.49,0,{"$f":"IF('Podia opgaven'!C115=\"ART\",0,W114)","v":0}]
["",null,null,null,null,null,null,null,null,null,null,null,null,null,null,null,null,20.49,0,20.49,20.49,20.49,0,{"$f":"IF('Podia opgaven'!C116=\"ART\",0,W115)","v":0}]
["",null,null,null,null,null,null,null,null,null,null,null,null,null,null,null,null,20.49,0,20.49,20.49,20.49,0,{"$f":"IF('Podia opgaven'!C117=\"ART\",0,W116)","v":0}]
["",null,null,null,null,null,null,null,null,null,null,null,null,null,null,null,null,20.49,0,20.49,20.49,20.49,0,{"$f":"IF('Podia opgaven'!C118=\"ART\",0,W117)","v":0}]
["",null,null,null,null,null,null,null,null,null,null,null,null,null,null,null,null,20.49,0,20.49,20.49,20.49,0,{"$f":"IF('Podia opgaven'!C119=\"ART\",0,W118)","v":0}]
["",null,null,null,null,null,null,null,null,null,null,null,null,null,null,null,null,20.49,0,20.49,20.49,20.49,0,{"$f":"IF('Podia opgaven'!C120=\"ART\",0,W119)","v":0}]
["",null,null,null,null,null,null,null,null,null,null,null,null,null,null,null,null,20.49,0,20.49,20.49,20.49,0,{"$f":"IF('Podia opgaven'!C121=\"ART\",0,W120)","v":0}]
["",null,null,null,null,null,null,null,null,null,null,null,null,null,null,null,null,20.49,0,20.49,20.49,20.49,0,{"$f":"IF('Podia opgaven'!C122=\"ART\",0,W121)","v":0}]
["",null,null,null,null,null,null,null,null,null,null,null,null,null,null,null,null,20.49,0,20.49,20.49,20.49,0,{"$f":"IF('Podia opgaven'!C123=\"ART\",0,W122)","v":0}]
["",null,null,null,null,null,null,null,null,null,null,null,null,null,null,null,null,20.49,0,20.49,20.49,20.49,0,{"$f":"IF('Podia opgaven'!C124=\"ART\",0,W123)","v":0}]
["",null,null,null,null,null,null,null,null,null,null,null,null,null,null,null,null,20.49,0,20.49,20.49,20.49,0,{"$f":"IF('Podia opgaven'!C125=\"ART\",0,W124)","v":0}]
["",null,null,null,null,null,null,null,null,null,null,null,null,null,null,null,null,20.49,0,20.49,20.49,20.49,0,{"$f":"IF('Podia opgaven'!C126=\"ART\",0,W125)","v":0}]
["",null,null,null,null,null,null,null,null,null,null,null,null,null,null,null,null,20.49,0,20.49,20.49,20.49,0,{"$f":"IF('Podia opgaven'!C127=\"ART\",0,W126)","v":0}]
["",null,null,null,null,null,null,null,null,null,null,null,null,null,null,null,null,20.49,0,20.49,20.49,20.49,0,{"$f":"IF('Podia opgaven'!C128=\"ART\",0,W127)","v":0}]
["",null,null,null,null,null,null,null,null,null,null,null,null,null,null,null,null,20.49,0,20.49,20.49,20.49,0,{"$f":"IF('Podia opgaven'!C129=\"ART\",0,W128)","v":0}]
["",null,null,null,null,null,null,null,null,null,null,null,null,null,null,null,null,20.49,0,20.49,20.49,20.49,0,{"$f":"IF('Podia opgaven'!C130=\"ART\",0,W129)","v":0}]
["",null,null,null,null,null,null,null,null,null,null,null,null,null,null,null,null,20.49,0,20.49,20.49,20.49,0,{"$f":"IF('Podia opgaven'!C131=\"ART\",0,W130)","v":0}]
["",null,null,null,null,null,null,null,null,null,null,null,null,null,null,null,null,20.49,0,20.49,20.49,20.49,0,{"$f":"IF('Podia opgaven'!C132=\"ART\",0,W131)","v":0}]
["",null,null,null,null,null,null,null,null,null,null,null,null,null,null,null,null,20.49,0,20.49,20.49,20.49,0,{"$f":"IF('Podia opgaven'!C133=\"ART\",0,W132)","v":0}]
["",null,null,null,null,null,null,null,null,null,null,null,null,null,null,null,null,20.49,0,20.49,20.49,20.49,0,{"$f":"IF('Podia opgaven'!C134=\"ART\",0,W133)","v":0}]
["",null,null,null,null,null,null,null,null,null,null,null,null,null,null,null,null,20.49,0,20.49,20.49,20.49,0,{"$f":"IF('Podia opgaven'!C135=\"ART\",0,W134)","v":0}]
["",null,null,null,null,null,null,null,null,null,null,null,null,null,null,null,null,20.49,0,20.49,20.49,20.49,0,{"$f":"IF('Podia opgaven'!C136=\"ART\",0,W135)","v":0}]
["",null,null,null,null,null,null,null,null,null,null,null,null,null,null,null,null,20.49,0,20.49,20.49,20.49,0,{"$f":"IF('Podia opgaven'!C137=\"ART\",0,W136)","v":0}]
["",null,null,null,null,null,null,null,null,null,null,null,null,null,null,null,null,20.49,0,20.49,20.49,20.49,0,{"$f":"IF('Podia opgaven'!C138=\"ART\",0,W137)","v":0}]
["",null,null,null,null,null,null,null,null,null,null,null,null,null,null,null,null,20.49,0,20.49,20.49,20.49,0,{"$f":"IF('Podia opgaven'!C139=\"ART\",0,W138)","v":0}]
["",null,null,null,null,null,null,null,null,null,null,null,null,null,null,null,null,20.49,0,20.49,20.49,20.49,0,{"$f":"IF('Podia opgaven'!C140=\"ART\",0,W139)","v":0}]
["",null,null,null,null,null,null,null,null,null,null,null,null,null,null,null,null,20.49,0,20.49,20.49,20.49,0,{"$f":"IF('Podia opgaven'!C141=\"ART\",0,W140)","v":0}]
["",null,null,null,null,null,null,null,null,null,null,null,null,null,null,null,null,20.49,0,20.49,20.49,20.49,0,{"$f":"IF('Podia opgaven'!C142=\"ART\",0,W141)","v":0}]
["",null,null,null,null,null,null,null,null,null,null,null,null,null,null,null,null,20.49,0,20.49,20.49,20.49,0,{"$f":"IF('Podia opgaven'!C143=\"ART\",0,W142)","v":0}]
["",null,null,null,null,null,null,null,null,null,null,null,null,null,null,null,null,20.49,0,20.49,20.49,20.49,0,{"$f":"IF('Podia opgaven'!C144=\"ART\",0,W143)","v":0}]
["",null,null,null,null,null,null,null,null,null,null,null,null,null,null,null,null,20.49,0,20.49,20.49,20.49,0,{"$f":"IF('Podia opgaven'!C145=\"ART\",0,W144)","v":0}]
["",null,null,null,null,null,null,null,null,null,null,null,null,null,null,null,null,20.49,0,20.49,20.49,20.49,0,{"$f":"IF('Podia opgaven'!C146=\"ART\",0,W145)","v":0}]
["",null,null,null,null,null,null,null,null,null,null,null,null,null,null,null,null,20.49,0,20.49,20.49,20.49,0,{"$f":"IF('Podia opgaven'!C147=\"ART\",0,W146)","v":0}]
["",null,null,null,null,null,null,null,null,null,null,null,null,null,null,null,null,20.49,0,20.49,20.49,20.49,0,{"$f":"IF('Podia opgaven'!C148=\"ART\",0,W147)","v":0}]
["",null,null,null,null,null,null,null,null,null,null,null,null,null,null,null,null,20.49,0,20.49,20.49,20.49,0,{"$f":"IF('Podia opgaven'!C149=\"ART\",0,W148)","v":0}]
["",null,null,null,null,null,null,null,null,null,null,null,null,null,null,null,null,{"$f":"SUM((((CEILING(F149,50)/50))-1)*3.32)+23.81","v":20.49},{"$f":"IF(J149>K149,J149,K149)*M149","v":0},20.49,20.49,{"$f":"IF(M149=\"minimum\",R149,U149)","v":20.49},{"$f":"IF(M149=\"\",0,V149)","v":0},{"$f":"IF('Podia opgaven'!C150=\"ART\",0,W149)","v":0}]
["",null,null,null,null,null,null,null,null,null,null,null,null,null,null,null,null,20.49,0,20.49,20.49,20.49,0,{"$f":"IF('Podia opgaven'!C151=\"ART\",0,W150)","v":0}]
[{"$f":"IF(C151&D151=\"\",\"\",IF(C151=\"\",\"ART\",IF(D151=\"\",\"EVT\",IF(C151&D151<>\"\",\"EVT\"))))","v":""},null,null,null,null,null,null,null,null,null,null,null,null,null,null,null,null,20.49,0,{"$f":"IF(S151>R151,S151,R151)","v":20.49},{"$f":"IF(T151=0,R151,T151)","v":20.49},20.49,0,{"$f":"IF('Podia opgaven'!C152=\"ART\",0,W151)","v":0}]
["",null,null,null,null,null,null,null,null,null,null,null,null,null,null,null,null,20.49,0,20.49,20.49,20.49,0,{"$f":"IF('Podia opgaven'!C153=\"ART\",0,W152)","v":0}]
["",null,null,null,null,null,null,null,null,null,null,null,null,null,null,null,null,20.49,0,20.49,20.49,20.49,0,{"$f":"IF('Podia opgaven'!C154=\"ART\",0,W153)","v":0}]
["",null,null,null,null,null,null,null,null,null,null,null,null,null,null,null,null,20.49,0,20.49,20.49,20.49,0,{"$f":"IF('Podia opgaven'!C155=\"ART\",0,W154)","v":0}]
["",null,null,null,null,null,null,null,null,null,null,null,null,null,null,null,null,20.49,0,20.49,20.49,20.49,0,{"$f":"IF('Podia opgaven'!C156=\"ART\",0,W155)","v":0}]
["",null,null,null,null,null,null,null,null,null,null,null,null,null,null,null,null,20.49,0,20.49,20.49,20.49,0,{"$f":"IF('Podia opgaven'!C157=\"ART\",0,W156)","v":0}]
["",null,null,null,null,null,null,null,null,null,null,null,null,null,null,null,null,20.49,0,20.49,20.49,20.49,0,{"$f":"IF('Podia opgaven'!C158=\"ART\",0,W157)","v":0}]
["",null,null,null,null,null,null,null,null,null,null,null,null,null,null,null,null,20.49,0,20.49,20.49,20.49,0,{"$f":"IF('Podia opgaven'!C159=\"ART\",0,W158)","v":0}]
["",null,null,null,null,null,null,null,null,null,null,null,null,null,null,null,null,20.49,0,20.49,20.49,20.49,0,{"$f":"IF('Podia opgaven'!C160=\"ART\",0,W159)","v":0}]
["",null,null,null,null,null,null,null,null,null,null,null,null,null,null,null,null,20.49,0,20.49,20.49,20.49,0,{"$f":"IF('Podia opgaven'!C161=\"ART\",0,W160)","v":0}]
["",null,null,null,null,null,null,null,null,null,null,null,null,null,null,null,null,20.49,0,20.49,20.49,20.49,0,{"$f":"IF('Podia opgaven'!C162=\"ART\",0,W161)","v":0}]
["",null,null,null,null,null,null,null,null,null,null,null,null,null,null,null,null,20.49,0,20.49,20.49,20.49,0,{"$f":"IF('Podia opgaven'!C163=\"ART\",0,W162)","v":0}]
["",null,null,null,null,null,null,null,null,null,null,null,null,null,null,null,null,20.49,0,20.49,20.49,20.49,0,{"$f":"IF('Podia opgaven'!C164=\"ART\",0,W163)","v":0}]
["",null,null,null,null,null,null,null,null,null,null,null,null,null,null,null,null,20.49,0,20.49,20.49,20.49,0,{"$f":"IF('Podia opgaven'!C165=\"ART\",0,W164)","v":0}]
["",null,null,null,null,null,null,null,null,null,null,null,null,null,null,null,null,20.49,0,20.49,20.49,20.49,0,{"$f":"IF('Podia opgaven'!C166=\"ART\",0,W165)","v":0}]
["",null,null,null,null,null,null,null,null,null,null,null,null,null,null,null,null,20.49,0,20.49,20.49,20.49,0,{"$f":"IF('Podia opgaven'!C167=\"ART\",0,W166)","v":0}]
["",null,null,null,null,null,null,null,null,null,null,null,null,null,null,null,null,20.49,0,20.49,20.49,20.49,0,{"$f":"IF('Podia opgaven'!C168=\"ART\",0,W167)","v":0}]
["",null,null,null,null,null,null,null,null,null,null,null,null,null,null,null,null,20.49,0,20.49,20.49,20.49,0,{"$f":"IF('Podia opgaven'!C169=\"ART\",0,W168)","v":0}]
["",null,null,null,null,null,null,null,null,null,null,null,null,null,null,null,null,20.49,0,20.49,20.49,20.49,0,{"$f":"IF('Podia opgaven'!C170=\"ART\",0,W169)","v":0}]
["",null,null,null,null,null,null,null,null,null,null,null,null,null,null,null,null,20.49,0,20.49,20.49,20.49,0,{"$f":"IF('Podia opgaven'!C171=\"ART\",0,W170)","v":0}]
["",null,null,null,null,null,null,null,null,null,null,null,null,null,null,null,null,20.49,0,20.49,20.49,20.49,0,{"$f":"IF('Podia opgaven'!C172=\"ART\",0,W171)","v":0}]
["",null,null,null,null,null,null,null,null,null,null,null,null,null,null,null,null,20.49,0,20.49,20.49,20.49,0,{"$f":"IF('Podia opgaven'!C173=\"ART\",0,W172)","v":0}]
["",null,null,null,null,null,null,null,null,null,null,null,null,null,null,null,null,20.49,0,20.49,20.49,20.49,0,{"$f":"IF('Podia opgaven'!C174=\"ART\",0,W173)","v":0}]
["",null,null,null,null,null,null,null,null,null,null,null,null,null,null,null,null,20.49,0,20.49,20.49,20.49,0,{"$f":"IF('Podia opgaven'!C175=\"ART\",0,W174)","v":0}]
["",null,null,null,null,null,null,null,null,null,null,null,null,null,null,null,null,20.49,0,20.49,20.49,20.49,0,{"$f":"IF('Podia opgaven'!C176=\"ART\",0,W175)","v":0}]
["",null,null,null,null,null,null,null,null,null,null,null,null,null,null,null,null,20.49,0,20.49,20.49,20.49,0,{"$f":"IF('Podia opgaven'!C177=\"ART\",0,W176)","v":0}]
["",null,null,null,null,null,null,null,null,null,null,null,null,null,null,null,null,20.49,0,20.49,20.49,20.49,0,{"$f":"IF('Podia opgaven'!C178=\"ART\",0,W177)","v":0}]
["",null,null,null,null,null,null,null,null,null,null,null,null,null,null,null,null,20.49,0,20.49,20.49,20.49,0,{"$f":"IF('Podia opgaven'!C179=\"ART\",0,W178)","v":0}]
["",null,null,null,null,null,null,null,null,null,null,null,null,null,null,null,null,20.49,0,20.49,20.49,20.49,0,{"$f":"IF('Podia opgaven'!C180=\"ART\",0,W179)","v":0}]
["",null,null,null,null,null,null,null,null,null,null,null,null,null,null,null,null,20.49,0,20.49,20.49,20.49,0,{"$f":"IF('Podia opgaven'!C181=\"ART\",0,W180)","v":0}]
["",null,null,null,null,null,null,null,null,null,null,null,null,null,null,null,null,20.49,0,20.49,20.49,20.49,0,{"$f":"IF('Podia opgaven'!C182=\"ART\",0,W181)","v":0}]
["",null,null,null,null,null,null,null,null,null,null,null,null,null,null,null,null,20.49,0,20.49,20.49,20.49,0,{"$f":"IF('Podia opgaven'!C183=\"ART\",0,W182)","v":0}]
["",null,null,null,null,null,null,null,null,null,null,null,null,null,null,null,null,20.49,0,20.49,20.49,20.49,0,{"$f":"IF('Podia opgaven'!C184=\"ART\",0,W183)","v":0}]
["",null,null,null,null,null,null,null,null,null,null,null,null,null,null,null,null,20.49,0,20.49,20.49,20.49,0,{"$f":"IF('Podia opgaven'!C185=\"ART\",0,W184)","v":0}]
["",null,null,null,null,null,null,null,null,null,null,null,null,null,null,null,null,20.49,0,20.49,20.49,20.49,0,{"$f":"IF('Podia opgaven'!C186=\"ART\",0,W185)","v":0}]
["",null,null,null,null,null,null,null,null,null,null,null,null,null,null,null,null,20.49,0,20.49,20.49,20.49,0,{"$f":"IF('Podia opgaven'!C187=\"ART\",0,W186)","v":0}]
["",null,null,null,null,null,null,null,null,null,null,null,null,null,null,null,null,20.49,0,20.49,20.49,20.49,0,{"$f":"IF('Podia opgaven'!C188=\"ART\",0,W187)","v":0}]
["",null,null,null,null,null,null,null,null,null,null,null,null,null,null,null,null,20.49,0,20.49,20.49,20.49,0,{"$f":"IF('Podia opgaven'!C189=\"ART\",0,W188)","v":0}]
["",null,null,null,null,null,null,null,null,null,null,null,null,null,null,null,null,20.49,0,20.49,20.49,20.49,0,{"$f":"IF('Podia opgaven'!C190=\"ART\",0,W189)","v":0}]
["",null,null,null,null,null,null,null,null,null,null,null,null,null,null,null,null,20.49,0,20.49,20.49,20.49,0,{"$f":"IF('Podia opgaven'!C191=\"ART\",0,W190)","v":0}]
["",null,null,null,null,null,null,null,null,null,null,null,null,null,null,null,null,20.49,0,20.49,20.49,20.49,0,{"$f":"IF('Podia opgaven'!C192=\"ART\",0,W191)","v":0}]
["",null,null,null,null,null,null,null,null,null,null,null,null,null,null,null,null,20.49,0,20.49,20.49,20.49,0,{"$f":"IF('Podia opgaven'!C193=\"ART\",0,W192)","v":0}]
["",null,null,null,null,null,null,null,null,null,null,null,null,null,null,null,null,20.49,0,20.49,20.49,20.49,0,{"$f":"IF('Podia opgaven'!C194=\"ART\",0,W193)","v":0}]
["",null,null,null,null,null,null,null,null,null,null,null,null,null,null,null,null,20.49,0,20.49,20.49,20.49,0,{"$f":"IF('Podia opgaven'!C195=\"ART\",0,W194)","v":0}]
["",null,null,null,null,null,null,null,null,null,null,null,null,null,null,null,null,20.49,0,20.49,20.49,20.49,0,{"$f":"IF('Podia opgaven'!C196=\"ART\",0,W195)","v":0}]
["",null,null,null,null,null,null,null,null,null,null,null,null,null,null,null,null,20.49,0,20.49,20.49,20.49,0,{"$f":"IF('Podia opgaven'!C197=\"ART\",0,W196)","v":0}]
["",null,null,null,null,null,null,null,null,null,null,null,null,null,null,null,null,20.49,0,20.49,20.49,20.49,0,{"$f":"IF('Podia opgaven'!C198=\"ART\",0,W197)","v":0}]
["",null,null,null,null,null,null,null,null,null,null,null,null,null,null,null,null,20.49,0,20.49,20.49,20.49,0,{"$f":"IF('Podia opgaven'!C199=\"ART\",0,W198)","v":0}]
["",null,null,null,null,null,null,null,null,null,null,null,null,null,null,null,null,20.49,0,20.49,20.49,20.49,0,{"$f":"IF('Podia opgaven'!C200=\"ART\",0,W199)","v":0}]
["",null,null,null,null,null,null,null,null,null,null,null,null,null,null,null,null,20.49,0,20.49,20.49,20.49,0,{"$f":"IF('Podia opgaven'!C201=\"ART\",0,W200)","v":0}]
["",null,null,null,null,null,null,null,null,null,null,null,null,null,null,null,null,20.49,0,20.49,20.49,20.49,0,{"$f":"IF('Podia opgaven'!C202=\"ART\",0,W201)","v":0}]
["",null,null,null,null,null,null,null,null,null,null,null,null,null,null,null,null,20.49,0,20.49,20.49,20.49,0,{"$f":"IF('Podia opgaven'!C203=\"ART\",0,W202)","v":0}]
["",null,null,null,null,null,null,null,null,null,null,null,null,null,null,null,null,20.49,0,20.49,20.49,20.49,0,{"$f":"IF('Podia opgaven'!C204=\"ART\",0,W203)","v":0}]
["",null,null,null,null,null,null,null,null,null,null,null,null,null,null,null,null,20.49,0,20.49,20.49,20.49,0,{"$f":"IF('Podia opgaven'!C205=\"ART\",0,W204)","v":0}]
["",null,null,null,null,null,null,null,null,null,null,null,null,null,null,null,null,20.49,0,20.49,20.49,20.49,0,{"$f":"IF('Podia opgaven'!C206=\"ART\",0,W205)","v":0}]
["",null,null,null,null,null,null,null,null,null,null,null,null,null,null,null,null,20.49,0,20.49,20.49,20.49,0,{"$f":"IF('Podia opgaven'!C207=\"ART\",0,W206)","v":0}]
["",null,null,null,null,null,null,null,null,null,null,null,null,null,null,null,null,20.49,0,20.49,20.49,20.49,0,{"$f":"IF('Podia opgaven'!C208=\"ART\",0,W207)","v":0}]
["",null,null,null,null,null,null,null,null,null,null,null,null,null,null,null,null,20.49,0,20.49,20.49,20.49,0,{"$f":"IF('Podia opgaven'!C209=\"ART\",0,W208)","v":0}]
["",null,null,null,null,null,null,null,null,null,null,null,null,null,null,null,null,20.49,0,20.49,20.49,20.49,0,{"$f":"IF('Podia opgaven'!C210=\"ART\",0,W209)","v":0}]
["",null,null,null,null,null,null,null,null,null,null,null,null,null,null,null,null,20.49,0,20.49,20.49,20.49,0,{"$f":"IF('Podia opgaven'!C211=\"ART\",0,W210)","v":0}]
["",null,null,null,null,null,null,null,null,null,null,null,null,null,null,null,null,20.49,0,20.49,20.49,20.49,0,{"$f":"IF('Podia opgaven'!C212=\"ART\",0,W211)","v":0}]
["",null,null,null,null,null,null,null,null,null,null,null,null,null,null,null,null,20.49,0,20.49,20.49,20.49,0,{"$f":"IF('Podia opgaven'!C213=\"ART\",0,W212)","v":0}]
["",null,null,null,null,null,null,null,null,null,null,null,null,null,null,null,null,{"$f":"SUM((((CEILING(F213,50)/50))-1)*3.32)+23.81","v":20.49},{"$f":"IF(J213>K213,J213,K213)*M213","v":0},20.49,20.49,{"$f":"IF(M213=\"minimum\",R213,U213)","v":20.49},{"$f":"IF(M213=\"\",0,V213)","v":0},{"$f":"IF('Podia opgaven'!C214=\"ART\",0,W213)","v":0}]
["",null,null,null,null,null,null,null,null,null,null,null,null,null,null,null,null,20.49,0,20.49,20.49,20.49,0,{"$f":"IF('Podia opgaven'!C215=\"ART\",0,W214)","v":0}]
[{"$f":"IF(C215&D215=\"\",\"\",IF(C215=\"\",\"ART\",IF(D215=\"\",\"EVT\",IF(C215&D215<>\"\",\"EVT\"))))","v":""},null,null,null,null,null,null,null,null,null,null,null,null,null,null,null,null,20.49,0,{"$f":"IF(S215>R215,S215,R215)","v":20.49},{"$f":"IF(T215=0,R215,T215)","v":20.49},20.49,0,{"$f":"IF('Podia opgaven'!C216=\"ART\",0,W215)","v":0}]
["",null,null,null,null,null,null,null,null,null,null,null,null,null,null,null,null,20.49,0,20.49,20.49,20.49,0,{"$f":"IF('Podia opgaven'!C217=\"ART\",0,W216)","v":0}]
["",null,null,null,null,null,null,null,null,null,null,null,null,null,null,null,null,20.49,0,20.49,20.49,20.49,0,{"$f":"IF('Podia opgaven'!C218=\"ART\",0,W217)","v":0}]
["",null,null,null,null,null,null,null,null,null,null,null,null,null,null,null,null,20.49,0,20.49,20.49,20.49,0,{"$f":"IF('Podia opgaven'!C219=\"ART\",0,W218)","v":0}]
["",null,null,null,null,null,null,null,null,null,null,null,null,null,null,null,null,20.49,0,20.49,20.49,20.49,0,{"$f":"IF('Podia opgaven'!C220=\"ART\",0,W219)","v":0}]
["",null,null,null,null,null,null,null,null,null,null,null,null,null,null,null,null,20.49,0,20.49,20.49,20.49,0,{"$f":"IF('Podia opgaven'!C221=\"ART\",0,W220)","v":0}]
["",null,null,null,null,null,null,null,null,null,null,null,null,null,null,null,null,20.49,0,20.49,20.49,20.49,0,{"$f":"IF('Podia opgaven'!C222=\"ART\",0,W221)","v":0}]
["",null,null,null,null,null,null,null,null,null,null,null,null,null,null,null,null,20.49,0,20.49,20.49,20.49,0,{"$f":"IF('Podia opgaven'!C223=\"ART\",0,W222)","v":0}]
["",null,null,null,null,null,null,null,null,null,null,null,null,null,null,null,null,20.49,0,20.49,20.49,20.49,0,{"$f":"IF('Podia opgaven'!C224=\"ART\",0,W223)","v":0}]
["",null,null,null,null,null,null,null,null,null,null,null,null,null,null,null,null,20.49,0,20.49,20.49,20.49,0,{"$f":"IF('Podia opgaven'!C225=\"ART\",0,W224)","v":0}]
["",null,null,null,null,null,null,null,null,null,null,null,null,null,null,null,null,20.49,0,20.49,20.49,20.49,0,{"$f":"IF('Podia opgaven'!C226=\"ART\",0,W225)","v":0}]
["",null,null,null,null,null,null,null,null,null,null,null,null,null,null,null,null,20.49,0,20.49,20.49,20.49,0,{"$f":"IF('Podia opgaven'!C227=\"ART\",0,W226)","v":0}]
["",null,null,null,null,null,null,null,null,null,null,null,null,null,null,null,null,20.49,0,20.49,20.49,20.49,0,{"$f":"IF('Podia opgaven'!C228=\"ART\",0,W227)","v":0}]
["",null,null,null,null,null,null,null,null,null,null,null,null,null,null,null,null,20.49,0,20.49,20.49,20.49,0,{"$f":"IF('Podia opgaven'!C229=\"ART\",0,W228)","v":0}]
["",null,null,null,null,null,null,null,null,null,null,null,null,null,null,null,null,20.49,0,20.49,20.49,20.49,0,{"$f":"IF('Podia opgaven'!C230=\"ART\",0,W229)","v":0}]
["",null,null,null,null,null,null,null,null,null,null,null,null,null,null,null,null,20.49,0,20.49,20.49,20.49,0,{"$f":"IF('Podia opgaven'!C231=\"ART\",0,W230)","v":0}]
["",null,null,null,null,null,null,null,null,null,null,null,null,null,null,null,null,20.49,0,20.49,20.49,20.49,0,{"$f":"IF('Podia opgaven'!C232=\"ART\",0,W231)","v":0}]
["",null,null,null,null,null,null,null,null,null,null,null,null,null,null,null,null,20.49,0,20.49,20.49,20.49,0,{"$f":"IF('Podia opgaven'!C233=\"ART\",0,W232)","v":0}]
["",null,null,null,null,null,null,null,null,null,null,null,null,null,null,null,null,20.49,0,20.49,20.49,20.49,0,{"$f":"IF('Podia opgaven'!C234=\"ART\",0,W233)","v":0}]
["",null,null,null,null,null,null,null,null,null,null,null,null,null,null,null,null,20.49,0,20.49,20.49,20.49,0,{"$f":"IF('Podia opgaven'!C235=\"ART\",0,W234)","v":0}]
["",null,null,null,null,null,null,null,null,null,null,null,null,null,null,null,null,20.49,0,20.49,20.49,20.49,0,{"$f":"IF('Podia opgaven'!C236=\"ART\",0,W235)","v":0}]
["",null,null,null,null,null,null,null,null,null,null,null,null,null,null,null,null,20.49,0,20.49,20.49,20.49,0,{"$f":"IF('Podia opgaven'!C237=\"ART\",0,W236)","v":0}]
["",null,null,null,null,null,null,null,null,null,null,null,null,null,null,null,null,20.49,0,20.49,20.49,20.49,0,{"$f":"IF('Podia opgaven'!C238=\"ART\",0,W237)","v":0}]
["",null,null,null,null,null,null,null,null,null,null,null,null,null,null,null,null,20.49,0,20.49,20.49,20.49,0,{"$f":"IF('Podia opgaven'!C239=\"ART\",0,W238)","v":0}]
["",null,null,null,null,null,null,null,null,null,null,null,null,null,null,null,null,20.49,0,20.49,20.49,20.49,0,{"$f":"IF('Podia opgaven'!C240=\"ART\",0,W239)","v":0}]
["",null,null,null,null,null,null,null,null,null,null,null,null,null,null,null,null,20.49,0,20.49,20.49,20.49,0,{"$f":"IF('Podia opgaven'!C241=\"ART\",0,W240)","v":0}]
["",null,null,null,null,null,null,null,null,null,null,null,null,null,null,null,null,20.49,0,20.49,20.49,20.49,0,{"$f":"IF('Podia opgaven'!C242=\"ART\",0,W241)","v":0}]
["",null,null,null,null,null,null,null,null,null,null,null,null,null,null,null,null,20.49,0,20.49,20.49,20.49,0,{"$f":"IF('Podia opgaven'!C243=\"ART\",0,W242)","v":0}]
["",null,null,null,null,null,null,null,null,null,null,null,null,null,null,null,null,20.49,0,20.49,20.49,20.49,0,{"$f":"IF('Podia opgaven'!C244=\"ART\",0,W243)","v":0}]
["",null,null,null,null,null,null,null,null,null,null,null,null,null,null,null,null,20.49,0,20.49,20.49,20.49,0,{"$f":"IF('Podia opgaven'!C245=\"ART\",0,W244)","v":0}]
["",null,null,null,null,null,null,null,null,null,null,null,null,null,null,null,null,20.49,0,20.49,20.49,20.49,0,{"$f":"IF('Podia opgaven'!C246=\"ART\",0,W245)","v":0}]
["",null,null,null,null,null,null,null,null,null,null,null,null,null,null,null,null,20.49,0,20.49,20.49,20.49,0,{"$f":"IF('Podia opgaven'!C247=\"ART\",0,W246)","v":0}]
["",null,null,null,null,null,null,null,null,null,null,null,null,null,null,null,null,20.49,0,20.49,20.49,20.49,0,{"$f":"IF('Podia opgaven'!C248=\"ART\",0,W247)","v":0}]
["",null,null,null,null,null,null,null,null,null,null,null,null,null,null,null,null,20.49,0,20.49,20.49,20.49,0,{"$f":"IF('Podia opgaven'!C249=\"ART\",0,W248)","v":0}]
["",null,null,null,null,null,null,null,null,null,null,null,null,null,null,null,null,20.49,0,20.49,20.49,20.49,0,{"$f":"IF('Podia opgaven'!C250=\"ART\",0,W249)","v":0}]
["",null,null,null,null,null,null,null,null,null,null,null,null,null,null,null,null,20.49,0,20.49,20.49,20.49,0,{"$f":"IF('Podia opgaven'!C251=\"ART\",0,W250)","v":0}]
["",null,null,null,null,null,null,null,null,null,null,null,null,null,null,null,null,20.49,0,20.49,20.49,20.49,0,{"$f":"IF('Podia opgaven'!C252=\"ART\",0,W251)","v":0}]
["",null,null,null,null,null,null,null,null,null,null,null,null,null,null,null,null,20.49,0,20.49,20.49,20.49,0,{"$f":"IF('Podia opgaven'!C253=\"ART\",0,W252)","v":0}]
["",null,null,null,null,null,null,null,null,null,null,null,null,null,null,null,null,20.49,0,20.49,20.49,20.49,0,{"$f":"IF('Podia opgaven'!C254=\"ART\",0,W253)","v":0}]
["",null,null,null,null,null,null,null,null,null,null,null,null,null,null,null,null,20.49,0,20.49,20.49,20.49,0,{"$f":"IF('Podia opgaven'!C255=\"ART\",0,W254)","v":0}]
["",null,null,null,null,null,null,null,null,null,null,null,null,null,null,null,null,20.49,0,20.49,20.49,20.49,0,{"$f":"IF('Podia opgaven'!C256=\"ART\",0,W255)","v":0}]
["",null,null,null,null,null,null,null,null,null,null,null,null,null,null,null,null,20.49,0,20.49,20.49,20.49,0,{"$f":"IF('Podia opgaven'!C257=\"ART\",0,W256)","v":0}]
["",null,null,null,null,null,null,null,null,null,null,null,null,null,null,null,null,20.49,0,20.49,20.49,20.49,0,{"$f":"IF('Podia opgaven'!C258=\"ART\",0,W257)","v":0}]
["",null,null,null,null,null,null,null,null,null,null,null,null,null,null,null,null,20.49,0,20.49,20.49,20.49,0,{"$f":"IF('Podia opgaven'!C259=\"ART\",0,W258)","v":0}]
["",null,null,null,null,null,null,null,null,null,null,null,null,null,null,null,null,20.49,0,20.49,20.49,20.49,0,{"$f":"IF('Podia opgaven'!C260=\"ART\",0,W259)","v":0}]
["",null,null,null,null,null,null,null,null,null,null,null,null,null,null,null,null,20.49,0,20.49,20.49,20.49,0,{"$f":"IF('Podia opgaven'!C261=\"ART\",0,W260)","v":0}]
["",null,null,null,null,null,null,null,null,null,null,null,null,null,null,null,null,20.49,0,20.49,20.49,20.49,0,{"$f":"IF('Podia opgaven'!C262=\"ART\",0,W261)","v":0}]
["",null,null,null,null,null,null,null,null,null,null,null,null,null,null,null,null,20.49,0,20.49,20.49,20.49,0,{"$f":"IF('Podia opgaven'!C263=\"ART\",0,W262)","v":0}]
["",null,null,null,null,null,null,null,null,null,null,null,null,null,null,null,null,20.49,0,20.49,20.49,20.49,0,{"$f":"IF('Podia opgaven'!C264=\"ART\",0,W263)","v":0}]
["",null,null,null,null,null,null,null,null,null,null,null,null,null,null,null,null,20.49,0,20.49,20.49,20.49,0,{"$f":"IF('Podia opgaven'!C265=\"ART\",0,W264)","v":0}]
["",null,null,null,null,null,null,null,null,null,null,null,null,null,null,null,null,20.49,0,20.49,20.49,20.49,0,{"$f":"IF('Podia opgaven'!C266=\"ART\",0,W265)","v":0}]
["",null,null,null,null,null,null,null,null,null,null,null,null,null,null,null,null,20.49,0,20.49,20.49,20.49,0,{"$f":"IF('Podia opgaven'!C267=\"ART\",0,W266)","v":0}]
["",null,null,null,null,null,null,null,null,null,null,null,null,null,null,null,null,20.49,0,20.49,20.49,20.49,0,{"$f":"IF('Podia opgaven'!C268=\"ART\",0,W267)","v":0}]
["",null,null,null,null,null,null,null,null,null,null,null,null,null,null,null,null,20.49,0,20.49,20.49,20.49,0,{"$f":"IF('Podia opgaven'!C269=\"ART\",0,W268)","v":0}]
["",null,null,null,null,null,null,null,null,null,null,null,null,null,null,null,null,20.49,0,20.49,20.49,20.49,0,{"$f":"IF('Podia opgaven'!C270=\"ART\",0,W269)","v":0}]
["",null,null,null,null,null,null,null,null,null,null,null,null,null,null,null,null,20.49,0,20.49,20.49,20.49,0,{"$f":"IF('Podia opgaven'!C271=\"ART\",0,W270)","v":0}]
["",null,null,null,null,null,null,null,null,null,null,null,null,null,null,null,null,20.49,0,20.49,20.49,20.49,0,{"$f":"IF('Podia opgaven'!C272=\"ART\",0,W271)","v":0}]
["",null,null,null,null,null,null,null,null,null,null,null,null,null,null,null,null,20.49,0,20.49,20.49,20.49,0,{"$f":"IF('Podia opgaven'!C273=\"ART\",0,W272)","v":0}]
["",null,null,null,null,null,null,null,null,null,null,null,null,null,null,null,null,20.49,0,20.49,20.49,20.49,0,{"$f":"IF('Podia opgaven'!C274=\"ART\",0,W273)","v":0}]
["",null,null,null,null,null,null,null,null,null,null,null,null,null,null,null,null,20.49,0,20.49,20.49,20.49,0,{"$f":"IF('Podia opgaven'!C275=\"ART\",0,W274)","v":0}]
["",null,null,null,null,null,null,null,null,null,null,null,null,null,null,null,null,20.49,0,20.49,20.49,20.49,0,{"$f":"IF('Podia opgaven'!C276=\"ART\",0,W275)","v":0}]
["",null,null,null,null,null,null,null,null,null,null,null,null,null,null,null,null,20.49,0,20.49,20.49,20.49,0,{"$f":"IF('Podia opgaven'!C277=\"ART\",0,W276)","v":0}]
["",null,null,null,null,null,null,null,null,null,null,null,null,null,null,null,null,{"$f":"SUM((((CEILING(F277,50)/50))-1)*3.32)+23.81","v":20.49},{"$f":"IF(J277>K277,J277,K277)*M277","v":0},20.49,20.49,{"$f":"IF(M277=\"minimum\",R277,U277)","v":20.49},{"$f":"IF(M277=\"\",0,V277)","v":0},{"$f":"IF('Podia opgaven'!C278=\"ART\",0,W277)","v":0}]
["",null,null,null,null,null,null,null,null,null,null,null,null,null,null,null,null,20.49,0,20.49,20.49,20.49,0,{"$f":"IF('Podia opgaven'!C279=\"ART\",0,W278)","v":0}]
[{"$f":"IF(C279&D279=\"\",\"\",IF(C279=\"\",\"ART\",IF(D279=\"\",\"EVT\",IF(C279&D279<>\"\",\"EVT\"))))","v":""},null,null,null,null,null,null,null,null,null,null,null,null,null,null,null,null,20.49,0,{"$f":"IF(S279>R279,S279,R279)","v":20.49},{"$f":"IF(T279=0,R279,T279)","v":20.49},20.49,0,{"$f":"IF('Podia opgaven'!C280=\"ART\",0,W279)","v":0}]
["",null,null,null,null,null,null,null,null,null,null,null,null,null,null,null,null,20.49,0,20.49,20.49,20.49,0,{"$f":"IF('Podia opgaven'!C281=\"ART\",0,W280)","v":0}]
["",null,null,null,null,null,null,null,null,null,null,null,null,null,null,null,null,20.49,0,20.49,20.49,20.49,0,{"$f":"IF('Podia opgaven'!C282=\"ART\",0,W281)","v":0}]
["",null,null,null,null,null,null,null,null,null,null,null,null,null,null,null,null,20.49,0,20.49,20.49,20.49,0,{"$f":"IF('Podia opgaven'!C283=\"ART\",0,W282)","v":0}]
["",null,null,null,null,null,null,null,null,null,null,null,null,null,null,null,null,20.49,0,20.49,20.49,20.49,0,{"$f":"IF('Podia opgaven'!C284=\"ART\",0,W283)","v":0}]
["",null,null,null,null,null,null,null,null,null,null,null,null,null,null,null,null,20.49,0,20.49,20.49,20.49,0,{"$f":"IF('Podia opgaven'!C285=\"ART\",0,W284)","v":0}]
["",null,null,null,null,null,null,null,null,null,null,null,null,null,null,null,null,20.49,0,20.49,20.49,20.49,0,{"$f":"IF('Podia opgaven'!C286=\"ART\",0,W285)","v":0}]
["",null,null,null,null,null,null,null,null,null,null,null,null,null,null,null,null,20.49,0,20.49,20.49,20.49,0,{"$f":"IF('Podia opgaven'!C287=\"ART\",0,W286)","v":0}]
["",null,null,null,null,null,null,null,null,null,null,null,null,null,null,null,null,20.49,0,20.49,20.49,20.49,0,{"$f":"IF('Podia opgaven'!C288=\"ART\",0,W287)","v":0}]
["",null,null,null,null,null,null,null,null,null,null,null,null,null,null,null,null,20.49,0,20.49,20.49,20.49,0,{"$f":"IF('Podia opgaven'!C289=\"ART\",0,W288)","v":0}]
["",null,null,null,null,null,null,null,null,null,null,null,null,null,null,null,null,20.49,0,20.49,20.49,20.49,0,{"$f":"IF('Podia opgaven'!C290=\"ART\",0,W289)","v":0}]
["",null,null,null,null,null,null,null,null,null,null,null,null,null,null,null,null,20.49,0,20.49,20.49,20.49,0,{"$f":"IF('Podia opgaven'!C291=\"ART\",0,W290)","v":0}]
["",null,null,null,null,null,null,null,null,null,null,null,null,null,null,null,null,20.49,0,20.49,20.49,20.49,0,{"$f":"IF('Podia opgaven'!C292=\"ART\",0,W291)","v":0}]
["",null,null,null,null,null,null,null,null,null,null,null,null,null,null,null,null,20.49,0,20.49,20.49,20.49,0,{"$f":"IF('Podia opgaven'!C293=\"ART\",0,W292)","v":0}]
["",null,null,null,null,null,null,null,null,null,null,null,null,null,null,null,null,20.49,0,20.49,20.49,20.49,0,{"$f":"IF('Podia opgaven'!C294=\"ART\",0,W293)","v":0}]
["",null,null,null,null,null,null,null,null,null,null,null,null,null,null,null,null,20.49,0,20.49,20.49,20.49,0,{"$f":"IF('Podia opgaven'!C295=\"ART\",0,W294)","v":0}]
["",null,null,null,null,null,null,null,null,null,null,null,null,null,null,null,null,20.49,0,20.49,20.49,20.49,0,{"$f":"IF('Podia opgaven'!C296=\"ART\",0,W295)","v":0}]
["",null,null,null,null,null,null,null,null,null,null,null,null,null,null,null,null,20.49,0,20.49,20.49,20.49,0,{"$f":"IF('Podia opgaven'!C297=\"ART\",0,W296)","v":0}]
["",null,null,null,null,null,null,null,null,null,null,null,null,null,null,null,null,20.49,0,20.49,20.49,20.49,0,{"$f":"IF('Podia opgaven'!C298=\"ART\",0,W297)","v":0}]
["",null,null,null,null,null,null,null,null,null,null,null,null,null,null,null,null,20.49,0,20.49,20.49,20.49,0,{"$f":"IF('Podia opgaven'!C299=\"ART\",0,W298)","v":0}]
["",null,null,null,null,null,null,null,null,null,null,null,null,null,null,null,null,20.49,0,20.49,20.49,20.49,0,{"$f":"IF('Podia opgaven'!C300=\"ART\",0,W299)","v":0}]
["",null,null,null,null,null,null,null,null,null,null,null,null,null,null,null,null,20.49,0,20.49,20.49,20.49,0,{"$f":"IF('Podia opgaven'!C301=\"ART\",0,W300)","v":0}]
["",null,null,null,null,null,null,null,null,null,null,null,null,null,null,null,null,20.49,0,20.49,20.49,20.49,0,{"$f":"IF('Podia opgaven'!C302=\"ART\",0,W301)","v":0}]
["",null,null,null,null,null,null,null,null,null,null,null,null,null,null,null,null,20.49,0,20.49,20.49,20.49,0,{"$f":"IF('Podia opgaven'!C303=\"ART\",0,W302)","v":0}]
["",null,null,null,null,null,null,null,null,null,null,null,null,null,null,null,null,20.49,0,20.49,20.49,20.49,0,{"$f":"IF('Podia opgaven'!C304=\"ART\",0,W303)","v":0}]
["",null,null,null,null,null,null,null,null,null,null,null,null,null,null,null,null,20.49,0,20.49,20.49,20.49,0,{"$f":"IF('Podia opgaven'!C305=\"ART\",0,W304)","v":0}]
["",null,null,null,null,null,null,null,null,null,null,null,null,null,null,null,null,20.49,0,20.49,20.49,20.49,0,{"$f":"IF('Podia opgaven'!C306=\"ART\",0,W305)","v":0}]
["",null,null,null,null,null,null,null,null,null,null,null,null,null,null,null,null,20.49,0,20.49,20.49,20.49,0,{"$f":"IF('Podia opgaven'!C307=\"ART\",0,W306)","v":0}]
["",null,null,null,null,null,null,null,null,null,null,null,null,null,null,null,null,20.49,0,20.49,20.49,20.49,0,{"$f":"IF('Podia opgaven'!C308=\"ART\",0,W307)","v":0}]
["",null,null,null,null,null,null,null,null,null,null,null,null,null,null,null,null,20.49,0,20.49,20.49,20.49,0,{"$f":"IF('Podia opgaven'!C309=\"ART\",0,W308)","v":0}]
["",null,null,null,null,null,null,null,null,null,null,null,null,null,null,null,null,20.49,0,20.49,20.49,20.49,0,{"$f":"IF('Podia opgaven'!C310=\"ART\",0,W309)","v":0}]
["",null,null,null,null,null,null,null,null,null,null,null,null,null,null,null,null,20.49,0,20.49,20.49,20.49,0,{"$f":"IF('Podia opgaven'!C311=\"ART\",0,W310)","v":0}]
["",null,null,null,null,null,null,null,null,null,null,null,null,null,null,null,null,20.49,0,20.49,20.49,20.49,0,{"$f":"IF('Podia opgaven'!C312=\"ART\",0,W311)","v":0}]
["",null,null,null,null,null,null,null,null,null,null,null,null,null,null,null,null,20.49,0,20.49,20.49,20.49,0,{"$f":"IF('Podia opgaven'!C313=\"ART\",0,W312)","v":0}]
["",null,null,null,null,null,null,null,null,null,null,null,null,null,null,null,null,20.49,0,20.49,20.49,20.49,0,{"$f":"IF('Podia opgaven'!C314=\"ART\",0,W313)","v":0}]
["",null,null,null,null,null,null,null,null,null,null,null,null,null,null,null,null,20.49,0,20.49,20.49,20.49,0,{"$f":"IF('Podia opgaven'!C315=\"ART\",0,W314)","v":0}]
["",null,null,null,null,null,null,null,null,null,null,null,null,null,null,null,null,20.49,0,20.49,20.49,20.49,0,{"$f":"IF('Podia opgaven'!C316=\"ART\",0,W315)","v":0}]
[{"$f":"IF(C316&D316=\"\",\"\",IF(C316=\"\",\"ART\",IF(D316=\"\",\"EVT\",IF(C316&D316<>\"\",\"EVT\"))))","v":""},null,null,null,null,null,null,null,null,null,null,null,null,null,null,null,null,20.49,0,20.49,20.49,20.49,0,{"$f":"IF('Podia opgaven'!C317=\"ART\",0,W316)","v":0}]
["",null,null,null,null,null,null,null,null,null,null,null,null,null,null,null,null,20.49,0,20.49,20.49,20.49,0,{"$f":"IF('Podia opgaven'!C318=\"ART\",0,W317)","v":0}]
["",null,null,null,null,null,null,null,null,null,null,null,null,null,null,null,null,20.49,0,20.49,20.49,20.49,0,{"$f":"IF('Podia opgaven'!C319=\"ART\",0,W318)","v":0}]
["",null,null,null,null,null,null,null,null,null,null,null,null,null,null,null,null,20.49,0,20.49,20.49,20.49,0,{"$f":"IF('Podia opgaven'!C320=\"ART\",0,W319)","v":0}]
["",null,null,null,null,null,null,null,null,null,null,null,null,null,null,null,null,20.49,0,20.49,20.49,20.49,0,{"$f":"IF('Podia opgaven'!C321=\"ART\",0,W320)","v":0}]
["",null,null,null,null,null,null,null,null,null,null,null,null,null,null,null,null,20.49,0,20.49,20.49,20.49,0,{"$f":"IF('Podia opgaven'!C322=\"ART\",0,W321)","v":0}]
["",null,null,null,null,null,null,null,null,null,null,null,null,null,null,null,null,20.49,0,20.49,20.49,20.49,0,{"$f":"IF('Podia opgaven'!C323=\"ART\",0,W322)","v":0}]
["",null,null,null,null,null,null,null,null,null,null,null,null,null,null,null,null,20.49,0,20.49,20.49,20.49,0,{"$f":"IF('Podia opgaven'!C324=\"ART\",0,W323)","v":0}]
["",null,null,null,null,null,null,null,null,null,null,null,null,null,null,null,null,20.49,0,20.49,20.49,20.49,0,{"$f":"IF('Podia opgaven'!C325=\"ART\",0,W324)","v":0}]
["",null,null,null,null,null,null,null,null,null,null,null,null,null,null,null,null,20.49,0,20.49,20.49,20.49,0,{"$f":"IF('Podia opgaven'!C326=\"ART\",0,W325)","v":0}]
["",null,null,null,null,null,null,null,null,null,null,null,null,null,null,null,null,20.49,0,20.49,20.49,20.49,0,{"$f":"IF('Podia opgaven'!C327=\"ART\",0,W326)","v":0}]
["",null,null,null,null,null,null,null,null,null,null,null,null,null,null,null,null,20.49,0,20.49,20.49,20.49,0,{"$f":"IF('Podia opgaven'!C328=\"ART\",0,W327)","v":0}]
["",null,null,null,null,null,null,null,null,null,null,null,null,null,null,null,null,20.49,0,20.49,20.49,20.49,0,{"$f":"IF('Podia opgaven'!C329=\"ART\",0,W328)","v":0}]
["",null,null,null,null,null,null,null,null,null,null,null,null,null,null,null,null,20.49,0,20.49,20.49,20.49,0,{"$f":"IF('Podia opgaven'!C330=\"ART\",0,W329)","v":0}]
["",null,null,null,null,null,null,null,null,null,null,null,null,null,null,null,null,20.49,0,20.49,20.49,20.49,0,{"$f":"IF('Podia opgaven'!C331=\"ART\",0,W330)","v":0}]
["",null,null,null,null,null,null,null,null,null,null,null,null,null,null,null,null,20.49,0,20.49,20.49,20.49,0,{"$f":"IF('Podia opgaven'!C332=\"ART\",0,W331)","v":0}]
["",null,null,null,null,null,null,null,null,null,null,null,null,null,null,null,null,20.49,0,20.49,20.49,20.49,0,{"$f":"IF('Podia opgaven'!C333=\"ART\",0,W332)","v":0}]
["",null,null,null,null,null,null,null,null,null,null,null,null,null,null,null,null,20.49,0,20.49,20.49,20.49,0,{"$f":"IF('Podia opgaven'!C334=\"ART\",0,W333)","v":0}]
["",null,null,null,null,null,null,null,null,null,null,null,null,null,null,null,null,20.49,0,20.49,20.49,20.49,0,{"$f":"IF('Podia opgaven'!C335=\"ART\",0,W334)","v":0}]
["",null,null,null,null,null,null,null,null,null,null,null,null,null,null,null,null,20.49,0,20.49,20.49,20.49,0,{"$f":"IF('Podia opgaven'!C336=\"ART\",0,W335)","v":0}]
["",null,null,null,null,null,null,null,null,null,null,null,null,null,null,null,null,20.49,0,20.49,20.49,20.49,0,{"$f":"IF('Podia opgaven'!C337=\"ART\",0,W336)","v":0}]
["",null,null,null,null,null,null,null,null,null,null,null,null,null,null,null,null,20.49,0,20.49,20.49,20.49,0,{"$f":"IF('Podia opgaven'!C338=\"ART\",0,W337)","v":0}]
["",null,null,null,null,null,null,null,null,null,null,null,null,null,null,null,null,20.49,0,20.49,20.49,20.49,0,{"$f":"IF('Podia opgaven'!C339=\"ART\",0,W338)","v":0}]
["",null,null,null,null,null,null,null,null,null,null,null,null,null,null,null,null,20.49,0,20.49,20.49,20.49,0,{"$f":"IF('Podia opgaven'!C340=\"ART\",0,W339)","v":0}]
["",null,null,null,null,null,null,null,null,null,null,null,null,null,null,null,null,20.49,0,20.49,20.49,20.49,0,{"$f":"IF('Podia opgaven'!C341=\"ART\",0,W340)","v":0}]
["",null,null,null,null,null,null,null,null,null,null,null,null,null,null,null,null,{"$f":"SUM((((CEILING(F341,50)/50))-1)*3.32)+23.81","v":20.49},{"$f":"IF(J341>K341,J341,K341)*M341","v":0},20.49,20.49,{"$f":"IF(M341=\"minimum\",R341,U341)","v":20.49},{"$f":"IF(M341=\"\",0,V341)","v":0},{"$f":"IF('Podia opgaven'!C342=\"ART\",0,W341)","v":0}]
["",null,null,null,null,null,null,null,null,null,null,null,null,null,null,null,null,20.49,0,20.49,20.49,20.49,0,{"$f":"IF('Podia opgaven'!C343=\"ART\",0,W342)","v":0}]
["",null,null,null,null,null,null,null,null,null,null,null,null,null,null,null,null,20.49,0,{"$f":"IF(S343>R343,S343,R343)","v":20.49},{"$f":"IF(T343=0,R343,T343)","v":20.49},20.49,0,{"$f":"IF('Podia opgaven'!C344=\"ART\",0,W343)","v":0}]
["",null,null,null,null,null,null,null,null,null,null,null,null,null,null,null,null,20.49,0,20.49,20.49,20.49,0,{"$f":"IF('Podia opgaven'!C345=\"ART\",0,W344)","v":0}]
["",null,null,null,null,null,null,null,null,null,null,null,null,null,null,null,null,20.49,0,20.49,20.49,20.49,0,{"$f":"IF('Podia opgaven'!C346=\"ART\",0,W345)","v":0}]
["",null,null,null,null,null,null,null,null,null,null,null,null,null,null,null,null,20.49,0,20.49,20.49,20.49,0,{"$f":"IF('Podia opgaven'!C347=\"ART\",0,W346)","v":0}]
["",null,null,null,null,null,null,null,null,null,null,null,null,null,null,null,null,20.49,0,20.49,20.49,20.49,0,{"$f":"IF('Podia opgaven'!C348=\"ART\",0,W347)","v":0}]
["",null,null,null,null,null,null,null,null,null,null,null,null,null,null,null,null,20.49,0,20.49,20.49,20.49,0,{"$f":"IF('Podia opgaven'!C349=\"ART\",0,W348)","v":0}]
["",null,null,null,null,null,null,null,null,null,null,null,null,null,null,null,null,20.49,0,20.49,20.49,20.49,0,{"$f":"IF('Podia opgaven'!C350=\"ART\",0,W349)","v":0}]
["",null,null,null,null,null,null,null,null,null,null,null,null,null,null,null,null,20.49,0,20.49,20.49,20.49,0,{"$f":"IF('Podia opgaven'!C351=\"ART\",0,W350)","v":0}]
["",null,null,null,null,null,null,null,null,null,null,null,null,null,null,null,null,20.49,0,20.49,20.49,20.49,0,{"$f":"IF('Podia opgaven'!C352=\"ART\",0,W351)","v":0}]
["",null,null,null,null,null,null,null,null,null,null,null,null,null,null,null,null,20.49,0,20.49,20.49,20.49,0,{"$f":"IF('Podia opgaven'!C353=\"ART\",0,W352)","v":0}]
["",null,null,null,null,null,null,null,null,null,null,null,null,null,null,null,null,20.49,0,20.49,20.49,20.49,0,{"$f":"IF('Podia opgaven'!C354=\"ART\",0,W353)","v":0}]
["",null,null,null,null,null,null,null,null,null,null,null,null,null,null,null,null,20.49,0,20.49,20.49,20.49,0,{"$f":"IF('Podia opgaven'!C355=\"ART\",0,W354)","v":0}]
["",null,null,null,null,null,null,null,null,null,null,null,null,null,null,null,null,20.49,0,20.49,20.49,20.49,0,{"$f":"IF('Podia opgaven'!C356=\"ART\",0,W355)","v":0}]
["",null,null,null,null,null,null,null,null,null,null,null,null,null,null,null,null,20.49,0,20.49,20.49,20.49,0,{"$f":"IF('Podia opgaven'!C357=\"ART\",0,W356)","v":0}]
["",null,null,null,null,null,null,null,null,null,null,null,null,null,null,null,null,20.49,0,20.49,20.49,20.49,0,{"$f":"IF('Podia opgaven'!C358=\"ART\",0,W357)","v":0}]
["",null,null,null,null,null,null,null,null,null,null,null,null,null,null,null,null,20.49,0,20.49,20.49,20.49,0,{"$f":"IF('Podia opgaven'!C359=\"ART\",0,W358)","v":0}]
["",null,null,null,null,null,null,null,null,null,null,null,null,null,null,null,null,20.49,0,20.49,20.49,20.49,0,{"$f":"IF('Podia opgaven'!C360=\"ART\",0,W359)","v":0}]
["",null,null,null,null,null,null,null,null,null,null,null,null,null,null,null,null,20.49,0,20.49,20.49,20.49,0,{"$f":"IF('Podia opgaven'!C361=\"ART\",0,W360)","v":0}]
["",null,null,null,null,null,null,null,null,null,null,null,null,null,null,null,null,20.49,0,20.49,20.49,20.49,0,{"$f":"IF('Podia opgaven'!C362=\"ART\",0,W361)","v":0}]
["",null,null,null,null,null,null,null,null,null,null,null,null,null,null,null,null,20.49,0,20.49,20.49,20.49,0,{"$f":"IF('Podia opgaven'!C363=\"ART\",0,W362)","v":0}]
["",null,null,null,null,null,null,null,null,null,null,null,null,null,null,null,null,20.49,0,20.49,20.49,20.49,0,{"$f":"IF('Podia opgaven'!C364=\"ART\",0,W363)","v":0}]
["",null,null,null,null,null,null,null,null,null,null,null,null,null,null,null,null,20.49,0,20.49,20.49,20.49,0,{"$f":"IF('Podia opgaven'!C365=\"ART\",0,W364)","v":0}]
["",null,null,null,null,null,null,null,null,null,null,null,null,null,null,null,null,20.49,0,20.49,20.49,20.49,0,{"$f":"IF('Podia opgaven'!C366=\"ART\",0,W365)","v":0}]
["",null,null,null,null,null,null,null,null,null,null,null,null,null,null,null,null,20.49,0,20.49,20.49,20.49,0,{"$f":"IF('Podia opgaven'!C367=\"ART\",0,W366)","v":0}]
["",null,null,null,null,null,null,null,null,null,null,null,null,null,null,null,null,20.49,0,20.49,20.49,20.49,0,{"$f":"IF('Podia opgaven'!C368=\"ART\",0,W367)","v":0}]
["",null,null,null,null,null,null,null,null,null,null,null,null,null,null,null,null,20.49,0,20.49,20.49,20.49,0,{"$f":"IF('Podia opgaven'!C369=\"ART\",0,W368)","v":0}]
["",null,null,null,null,null,null,null,null,null,null,null,null,null,null,null,null,20.49,0,20.49,20.49,20.49,0,{"$f":"IF('Podia opgaven'!C370=\"ART\",0,W369)","v":0}]
["",null,null,null,null,null,null,null,null,null,null,null,null,null,null,null,null,20.49,0,20.49,20.49,20.49,0,{"$f":"IF('Podia opgaven'!C371=\"ART\",0,W370)","v":0}]
["",null,null,null,null,null,null,null,null,null,null,null,null,null,null,null,null,20.49,0,20.49,20.49,20.49,0,{"$f":"IF('Podia opgaven'!C372=\"ART\",0,W371)","v":0}]
["",null,null,null,null,null,null,null,null,null,null,null,null,null,null,null,null,20.49,0,20.49,20.49,20.49,0,{"$f":"IF('Podia opgaven'!C373=\"ART\",0,W372)","v":0}]
["",null,null,null,null,null,null,null,null,null,null,null,null,null,null,null,null,20.49,0,20.49,20.49,20.49,0,{"$f":"IF('Podia opgaven'!C374=\"ART\",0,W373)","v":0}]
["",null,null,null,null,null,null,null,null,null,null,null,null,null,null,null,null,20.49,0,20.49,20.49,20.49,0,{"$f":"IF('Podia opgaven'!C375=\"ART\",0,W374)","v":0}]
["",null,null,null,null,null,null,null,null,null,null,null,null,null,null,null,null,20.49,0,20.49,20.49,20.49,0,{"$f":"IF('Podia opgaven'!C376=\"ART\",0,W375)","v":0}]
["",null,null,null,null,null,null,null,null,null,null,null,null,null,null,null,null,20.49,0,20.49,20.49,20.49,0,{"$f":"IF('Podia opgaven'!C377=\"ART\",0,W376)","v":0}]
["",null,null,null,null,null,null,null,null,null,null,null,null,null,null,null,null,20.49,0,20.49,20.49,20.49,0,{"$f":"IF('Podia opgaven'!C378=\"ART\",0,W377)","v":0}]
["",null,null,null,null,null,null,null,null,null,null,null,null,null,null,null,null,20.49,0,20.49,20.49,20.49,0,{"$f":"IF('Podia opgaven'!C379=\"ART\",0,W378)","v":0}]
["",null,null,null,null,null,null,null,null,null,null,null,null,null,null,null,null,20.49,0,20.49,20.49,20.49,0,{"$f":"IF('Podia opgaven'!C380=\"ART\",0,W379)","v":0}]
[{"$f":"IF(C380&D380=\"\",\"\",IF(C380=\"\",\"ART\",IF(D380=\"\",\"EVT\",IF(C380&D380<>\"\",\"EVT\"))))","v":""},null,null,null,null,null,null,null,null,null,null,null,null,null,null,null,null,20.49,0,20.49,20.49,20.49,0,{"$f":"IF('Podia opgaven'!C381=\"ART\",0,W380)","v":0}]
["",null,null,null,null,null,null,null,null,null,null,null,null,null,null,null,null,20.49,0,20.49,20.49,20.49,0,{"$f":"IF('Podia opgaven'!C382=\"ART\",0,W381)","v":0}]
["",null,null,null,null,null,null,null,null,null,null,null,null,null,null,null,null,20.49,0,20.49,20.49,20.49,0,{"$f":"IF('Podia opgaven'!C383=\"ART\",0,W382)","v":0}]
["",null,null,null,null,null,null,null,null,null,null,null,null,null,null,null,null,20.49,0,20.49,20.49,20.49,0,{"$f":"IF('Podia opgaven'!C384=\"ART\",0,W383)","v":0}]
["",null,null,null,null,null,null,null,null,null,null,null,null,null,null,null,null,20.49,0,20.49,20.49,20.49,0,{"$f":"IF('Podia opgaven'!C385=\"ART\",0,W384)","v":0}]
["",null,null,null,null,null,null,null,null,null,null,null,null,null,null,null,null,20.49,0,20.49,20.49,20.49,0,{"$f":"IF('Podia opgaven'!C386=\"ART\",0,W385)","v":0}]
["",null,null,null,null,null,null,null,null,null,null,null,null,null,null,null,null,20.49,0,20.49,20.49,20.49,0,{"$f":"IF('Podia opgaven'!C387=\"ART\",0,W386)","v":0}]
["",null,null,null,null,null,null,null,null,null,null,null,null,null,null,null,null,20.49,0,20.49,20.49,20.49,0,{"$f":"IF('Podia opgaven'!C388=\"ART\",0,W387)","v":0}]
["",null,null,null,null,null,null,null,null,null,null,null,null,null,null,null,null,20.49,0,20.49,20.49,20.49,0,{"$f":"IF('Podia opgaven'!C389=\"ART\",0,W388)","v":0}]
["",null,null,null,null,null,null,null,null,null,null,null,null,null,null,null,null,20.49,0,20.49,20.49,20.49,0,{"$f":"IF('Podia opgaven'!C390=\"ART\",0,W389)","v":0}]

{"sheet":"Rep 1","index":3,"n_rows":51,"n_cols":11,"rows_kept":51,"cut":false,"hidden":false,"merged":[[6,0,6,3]]}
[]
["Naam uitvoerend artiest(en)","Datum optreden "]
[{"$f":"IF('Podia opgaven'!D7=\"\",\"\",'Podia opgaven'!D7)","v":""},{"$f":"IF('Podia opgaven'!C7,'Podia opgaven'!C7,\"\")","v":""},{"$f":"IF(I6=0,#REF!,K6)","v":{"$error":"#REF!"}}]
[]
[null,null,null,null,null,null,null,null,null,null,"Percentage"]
[null,null,null,null,null,null,null,null,{"$f":"I51+J51","v":0},{"$f":"I51/I6","v":{"$error":"#DIV/0!"}},{"$f":"IF(J6=0,0,IF(J6<0.34,3, IF(J6<0.67,5,7)))","v":{"$error":"#DIV/0!"}}]
["Gespeeld repertoire",null,null,null,null,{"$f":"_xlfn.IFS(F11=\"Beschermd\",\"Waar\",F12=\"Beschermd\",\"Waar\",F13=\"Beschermd\",\"Waar\",F14=\"Beschermd\",\"Waar\",F15=\"Beschermd\",\"Waar\",F16=\"Beschermd\",\"Waar\",F17=\"Beschermd\",\"Waar\",F18=\"Beschermd\",\"Waar\",F19=\"Beschermd\",\"Waar\",F20=\"Beschermd\",\"Waar\",F21=\"Beschermd\",\"Waar\",F22=\"Beschermd\",\"Waar\",F23=\"Beschermd\",\"Waar\",F24=\"Beschermd\",\"Waar\",F25=\"Beschermd\",\"Waar\",F26=\"Beschermd\",\"Waar\",F27=\"Beschermd\",\"Waar\",F28=\"Beschermd\",\"Waar\",F29=\"Beschermd\",\"Waar\",F30=\"Beschermd\",\"Waar\",F31=\"Beschermd\",\"Waar\",F32=\"Beschermd\",\"Waar\",F33=\"Beschermd\",\"Waar\",F34=\"Beschermd\",\"Waar\",F35=\"Beschermd\",\"Waar\",F36=\"Beschermd\",\"Waar\",F37=\"Beschermd\",\"Waar\",F38=\"Beschermd\",\"Waar\",F39=\"Beschermd\",\"Waar\",F40=\"Beschermd\",\"Waar\",F41=\"Beschermd\",\"Waar\",F42=\"Beschermd\",\"Waar\",F43=\"Beschermd\",\"Waar\",F44=\"Beschermd\",\"Waar\",F45=\"Beschermd\",\"Waar\",F46=\"Beschermd\",\"Waar\",F47=\"Beschermd\",\"Waar\",F48=\"Beschermd\",\"Waar\",F49=\"Beschermd\",\"Waar\",F50=\"Beschermd\",\"Waar\")","v":{"$error":"#N/A"}}]
[]
["Muziekwerk","Componist / Tekstdichter","Arrangeur / Bewerker","Tijdsduur",null,"Beschermd of vrij"]
["Titel ","Voor- en achternaam","Voor- en achternaam"," In minuten",null,null,null,null,"Tijd Beschermd","Tijd onbeschermd"]
[null,null,null,null,null,null,null,null,{"$f":"IF($F11=\"Beschermd\",D11,0)","v":0},{"$f":"IF($F11=\"Vrij\",D11,0)","v":0}]
[null,null,null,null,null,null,null,null,{"$f":"IF($F12=\"Beschermd\",D12,0)","v":0},{"$f":"IF($F12=\"Vrij\",D12,0)","v":0}]
[null,null,null,null,null,null,null,null,0,0]
[null,null,null,null,null,null,null,null,{"$f":"IF($F14=\"Beschermd\",D14,0)","v":0},{"$f":"IF($F14=\"Vrij\",D14,0)","v":0}]
[null,null,null,null,null,null,null,null,0,0]
[null,null,null,null,null,null,null,null,0,0]
[null,null,null,null,null,null,null,null,0,0]
[null,null,null,null,null,null,null,null,0,0]
[null,null,null,null,null,null,null,null,0,0]
[null,null,null,null,null,null,null,null,0,0]
[null,null,null,null,null,null,null,null,0,0]
[null,null,null,null,null,null,null,null,0,0]
[null,null,null,null,null,null,null,null,0,0]
[null,null,null,null,null,null,null,null,0,0]
[null,null,null,null,null,null,null,null,0,0]
[null,null,null,null,null,null,null,null,0,0]
[null,null,null,null,null,null,null,null,0,0]
[null,null,null,null,null,null,null,null,0,0]
[null,null,null,null,null,null,null,null,0,0]
[null,null,null,null,null,null,null,null,0,0]
[null,null,null,null,null,null,null,null,0,0]
[null,null,null,null,null,null,null,null,0,0]
[null,null,null,null,null,null,null,null,0,0]
[null,null,null,null,null,null,null,null,0,0]
[null,null,null,null,null,null,null,null,0,0]
[null,null,null,null,null,null,null,null,0,0]
[null,null,null,null,null,null,null,null,0,0]
[null,null,null,null,null,null,null,null,0,0]
[null,null,null,null,null,null,null,null,0,0]
[null,null,null,null,null,null,null,null,0,0]
[null,null,null,null,null,null,null,null,0,0]
[null,null,null,null,null,null,null,null,0,0]
[null,null,null,null,null,null,null,null,0,0]
[null,null,null,null,null,null,null,null,0,0]
[null,null,null,null,null,null,null,null,0,0]
[null,null,null,null,null,null,null,null,0,0]
[null,null,null,null,null,null,null,null,0,0]
[null,null,null,null,null,null,null,null,0,0]
[null,null,null,null,null,null,null,null,0,0]
[null,null,null,null,null,null,null,null,0,0]
[null,null,null,null,null,{"$f":"COUNTIF(F11:F50,\"Beschermd\")","v":0},null,null,{"$f":"SUM(I11:I50)","v":0},{"$f":"SUM(J11:J50)","v":0}]

{"sheet":"Rep 2","index":4,"n_rows":51,"n_cols":11,"rows_kept":51,"cut":false,"hidden":false,"merged":[[6,0,6,3]]}
[]
["Naam uitvoerend artiest(en)","Datum optreden "]
[{"$f":"IF('Podia opgaven'!D8=\"\",\"\",'Podia opgaven'!D8)","v":""},{"$f":"IF('Podia opgaven'!C8,'Podia opgaven'!C8,\"\")","v":""}]
[]
[null,null,null,null,null,null,null,null,null,null,"Percentage"]
[null,null,null,null,null,null,null,null,{"$f":"I51+J51","v":0},{"$f":"I51/I6","v":{"$error":"#DIV/0!"}},{"$f":"IF(J6=0,0,IF(J6<0.34,3, IF(J6<0.67,5,7)))","v":{"$error":"#DIV/0!"}}]
["Gespeeld repertoire",null,null,null,null,{"$f":"_xlfn.IFS(F11=\"Beschermd\",\"Waar\",F12=\"Beschermd\",\"Waar\",F13=\"Beschermd\",\"Waar\",F14=\"Beschermd\",\"Waar\",F15=\"Beschermd\",\"Waar\",F16=\"Beschermd\",\"Waar\",F17=\"Beschermd\",\"Waar\",F18=\"Beschermd\",\"Waar\",F19=\"Beschermd\",\"Waar\",F20=\"Beschermd\",\"Waar\",F21=\"Beschermd\",\"Waar\",F22=\"Beschermd\",\"Waar\",F23=\"Beschermd\",\"Waar\",F24=\"Beschermd\",\"Waar\",F25=\"Beschermd\",\"Waar\",F26=\"Beschermd\",\"Waar\",F27=\"Beschermd\",\"Waar\",F28=\"Beschermd\",\"Waar\",F29=\"Beschermd\",\"Waar\",F30=\"Beschermd\",\"Waar\",F31=\"Beschermd\",\"Waar\",F32=\"Beschermd\",\"Waar\",F33=\"Beschermd\",\"Waar\",F34=\"Beschermd\",\"Waar\",F35=\"Beschermd\",\"Waar\",F36=\"Beschermd\",\"Waar\",F37=\"Beschermd\",\"Waar\",F38=\"Beschermd\",\"Waar\",F39=\"Beschermd\",\"Waar\",F40=\"Beschermd\",\"Waar\",F41=\"Beschermd\",\"Waar\",F42=\"Beschermd\",\"Waar\",F43=\"Beschermd\",\"Waar\",F44=\"Beschermd\",\"Waar\",F45=\"Beschermd\",\"Waar\",F46=\"Beschermd\",\"Waar\",F47=\"Beschermd\",\"Waar\",F48=\"Beschermd\",\"Waar\",F49=\"Beschermd\",\"Waar\",F50=\"Beschermd\",\"Waar\")","v":{"$error":"#N/A"}}]
[]
["Muziekwerk","Componist / Tekstdichter","Arrangeur / Bewerker","Tijdsduur",null,"Beschermd of vrij"]
["Titel ","Voor- en achternaam","Voor- en achternaam"," In minuten",null,null,null,null,"Tijd Beschermd","Tijd onbeschermd"]
[null,null,null,null,null,null,null,null,{"$f":"IF($F11=\"Beschermd\",D11,0)","v":0},{"$f":"IF($F11=\"Vrij\",D11,0)","v":0}]
[null,null,null,null,null,null,null,null,{"$f":"IF($F12=\"Beschermd\",D12,0)","v":0},{"$f":"IF($F12=\"Vrij\",D12,0)","v":0}]
[null,null,null,null,null,null,null,null,0,0]
[null,null,null,null,null,null,null,null,0,0]
[null,null,null,null,null,null,null,null,0,0]
[null,null,null,null,null,null,null,null,0,0]
[null,null,null,null,null,null,null,null,0,0]
[null,null,null,null,null,null,null,null,0,0]
[null,null,null,null,null,null,null,null,0,0]
[null,null,null,null,null,null,null,null,0,0]
[null,null,null,null,null,null,null,null,0,0]
[null,null,null,null,null,null,null,null,0,0]
[null,null,null,null,null,null,null,null,0,0]
[null,null,null,null,null,null,null,null,0,0]
[null,null,null,null,null,null,null,null,0,0]
[null,null,null,null,null,null,null,null,0,0]
[null,null,null,null,null,null,null,null,0,0]
[null,null,null,null,null,null,null,null,0,0]
[null,null,null,null,null,null,null,null,0,0]
[null,null,null,null,null,null,null,null,0,0]
[null,null,null,null,null,null,null,null,0,0]
[null,null,null,null,null,null,null,null,0,0]
[null,null,null,null,null,null,null,null,0,0]
[null,null,null,null,null,null,null,null,0,0]
[null,null,null,null,null,null,null,null,0,0]
[null,null,null,null,null,null,null,null,0,0]
[null,null,null,null,null,null,null,null,0,0]
[null,null,null,null,null,null,null,null,0,0]
[null,null,null,null,null,null,null,null,0,0]
[null,null,null,null,null,null,null,null,0,0]
[null,null,null,null,null,null,null,null,0,0]
[null,null,null,null,null,null,null,null,0,0]
[null,null,null,null,null,null,null,null,0,0]
[null,null,null,null,null,null,null,null,0,0]
[null,null,null,null,null,null,null,null,0,0]
[null,null,null,null,null,null,null,null,0,0]
[null,null,null,null,null,null,null,null,0,0]
[null,null,null,null,null,null,null,null,0,0]
[null,null,null,null,null,null,null,null,0,0]
[null,null,null,null,null,null,null,null,0,0]
[null,null,null,null,null,{"$f":"COUNTIF(F11:F50,\"Beschermd\")","v":0},null,null,{"$f":"SUM(I11:I50)","v":0},{"$f":"SUM(J11:J50)","v":0}]

{"sheet":"Rep 3","index":5,"n_rows":51,"n_cols":11,"rows_kept":51,"cut":false,"hidden":false,"merged":[[6,0,6,3]]}
[]
["Naam uitvoerend artiest(en)","Datum optreden "]
[{"$f":"IF('Podia opgaven'!D9=\"\",\"\",'Podia opgaven'!D9)","v":""},{"$f":"IF('Podia opgaven'!C9,'Podia opgaven'!C9,\"\")","v":""}]
[]
[null,null,null,null,null,null,null,null,null,null,"Percentage"]
[null,null,null,null,null,null,null,null,{"$f":"I51+J51","v":0},{"$f":"I51/I6","v":{"$error":"#DIV/0!"}},{"$f":"IF(J6=0,0,IF(J6<0.34,3, IF(J6<0.67,5,7)))","v":{"$error":"#DIV/0!"}}]
["Gespeeld repertoire",null,null,null,null,{"$f":"_xlfn.IFS(F11=\"Beschermd\",\"Waar\",F12=\"Beschermd\",\"Waar\",F13=\"Beschermd\",\"Waar\",F14=\"Beschermd\",\"Waar\",F15=\"Beschermd\",\"Waar\",F16=\"Beschermd\",\"Waar\",F17=\"Beschermd\",\"Waar\",F18=\"Beschermd\",\"Waar\",F19=\"Beschermd\",\"Waar\",F20=\"Beschermd\",\"Waar\",F21=\"Beschermd\",\"Waar\",F22=\"Beschermd\",\"Waar\",F23=\"Beschermd\",\"Waar\",F24=\"Beschermd\",\"Waar\",F25=\"Beschermd\",\"Waar\",F26=\"Beschermd\",\"Waar\",F27=\"Beschermd\",\"Waar\",F28=\"Beschermd\",\"Waar\",F29=\"Beschermd\",\"Waar\",F30=\"Beschermd\",\"Waar\",F31=\"Beschermd\",\"Waar\",F32=\"Beschermd\",\"Waar\",F33=\"Beschermd\",\"Waar\",F34=\"Beschermd\",\"Waar\",F35=\"Beschermd\",\"Waar\",F36=\"Beschermd\",\"Waar\",F37=\"Beschermd\",\"Waar\",F38=\"Beschermd\",\"Waar\",F39=\"Beschermd\",\"Waar\",F40=\"Beschermd\",\"Waar\",F41=\"Beschermd\",\"Waar\",F42=\"Beschermd\",\"Waar\",F43=\"Beschermd\",\"Waar\",F44=\"Beschermd\",\"Waar\",F45=\"Beschermd\",\"Waar\",F46=\"Beschermd\",\"Waar\",F47=\"Beschermd\",\"Waar\",F48=\"Beschermd\",\"Waar\",F49=\"Beschermd\",\"Waar\",F50=\"Beschermd\",\"Waar\")","v":{"$error":"#N/A"}}]
[]
["Muziekwerk","Componist / Tekstdichter","Arrangeur / Bewerker","Tijdsduur",null,"Beschermd of vrij"]
["Titel ","Voor- en achternaam","Voor- en achternaam"," In minuten",null,null,null,null,"Tijd Beschermd","Tijd onbeschermd"]
[null,null,null,null,null,null,null,null,{"$f":"IF($F11=\"Beschermd\",D11,0)","v":0},{"$f":"IF($F11=\"Vrij\",D11,0)","v":0}]
[null,null,null,null,null,null,null,null,{"$f":"IF($F12=\"Beschermd\",D12,0)","v":0},{"$f":"IF($F12=\"Vrij\",D12,0)","v":0}]
[null,null,null,null,null,null,null,null,0,0]
[null,null,null,null,null,null,null,null,0,0]
[null,null,null,null,null,null,null,null,0,0]
[null,null,null,null,null,null,null,null,0,0]
[null,null,null,null,null,null,null,null,0,0]
[null,null,null,null,null,null,null,null,0,0]
[null,null,null,null,null,null,null,null,0,0]
[null,null,null,null,null,null,null,null,0,0]
[null,null,null,null,null,null,null,null,0,0]
[null,null,null,null,null,null,null,null,0,0]
[null,null,null,null,null,null,null,null,0,0]
[null,null,null,null,null,null,null,null,0,0]
[null,null,null,null,null,null,null,null,0,0]
[null,null,null,null,null,null,null,null,0,0]
[null,null,null,null,null,null,null,null,0,0]
[null,null,null,null,null,null,null,null,0,0]
[null,null,null,null,null,null,null,null,0,0]
[null,null,null,null,null,null,null,null,0,0]
[null,null,null,null,null,null,null,null,0,0]
[null,null,null,null,null,null,null,null,0,0]
[null,null,null,null,null,null,null,null,0,0]
[null,null,null,null,null,null,null,null,0,0]
[null,null,null,null,null,null,null,null,0,0]
[null,null,null,null,null,null,null,null,0,0]
[null,null,null,null,null,null,null,null,0,0]
[null,null,null,null,null,null,null,null,0,0]
[null,null,null,null,null,null,null,null,0,0]
[null,null,null,null,null,null,null,null,0,0]
[null,null,null,null,null,null,null,null,0,0]
[null,null,null,null,null,null,null,null,0,0]
[null,null,null,null,null,null,null,null,0,0]
[null,null,null,null,null,null,null,null,0,0]
[null,null,null,null,null,null,null,null,0,0]
[null,null,null,null,null,null,null,null,0,0]
[null,null,null,null,null,null,null,null,0,0]
[null,null,null,null,null,null,null,null,0,0]
[null,null,null,null,null,null,null,null,0,0]
[null,null,null,null,null,null,null,null,0,0]
[null,null,null,null,null,{"$f":"COUNTIF(F11:F50,\"Beschermd\")","v":0},null,null,{"$f":"SUM(I11:I50)","v":0},{"$f":"SUM(J11:J50)","v":0}]

{"sheet":"Rep 4","index":6,"n_rows":51,"n_cols":11,"rows_kept":51,"cut":false,"hidden":false,"merged":[[6,0,6,3]]}
[]
["Naam uitvoerend artiest(en)","Datum optreden "]
[{"$f":"IF('Podia opgaven'!D10=\"\",\"\",'Podia opgaven'!D10)","v":""},{"$f":"IF('Podia opgaven'!C10,'Podia opgaven'!C10,\"\")","v":""}]
[]
[null,null,null,null,null,null,null,null,null,null,"Percentage"]
[null,null,null,null,null,null,null,null,{"$f":"I51+J51","v":0},{"$f":"I51/I6","v":{"$error":"#DIV/0!"}},{"$f":"IF(J6=0,0,IF(J6<0.34,3, IF(J6<0.67,5,7)))","v":{"$error":"#DIV/0!"}}]
["Gespeeld repertoire",null,null,null,null,{"$f":"_xlfn.IFS(F11=\"Beschermd\",\"Waar\",F12=\"Beschermd\",\"Waar\",F13=\"Beschermd\",\"Waar\",F14=\"Beschermd\",\"Waar\",F15=\"Beschermd\",\"Waar\",F16=\"Beschermd\",\"Waar\",F17=\"Beschermd\",\"Waar\",F18=\"Beschermd\",\"Waar\",F19=\"Beschermd\",\"Waar\",F20=\"Beschermd\",\"Waar\",F21=\"Beschermd\",\"Waar\",F22=\"Beschermd\",\"Waar\",F23=\"Beschermd\",\"Waar\",F24=\"Beschermd\",\"Waar\",F25=\"Beschermd\",\"Waar\",F26=\"Beschermd\",\"Waar\",F27=\"Beschermd\",\"Waar\",F28=\"Beschermd\",\"Waar\",F29=\"Beschermd\",\"Waar\",F30=\"Beschermd\",\"Waar\",F31=\"Beschermd\",\"Waar\",F32=\"Beschermd\",\"Waar\",F33=\"Beschermd\",\"Waar\",F34=\"Beschermd\",\"Waar\",F35=\"Beschermd\",\"Waar\",F36=\"Beschermd\",\"Waar\",F37=\"Beschermd\",\"Waar\",F38=\"Beschermd\",\"Waar\",F39=\"Beschermd\",\"Waar\",F40=\"Beschermd\",\"Waar\",F41=\"Beschermd\",\"Waar\",F42=\"Beschermd\",\"Waar\",F43=\"Beschermd\",\"Waar\",F44=\"Beschermd\",\"Waar\",F45=\"Beschermd\",\"Waar\",F46=\"Beschermd\",\"Waar\",F47=\"Beschermd\",\"Waar\",F48=\"Beschermd\",\"Waar\",F49=\"Beschermd\",\"Waar\",F50=\"Beschermd\",\"Waar\")","v":{"$error":"#N/A"}}]
[]
["Muziekwerk","Componist / Tekstdichter","Arrangeur / Bewerker","Tijdsduur",null,"Beschermd of vrij"]
["Titel ","Voor- en achternaam","Voor- en achternaam"," In minuten",null,null,null,null,"Tijd Beschermd","Tijd onbeschermd"]
[null,null,null,null,null,null,null,null,{"$f":"IF($F11=\"Beschermd\",D11,0)","v":0},{"$f":"IF($F11=\"Vrij\",D11,0)","v":0}]
[null,null,null,null,null,null,null,null,{"$f":"IF($F12=\"Beschermd\",D12,0)","v":0},{"$f":"IF($F12=\"Vrij\",D12,0)","v":0}]
[null,null,null,null,null,null,null,null,0,0]
[null,null,null,null,null,null,null,null,0,0]
[null,null,null,null,null,null,null,null,0,0]
[null,null,null,null,null,null,null,null,0,0]
[null,null,null,null,null,null,null,null,0,0]
[null,null,null,null,null,null,null,null,0,0]
[null,null,null,null,null,null,null,null,0,0]
[null,null,null,null,null,null,null,null,0,0]
[null,null,null,null,null,null,null,null,0,0]
[null,null,null,null,null,null,null,null,0,0]
[null,null,null,null,null,null,null,null,0,0]
[null,null,null,null,null,null,null,null,0,0]
[null,null,null,null,null,null,null,null,0,0]
[null,null,null,null,null,null,null,null,0,0]
[null,null,null,null,null,null,null,null,0,0]
[null,null,null,null,null,null,null,null,0,0]
[null,null,null,null,null,null,null,null,0,0]
[null,null,null,null,null,null,null,null,0,0]
[null,null,null,null,null,null,null,null,0,0]
[null,null,null,null,null,null,null,null,0,0]
[null,null,null,null,null,null,null,null,0,0]
[null,null,null,null,null,null,null,null,0,0]
[null,null,null,null,null,null,null,null,0,0]
[null,null,null,null,null,null,null,null,0,0]
[null,null,null,null,null,null,null,null,0,0]
[null,null,null,null,null,null,null,null,0,0]
[null,null,null,null,null,null,null,null,0,0]
[null,null,null,null,null,null,null,null,0,0]
[null,null,null,null,null,null,null,null,0,0]
[null,null,null,null,null,null,null,null,0,0]
[null,null,null,null,null,null,null,null,0,0]
[null,null,null,null,null,null,null,null,0,0]
[null,null,null,null,null,null,null,null,0,0]
[null,null,null,null,null,null,null,null,0,0]
[null,null,null,null,null,null,null,null,0,0]
[null,null,null,null,null,null,null,null,0,0]
[null,null,null,null,null,null,null,null,0,0]
[null,null,null,null,null,null,null,null,0,0]
[null,null,null,null,null,{"$f":"COUNTIF(F11:F50,\"Beschermd\")","v":0},null,null,{"$f":"SUM(I11:I50)","v":0},{"$f":"SUM(J11:J50)","v":0}]

{"sheet":"Rep 5","index":7,"n_rows":51,"n_cols":11,"rows_kept":51,"cut":false,"hidden":false,"merged":[[6,0,6,3]]}
[]
["Naam uitvoerend artiest(en)","Datum optreden "]
[{"$f":"IF('Podia opgaven'!D11=\"\",\"\",'Podia opgaven'!D11)","v":""},{"$f":"IF('Podia opgaven'!C11,'Podia opgaven'!C11,\"\")","v":""}]
[]
[null,null,null,null,null,null,null,null,null,null,"Percentage"]
[null,null,null,null,null,null,null,null,{"$f":"I51+J51","v":0},{"$f":"I51/I6","v":{"$error":"#DIV/0!"}},{"$f":"IF(J6=0,0,IF(J6<0.34,3, IF(J6<0.67,5,7)))","v":{"$error":"#DIV/0!"}}]
["Gespeeld repertoire",null,null,null,null,{"$f":"_xlfn.IFS(F11=\"Beschermd\",\"Waar\",F12=\"Beschermd\",\"Waar\",F13=\"Beschermd\",\"Waar\",F14=\"Beschermd\",\"Waar\",F15=\"Beschermd\",\"Waar\",F16=\"Beschermd\",\"Waar\",F17=\"Beschermd\",\"Waar\",F18=\"Beschermd\",\"Waar\",F19=\"Beschermd\",\"Waar\",F20=\"Beschermd\",\"Waar\",F21=\"Beschermd\",\"Waar\",F22=\"Beschermd\",\"Waar\",F23=\"Beschermd\",\"Waar\",F24=\"Beschermd\",\"Waar\",F25=\"Beschermd\",\"Waar\",F26=\"Beschermd\",\"Waar\",F27=\"Beschermd\",\"Waar\",F28=\"Beschermd\",\"Waar\",F29=\"Beschermd\",\"Waar\",F30=\"Beschermd\",\"Waar\",F31=\"Beschermd\",\"Waar\",F32=\"Beschermd\",\"Waar\",F33=\"Beschermd\",\"Waar\",F34=\"Beschermd\",\"Waar\",F35=\"Beschermd\",\"Waar\",F36=\"Beschermd\",\"Waar\",F37=\"Beschermd\",\"Waar\",F38=\"Beschermd\",\"Waar\",F39=\"Beschermd\",\"Waar\",F40=\"Beschermd\",\"Waar\",F41=\"Beschermd\",\"Waar\",F42=\"Beschermd\",\"Waar\",F43=\"Beschermd\",\"Waar\",F44=\"Beschermd\",\"Waar\",F45=\"Beschermd\",\"Waar\",F46=\"Beschermd\",\"Waar\",F47=\"Beschermd\",\"Waar\",F48=\"Beschermd\",\"Waar\",F49=\"Beschermd\",\"Waar\",F50=\"Beschermd\",\"Waar\")","v":{"$error":"#N/A"}}]
[]
["Muziekwerk","Componist / Tekstdichter","Arrangeur / Bewerker","Tijdsduur",null,"Beschermd of vrij"]
["Titel ","Voor- en achternaam","Voor- en achternaam"," In minuten",null,null,null,null,"Tijd Beschermd","Tijd onbeschermd"]
[null,null,null,null,null,null,null,null,{"$f":"IF($F11=\"Beschermd\",D11,0)","v":0},{"$f":"IF($F11=\"Vrij\",D11,0)","v":0}]
[null,null,null,null,null,null,null,null,{"$f":"IF($F12=\"Beschermd\",D12,0)","v":0},{"$f":"IF($F12=\"Vrij\",D12,0)","v":0}]
[null,null,null,null,null,null,null,null,0,0]
[null,null,null,null,null,null,null,null,0,0]
[null,null,null,null,null,null,null,null,0,0]
[null,null,null,null,null,null,null,null,0,0]
[null,null,null,null,null,null,null,null,0,0]
[null,null,null,null,null,null,null,null,0,0]
[null,null,null,null,null,null,null,null,0,0]
[null,null,null,null,null,null,null,null,0,0]
[null,null,null,null,null,null,null,null,0,0]
[null,null,null,null,null,null,null,null,0,0]
[null,null,null,null,null,null,null,null,0,0]
[null,null,null,null,null,null,null,null,0,0]
[null,null,null,null,null,null,null,null,0,0]
[null,null,null,null,null,null,null,null,0,0]
[null,null,null,null,null,null,null,null,0,0]
[null,null,null,null,null,null,null,null,0,0]
[null,null,null,null,null,null,null,null,0,0]
[null,null,null,null,null,null,null,null,0,0]
[null,null,null,null,null,null,null,null,0,0]
[null,null,null,null,null,null,null,null,0,0]
[null,null,null,null,null,null,null,null,0,0]
[null,null,null,null,null,null,null,null,0,0]
[null,null,null,null,null,null,null,null,0,0]
[null,null,null,null,null,null,null,null,0,0]
[null,null,null,null,null,null,null,null,0,0]
[null,null,null,null,null,null,null,null,0,0]
[null,null,null,null,null,null,null,null,0,0]
[null,null,null,null,null,null,null,null,0,0]
[null,null,null,null,null,null,null,null,0,0]
[null,null,null,null,null,null,null,null,0,0]
[null,null,null,null,null,null,null,null,0,0]
[null,null,null,null,null,null,null,null,0,0]
[null,null,null,null,null,null,null,null,0,0]
[null,null,null,null,null,null,null,null,0,0]
[null,null,null,null,null,null,null,null,0,0]
[null,null,null,null,null,null,null,null,0,0]
[null,null,null,null,null,null,null,null,0,0]
[null,null,null,null,null,null,null,null,0,0]
[null,null,null,null,null,{"$f":"COUNTIF(F11:F50,\"Beschermd\")","v":0},null,null,{"$f":"SUM(I11:I50)","v":0},{"$f":"SUM(J11:J50)","v":0}]

{"sheet":"Rep 6","index":8,"n_rows":51,"n_cols":11,"rows_kept":51,"cut":false,"hidden":false,"merged":[[6,0,6,3]]}
[]
["Naam uitvoerend artiest(en)","Datum optreden "]
[{"$f":"IF('Podia opgaven'!D12=\"\",\"\",'Podia opgaven'!D12)","v":""},{"$f":"IF('Podia opgaven'!C12,'Podia opgaven'!C12,\"\")","v":""}]
[]
[null,null,null,null,null,null,null,null,null,null,"Percentage"]
[null,null,null,null,null,null,null,null,{"$f":"I51+J51","v":0},{"$f":"I51/I6","v":{"$error":"#DIV/0!"}},{"$f":"IF(J6=0,0,IF(J6<0.34,3, IF(J6<0.67,5,7)))","v":{"$error":"#DIV/0!"}}]
["Gespeeld repertoire",null,null,null,null,{"$f":"_xlfn.IFS(F11=\"Beschermd\",\"Waar\",F12=\"Beschermd\",\"Waar\",F13=\"Beschermd\",\"Waar\",F14=\"Beschermd\",\"Waar\",F15=\"Beschermd\",\"Waar\",F16=\"Beschermd\",\"Waar\",F17=\"Beschermd\",\"Waar\",F18=\"Beschermd\",\"Waar\",F19=\"Beschermd\",\"Waar\",F20=\"Beschermd\",\"Waar\",F21=\"Beschermd\",\"Waar\",F22=\"Beschermd\",\"Waar\",F23=\"Beschermd\",\"Waar\",F24=\"Beschermd\",\"Waar\",F25=\"Beschermd\",\"Waar\",F26=\"Beschermd\",\"Waar\",F27=\"Beschermd\",\"Waar\",F28=\"Beschermd\",\"Waar\",F29=\"Beschermd\",\"Waar\",F30=\"Beschermd\",\"Waar\",F31=\"Beschermd\",\"Waar\",F32=\"Beschermd\",\"Waar\",F33=\"Beschermd\",\"Waar\",F34=\"Beschermd\",\"Waar\",F35=\"Beschermd\",\"Waar\",F36=\"Beschermd\",\"Waar\",F37=\"Beschermd\",\"Waar\",F38=\"Beschermd\",\"Waar\",F39=\"Beschermd\",\"Waar\",F40=\"Beschermd\",\"Waar\",F41=\"Beschermd\",\"Waar\",F42=\"Beschermd\",\"Waar\",F43=\"Beschermd\",\"Waar\",F44=\"Beschermd\",\"Waar\",F45=\"Beschermd\",\"Waar\",F46=\"Beschermd\",\"Waar\",F47=\"Beschermd\",\"Waar\",F48=\"Beschermd\",\"Waar\",F49=\"Beschermd\",\"Waar\",F50=\"Beschermd\",\"Waar\")","v":{"$error":"#N/A"}}]
[]
["Muziekwerk","Componist / Tekstdichter","Arrangeur / Bewerker","Tijdsduur",null,"Beschermd of vrij"]
["Titel ","Voor- en achternaam","Voor- en achternaam"," In minuten",null,null,null,null,"Tijd Beschermd","Tijd onbeschermd"]
[null,null,null,null,null,null,null,null,{"$f":"IF($F11=\"Beschermd\",D11,0)","v":0},{"$f":"IF($F11=\"Vrij\",D11,0)","v":0}]
[null,null,null,null,null,null,null,null,{"$f":"IF($F12=\"Beschermd\",D12,0)","v":0},{"$f":"IF($F12=\"Vrij\",D12,0)","v":0}]
[null,null,null,null,null,null,null,null,0,0]
[null,null,null,null,null,null,null,null,0,0]
[null,null,null,null,null,null,null,null,0,0]
[null,null,null,null,null,null,null,null,0,0]
[null,null,null,null,null,null,null,null,0,0]
[null,null,null,null,null,null,null,null,0,0]
[null,null,null,null,null,null,null,null,0,0]
[null,null,null,null,null,null,null,null,0,0]
[null,null,null,null,null,null,null,null,0,0]
[null,null,null,null,null,null,null,null,0,0]
[null,null,null,null,null,null,null,null,0,0]
[null,null,null,null,null,null,null,null,0,0]
[null,null,null,null,null,null,null,null,0,0]
[null,null,null,null,null,null,null,null,0,0]
[null,null,null,null,null,null,null,null,0,0]
[null,null,null,null,null,null,null,null,0,0]
[null,null,null,null,null,null,null,null,0,0]
[null,null,null,null,null,null,null,null,0,0]
[null,null,null,null,null,null,null,null,0,0]
[null,null,null,null,null,null,null,null,0,0]
[null,null,null,null,null,null,null,null,0,0]
[null,null,null,null,null,null,null,null,0,0]
[null,null,null,null,null,null,null,null,0,0]
[null,null,null,null,null,null,null,null,0,0]
[null,null,null,null,null,null,null,null,0,0]
[null,null,null,null,null,null,null,null,0,0]
[null,null,null,null,null,null,null,null,0,0]
[null,null,null,null,null,null,null,null,0,0]
[null,null,null,null,null,null,null,null,0,0]
[null,null,null,null,null,null,null,null,0,0]
[null,null,null,null,null,null,null,null,0,0]
[null,null,null,null,null,null,null,null,0,0]
[null,null,null,null,null,null,null,null,0,0]
[null,null,null,null,null,null,null,null,0,0]
[null,null,null,null,null,null,null,null,0,0]
[null,null,null,null,null,null,null,null,0,0]
[null,null,null,null,null,null,null,null,0,0]
[null,null,null,null,null,null,null,null,0,0]
[null,null,null,null,null,{"$f":"COUNTIF(F11:F50,\"Beschermd\")","v":0},null,null,{"$f":"SUM(I11:I50)","v":0},{"$f":"SUM(J11:J50)","v":0}]

{"sheet":"Rep 7","index":9,"n_rows":51,"n_cols":11,"rows_kept":51,"cut":false,"hidden":false,"merged":[[6,0,6,3]]}
[]
["Naam uitvoerend artiest(en)","Datum optreden "]
[{"$f":"IF('Podia opgaven'!D13=\"\",\"\",'Podia opgaven'!D13)","v":""},{"$f":"IF('Podia opgaven'!C13,'Podia opgaven'!C13,\"\")","v":""}]
[]
[null,null,null,null,null,null,null,null,null,null,"Percentage"]
[null,null,null,null,null,null,null,null,{"$f":"I51+J51","v":0},{"$f":"I51/I6","v":{"$error":"#DIV/0!"}},{"$f":"IF(J6=0,0,IF(J6<0.34,3, IF(J6<0.67,5,7)))","v":{"$error":"#DIV/0!"}}]
["Gespeeld repertoire",null,null,null,null,{"$f":"_xlfn.IFS(F11=\"Beschermd\",\"Waar\",F12=\"Beschermd\",\"Waar\",F13=\"Beschermd\",\"Waar\",F14=\"Beschermd\",\"Waar\",F15=\"Beschermd\",\"Waar\",F16=\"Beschermd\",\"Waar\",F17=\"Beschermd\",\"Waar\",F18=\"Beschermd\",\"Waar\",F19=\"Beschermd\",\"Waar\",F20=\"Beschermd\",\"Waar\",F21=\"Beschermd\",\"Waar\",F22=\"Beschermd\",\"Waar\",F23=\"Beschermd\",\"Waar\",F24=\"Beschermd\",\"Waar\",F25=\"Beschermd\",\"Waar\",F26=\"Beschermd\",\"Waar\",F27=\"Beschermd\",\"Waar\",F28=\"Beschermd\",\"Waar\",F29=\"Beschermd\",\"Waar\",F30=\"Beschermd\",\"Waar\",F31=\"Beschermd\",\"Waar\",F32=\"Beschermd\",\"Waar\",F33=\"Beschermd\",\"Waar\",F34=\"Beschermd\",\"Waar\",F35=\"Beschermd\",\"Waar\",F36=\"Beschermd\",\"Waar\",F37=\"Beschermd\",\"Waar\",F38=\"Beschermd\",\"Waar\",F39=\"Beschermd\",\"Waar\",F40=\"Beschermd\",\"Waar\",F41=\"Beschermd\",\"Waar\",F42=\"Beschermd\",\"Waar\",F43=\"Beschermd\",\"Waar\",F44=\"Beschermd\",\"Waar\",F45=\"Beschermd\",\"Waar\",F46=\"Beschermd\",\"Waar\",F47=\"Beschermd\",\"Waar\",F48=\"Beschermd\",\"Waar\",F49=\"Beschermd\",\"Waar\",F50=\"Beschermd\",\"Waar\")","v":{"$error":"#N/A"}}]
[]
["Muziekwerk","Componist / Tekstdichter","Arrangeur / Bewerker","Tijdsduur",null,"Beschermd of vrij"]
["Titel ","Voor- en achternaam","Voor- en achternaam"," In minuten",null,null,null,null,"Tijd Beschermd","Tijd onbeschermd"]
[null,null,null,null,null,null,null,null,{"$f":"IF($F11=\"Beschermd\",D11,0)","v":0},{"$f":"IF($F11=\"Vrij\",D11,0)","v":0}]
[null,null,null,null,null,null,null,null,{"$f":"IF($F12=\"Beschermd\",D12,0)","v":0},{"$f":"IF($F12=\"Vrij\",D12,0)","v":0}]
[null,null,null,null,null,null,null,null,0,0]
[null,null,null,null,null,null,null,null,0,0]
[null,null,null,null,null,null,null,null,0,0]
[null,null,null,null,null,null,null,null,0,0]
[null,null,null,null,null,null,null,null,0,0]
[null,null,null,null,null,null,null,null,0,0]
[null,null,null,null,null,null,null,null,0,0]
[null,null,null,null,null,null,null,null,0,0]
[null,null,null,null,null,null,null,null,0,0]
[null,null,null,null,null,null,null,null,0,0]
[null,null,null,null,null,null,null,null,0,0]
[null,null,null,null,null,null,null,null,0,0]
[null,null,null,null,null,null,null,null,0,0]
[null,null,null,null,null,null,null,null,0,0]
[null,null,null,null,null,null,null,null,0,0]
[null,null,null,null,null,null,null,null,0,0]
[null,null,null,null,null,null,null,null,0,0]
[null,null,null,null,null,null,null,null,0,0]
[null,null,null,null,null,null,null,null,0,0]
[null,null,null,null,null,null,null,null,0,0]
[null,null,null,null,null,null,null,null,0,0]
[null,null,null,null,null,null,null,null,0,0]
[null,null,null,null,null,null,null,null,0,0]
[null,null,null,null,null,null,null,null,0,0]
[null,null,null,null,null,null,null,null,0,0]
[null,null,null,null,null,null,null,null,0,0]
[null,null,null,null,null,null,null,null,0,0]
[null,null,null,null,null,null,null,null,0,0]
[null,null,null,null,null,null,null,null,0,0]
[null,null,null,null,null,null,null,null,0,0]
[null,null,null,null,null,null,null,null,0,0]
[null,null,null,null,null,null,null,null,0,0]
[null,null,null,null,null,null,null,null,0,0]
[null,null,null,null,null,null,null,null,0,0]
[null,null,null,null,null,null,null,null,0,0]
[null,null,null,null,null,null,null,null,0,0]
[null,null,null,null,null,null,null,null,0,0]
[null,null,null,null,null,null,null,null,0,0]
[null,null,null,null,null,{"$f":"COUNTIF(F11:F50,\"Beschermd\")","v":0},null,null,{"$f":"SUM(I11:I50)","v":0},{"$f":"SUM(J11:J50)","v":0}]

{"sheet":"Rep 8","index":10,"n_rows":51,"n_cols":11,"rows_kept":51,"cut":false,"hidden":false,"merged":[[6,0,6,3]]}
[]
["Naam uitvoerend artiest(en)","Datum optreden "]
[{"$f":"IF('Podia opgaven'!D14=\"\",\"\",'Podia opgaven'!D14)","v":""},{"$f":"IF('Podia opgaven'!C14,'Podia opgaven'!C14,\"\")","v":""}]
[]
[null,null,null,null,null,null,null,null,null,null,"Percentage"]
[null,null,null,null,null,null,null,null,{"$f":"I51+J51","v":0},{"$f":"I51/I6","v":{"$error":"#DIV/0!"}},{"$f":"IF(J6=0,0,IF(J6<0.34,3, IF(J6<0.67,5,7)))","v":{"$error":"#DIV/0!"}}]
["Gespeeld repertoire",null,null,null,null,{"$f":"_xlfn.IFS(F11=\"Beschermd\",\"Waar\",F12=\"Beschermd\",\"Waar\",F13=\"Beschermd\",\"Waar\",F14=\"Beschermd\",\"Waar\",F15=\"Beschermd\",\"Waar\",F16=\"Beschermd\",\"Waar\",F17=\"Beschermd\",\"Waar\",F18=\"Beschermd\",\"Waar\",F19=\"Beschermd\",\"Waar\",F20=\"Beschermd\",\"Waar\",F21=\"Beschermd\",\"Waar\",F22=\"Beschermd\",\"Waar\",F23=\"Beschermd\",\"Waar\",F24=\"Beschermd\",\"Waar\",F25=\"Beschermd\",\"Waar\",F26=\"Beschermd\",\"Waar\",F27=\"Beschermd\",\"Waar\",F28=\"Beschermd\",\"Waar\",F29=\"Beschermd\",\"Waar\",F30=\"Beschermd\",\"Waar\",F31=\"Beschermd\",\"Waar\",F32=\"Beschermd\",\"Waar\",F33=\"Beschermd\",\"Waar\",F34=\"Beschermd\",\"Waar\",F35=\"Beschermd\",\"Waar\",F36=\"Beschermd\",\"Waar\",F37=\"Beschermd\",\"Waar\",F38=\"Beschermd\",\"Waar\",F39=\"Beschermd\",\"Waar\",F40=\"Beschermd\",\"Waar\",F41=\"Beschermd\",\"Waar\",F42=\"Beschermd\",\"Waar\",F43=\"Beschermd\",\"Waar\",F44=\"Beschermd\",\"Waar\",F45=\"Beschermd\",\"Waar\",F46=\"Beschermd\",\"Waar\",F47=\"Beschermd\",\"Waar\",F48=\"Beschermd\",\"Waar\",F49=\"Beschermd\",\"Waar\",F50=\"Beschermd\",\"Waar\")","v":{"$error":"#N/A"}}]
[]
["Muziekwerk","Componist / Tekstdichter","Arrangeur / Bewerker","Tijdsduur",null,"Beschermd of vrij"]
["Titel ","Voor- en achternaam","Voor- en achternaam"," In minuten",null,null,null,null,"Tijd Beschermd","Tijd onbeschermd"]
[null,null,null,null,null,null,null,null,{"$f":"IF($F11=\"Beschermd\",D11,0)","v":0},{"$f":"IF($F11=\"Vrij\",D11,0)","v":0}]
[null,null,null,null,null,null,null,null,{"$f":"IF($F12=\"Beschermd\",D12,0)","v":0},{"$f":"IF($F12=\"Vrij\",D12,0)","v":0}]
[null,null,null,null,null,null,null,null,0,0]
[null,null,null,null,null,null,null,null,0,0]
[null,null,null,null,null,null,null,null,0,0]
[null,null,null,null,null,null,null,null,0,0]
[null,null,null,null,null,null,null,null,0,0]
[null,null,null,null,null,null,null,null,0,0]
[null,null,null,null,null,null,null,null,0,0]
[null,null,null,null,null,null,null,null,0,0]
[null,null,null,null,null,null,null,null,0,0]
[null,null,null,null,null,null,null,null,0,0]
[null,null,null,null,null,null,null,null,0,0]
[null,null,null,null,null,null,null,null,0,0]
[null,null,null,null,null,null,null,null,0,0]
[null,null,null,null,null,null,null,null,0,0]
[null,null,null,null,null,null,null,null,0,0]
[null,null,null,null,null,null,null,null,0,0]
[null,null,null,null,null,null,null,null,0,0]
[null,null,null,null,null,null,null,null,0,0]
[null,null,null,null,null,null,null,null,0,0]
[null,null,null,null,null,null,null,null,0,0]
[null,null,null,null,null,null,null,null,0,0]
[null,null,null,null,null,null,null,null,0,0]
[null,null,null,null,null,null,null,null,0,0]
[null,null,null,null,null,null,null,null,0,0]
[null,null,null,null,null,null,null,null,0,0]
[null,null,null,null,null,null,null,null,0,0]
[null,null,null,null,null,null,null,null,0,0]
[null,null,null,null,null,null,null,null,0,0]
[null,null,null,null,null,null,null,null,0,0]
[null,null,null,null,null,null,null,null,0,0]
[null,null,null,null,null,null,null,null,0,0]
[null,null,null,null,null,null,null,null,0,0]
[null,null,null,null,null,null,null,null,0,0]
[null,null,null,null,null,null,null,null,0,0]
[null,null,null,null,null,null,null,null,0,0]
[null,null,null,null,null,null,null,null,0,0]
[null,null,null,null,null,null,null,null,0,0]
[null,null,null,null,null,null,null,null,0,0]
[null,null,null,null,null,{"$f":"COUNTIF(F11:F50,\"Beschermd\")","v":0},null,null,{"$f":"SUM(I11:I50)","v":0},{"$f":"SUM(J11:J50)","v":0}]

{"sheet":"Rep 9","index":11,"n_rows":51,"n_cols":11,"rows_kept":51,"cut":false,"hidden":false,"merged":[[6,0,6,3]]}
[]
["Naam uitvoerend artiest(en)","Datum optreden "]
[{"$f":"IF('Podia opgaven'!D15=\"\",\"\",'Podia opgaven'!D15)","v":""},{"$f":"IF('Podia opgaven'!C15,'Podia opgaven'!C15,\"\")","v":""}]
[]
[null,null,null,null,null,null,null,null,null,null,"Percentage"]
[null,null,null,null,null,null,null,null,{"$f":"I51+J51","v":0},{"$f":"I51/I6","v":{"$error":"#DIV/0!"}},{"$f":"IF(J6=0,0,IF(J6<0.34,3, IF(J6<0.67,5,7)))","v":{"$error":"#DIV/0!"}}]
["Gespeeld repertoire",null,null,null,null,{"$f":"_xlfn.IFS(F11=\"Beschermd\",\"Waar\",F12=\"Beschermd\",\"Waar\",F13=\"Beschermd\",\"Waar\",F14=\"Beschermd\",\"Waar\",F15=\"Beschermd\",\"Waar\",F16=\"Beschermd\",\"Waar\",F17=\"Beschermd\",\"Waar\",F18=\"Beschermd\",\"Waar\",F19=\"Beschermd\",\"Waar\",F20=\"Beschermd\",\"Waar\",F21=\"Beschermd\",\"Waar\",F22=\"Beschermd\",\"Waar\",F23=\"Beschermd\",\"Waar\",F24=\"Beschermd\",\"Waar\",F25=\"Beschermd\",\"Waar\",F26=\"Beschermd\",\"Waar\",F27=\"Beschermd\",\"Waar\",F28=\"Beschermd\",\"Waar\",F29=\"Beschermd\",\"Waar\",F30=\"Beschermd\",\"Waar\",F31=\"Beschermd\",\"Waar\",F32=\"Beschermd\",\"Waar\",F33=\"Beschermd\",\"Waar\",F34=\"Beschermd\",\"Waar\",F35=\"Beschermd\",\"Waar\",F36=\"Beschermd\",\"Waar\",F37=\"Beschermd\",\"Waar\",F38=\"Beschermd\",\"Waar\",F39=\"Beschermd\",\"Waar\",F40=\"Beschermd\",\"Waar\",F41=\"Beschermd\",\"Waar\",F42=\"Beschermd\",\"Waar\",F43=\"Beschermd\",\"Waar\",F44=\"Beschermd\",\"Waar\",F45=\"Beschermd\",\"Waar\",F46=\"Beschermd\",\"Waar\",F47=\"Beschermd\",\"Waar\",F48=\"Beschermd\",\"Waar\",F49=\"Beschermd\",\"Waar\",F50=\"Beschermd\",\"Waar\")","v":{"$error":"#N/A"}}]
[]
["Muziekwerk","Componist / Tekstdichter","Arrangeur / Bewerker","Tijdsduur",null,"Beschermd of vrij"]
["Titel ","Voor- en achternaam","Voor- en achternaam"," In minuten",null,null,null,null,"Tijd Beschermd","Tijd onbeschermd"]
[null,null,null,null,null,null,null,null,{"$f":"IF($F11=\"Beschermd\",D11,0)","v":0},{"$f":"IF($F11=\"Vrij\",D11,0)","v":0}]
[null,null,null,null,null,null,null,null,{"$f":"IF($F12=\"Beschermd\",D12,0)","v":0},{"$f":"IF($F12=\"Vrij\",D12,0)","v":0}]
[null,null,null,null,null,null,null,null,0,0]
[null,null,null,null,null,null,null,null,0,0]
[null,null,null,null,null,null,null,null,0,0]
[null,null,null,null,null,null,null,null,0,0]
[null,null,null,null,null,null,null,null,0,0]
[null,null,null,null,null,null,null,null,0,0]
[null,null,null,null,null,null,null,null,0,0]
[null,null,null,null,null,null,null,null,0,0]
[null,null,null,null,null,null,null,null,0,0]
[null,null,null,null,null,null,null,null,0,0]
[null,null,null,null,null,null,null,null,0,0]
[null,null,null,null,null,null,null,null,0,0]
[null,null,null,null,null,null,null,null,0,0]
[null,null,null,null,null,null,null,null,0,0]
[null,null,null,null,null,null,null,null,0,0]
[null,null,null,null,null,null,null,null,0,0]
[null,null,null,null,null,null,null,null,0,0]
[null,null,null,null,null,null,null,null,0,0]
[null,null,null,null,null,null,null,null,0,0]
[null,null,null,null,null,null,null,null,0,0]
[null,null,null,null,null,null,null,null,0,0]
[null,null,null,null,null,null,null,null,0,0]
[null,null,null,null,null,null,null,null,0,0]
[null,null,null,null,null,null,null,null,0,0]
[null,null,null,null,null,null,null,null,0,0]
[null,null,null,null,null,null,null,null,0,0]
[null,null,null,null,null,null,null,null,0,0]
[null,null,null,null,null,null,null,null,0,0]
[null,null,null,null,null,null,null,null,0,0]
[null,null,null,null,null,null,null,null,0,0]
[null,null,null,null,null,null,null,null,0,0]
[null,null,null,null,null,null,null,null,0,0]
[null,null,null,null,null,null,null,null,0,0]
[null,null,null,null,null,null,null,null,0,0]
[null,null,null,null,null,null,null,null,0,0]
[null,null,null,null,null,null,null,null,0,0]
[null,null,null,null,null,null,null,null,0,0]
[null,null,null,null,null,null,null,null,0,0]
[null,null,null,null,null,{"$f":"COUNTIF(F11:F50,\"Beschermd\")","v":0},null,null,{"$f":"SUM(I11:I50)","v":0},{"$f":"SUM(J11:J50)","v":0}]

{"sheet":"Rep 10","index":12,"n_rows":51,"n_cols":11,"rows_kept":51,"cut":false,"hidden":false,"merged":[[6,0,6,3]]}
[]
["Naam uitvoerend artiest(en)","Datum optreden "]
[{"$f":"IF('Podia opgaven'!D16=\"\",\"\",'Podia opgaven'!D16)","v":""},{"$f":"IF('Podia opgaven'!C16,'Podia opgaven'!C16,\"\")","v":""}]
[]
[null,null,null,null,null,null,null,null,null,null,"Percentage"]
[null,null,null,null,null,null,null,null,{"$f":"I51+J51","v":0},{"$f":"I51/I6","v":{"$error":"#DIV/0!"}},{"$f":"IF(J6=0,0,IF(J6<0.34,3, IF(J6<0.67,5,7)))","v":{"$error":"#DIV/0!"}}]
["Gespeeld repertoire",null,null,null,null,{"$f":"_xlfn.IFS(F11=\"Beschermd\",\"Waar\",F12=\"Beschermd\",\"Waar\",F13=\"Beschermd\",\"Waar\",F14=\"Beschermd\",\"Waar\",F15=\"Beschermd\",\"Waar\",F16=\"Beschermd\",\"Waar\",F17=\"Beschermd\",\"Waar\",F18=\"Beschermd\",\"Waar\",F19=\"Beschermd\",\"Waar\",F20=\"Beschermd\",\"Waar\",F21=\"Beschermd\",\"Waar\",F22=\"Beschermd\",\"Waar\",F23=\"Beschermd\",\"Waar\",F24=\"Beschermd\",\"Waar\",F25=\"Beschermd\",\"Waar\",F26=\"Beschermd\",\"Waar\",F27=\"Beschermd\",\"Waar\",F28=\"Beschermd\",\"Waar\",F29=\"Beschermd\",\"Waar\",F30=\"Beschermd\",\"Waar\",F31=\"Beschermd\",\"Waar\",F32=\"Beschermd\",\"Waar\",F33=\"Beschermd\",\"Waar\",F34=\"Beschermd\",\"Waar\",F35=\"Beschermd\",\"Waar\",F36=\"Beschermd\",\"Waar\",F37=\"Beschermd\",\"Waar\",F38=\"Beschermd\",\"Waar\",F39=\"Beschermd\",\"Waar\",F40=\"Beschermd\",\"Waar\",F41=\"Beschermd\",\"Waar\",F42=\"Beschermd\",\"Waar\",F43=\"Beschermd\",\"Waar\",F44=\"Beschermd\",\"Waar\",F45=\"Beschermd\",\"Waar\",F46=\"Beschermd\",\"Waar\",F47=\"Beschermd\",\"Waar\",F48=\"Beschermd\",\"Waar\",F49=\"Beschermd\",\"Waar\",F50=\"Beschermd\",\"Waar\")","v":{"$error":"#N/A"}}]
[]
["Muziekwerk","Componist / Tekstdichter","Arrangeur / Bewerker","Tijdsduur",null,"Beschermd of vrij"]
["Titel ","Voor- en achternaam","Voor- en achternaam"," In minuten",null,null,null,null,"Tijd Beschermd","Tijd onbeschermd"]
[null,null,null,null,null,null,null,null,{"$f":"IF($F11=\"Beschermd\",D11,0)","v":0},{"$f":"IF($F11=\"Vrij\",D11,0)","v":0}]
[null,null,null,null,null,null,null,null,{"$f":"IF($F12=\"Beschermd\",D12,0)","v":0},{"$f":"IF($F12=\"Vrij\",D12,0)","v":0}]
[null,null,null,null,null,null,null,null,0,0]
[null,null,null,null,null,null,null,null,0,0]
[null,null,null,null,null,null,null,null,0,0]
[null,null,null,null,null,null,null,null,0,0]
[null,null,null,null,null,null,null,null,0,0]
[null,null,null,null,null,null,null,null,0,0]
[null,null,null,null,null,null,null,null,0,0]
[null,null,null,null,null,null,null,null,0,0]
[null,null,null,null,null,null,null,null,0,0]
[null,null,null,null,null,null,null,null,0,0]
[null,null,null,null,null,null,null,null,0,0]
[null,null,null,null,null,null,null,null,0,0]
[null,null,null,null,null,null,null,null,0,0]
[null,null,null,null,null,null,null,null,0,0]
[null,null,null,null,null,null,null,null,0,0]
[null,null,null,null,null,null,null,null,0,0]
[null,null,null,null,null,null,null,null,0,0]
[null,null,null,null,null,null,null,null,0,0]
[null,null,null,null,null,null,null,null,0,0]
[null,null,null,null,null,null,null,null,0,0]
[null,null,null,null,null,null,null,null,0,0]
[null,null,null,null,null,null,null,null,0,0]
[null,null,null,null,null,null,null,null,0,0]
[null,null,null,null,null,null,null,null,0,0]
[null,null,null,null,null,null,null,null,0,0]
[null,null,null,null,null,null,null,null,0,0]
[null,null,null,null,null,null,null,null,0,0]
[null,null,null,null,null,null,null,null,0,0]
[null,null,null,null,null,null,null,null,0,0]
[null,null,null,null,null,null,null,null,0,0]
[null,null,null,null,null,null,null,null,0,0]
[null,null,null,null,null,null,null,null,0,0]
[null,null,null,null,null,null,null,null,0,0]
[null,null,null,null,null,null,null,null,0,0]
[null,null,null,null,null,null,null,null,0,0]
[null,null,null,null,null,null,null,null,0,0]
[null,null,null,null,null,null,null,null,0,0]
[null,null,null,null,null,null,null,null,0,0]
[null,null,null,null,null,{"$f":"COUNTIF(F11:F50,\"Beschermd\")","v":0},null,null,{"$f":"SUM(I11:I50)","v":0},{"$f":"SUM(J11:J50)","v":0}]

{"sheet":"Rep 11","index":13,"n_rows":51,"n_cols":11,"rows_kept":51,"cut":false,"hidden":false,"merged":[[6,0,6,3]]}
[]
["Naam uitvoerend artiest(en)","Datum optreden "]
[{"$f":"IF('Podia opgaven'!D17=\"\",\"\",'Podia opgaven'!D17)","v":""},{"$f":"IF('Podia opgaven'!C17,'Podia opgaven'!C17,\"\")","v":""}]
[]
[null,null,null,null,null,null,null,null,null,null,"Percentage"]
[null,null,null,null,null,null,null,null,{"$f":"I51+J51","v":0},{"$f":"I51/I6","v":{"$error":"#DIV/0!"}},{"$f":"IF(J6=0,0,IF(J6<0.34,3, IF(J6<0.67,5,7)))","v":{"$error":"#DIV/0!"}}]
["Gespeeld repertoire",null,null,null,null,{"$f":"_xlfn.IFS(F11=\"Beschermd\",\"Waar\",F12=\"Beschermd\",\"Waar\",F13=\"Beschermd\",\"Waar\",F14=\"Beschermd\",\"Waar\",F15=\"Beschermd\",\"Waar\",F16=\"Beschermd\",\"Waar\",F17=\"Beschermd\",\"Waar\",F18=\"Beschermd\",\"Waar\",F19=\"Beschermd\",\"Waar\",F20=\"Beschermd\",\"Waar\",F21=\"Beschermd\",\"Waar\",F22=\"Beschermd\",\"Waar\",F23=\"Beschermd\",\"Waar\",F24=\"Beschermd\",\"Waar\",F25=\"Beschermd\",\"Waar\",F26=\"Beschermd\",\"Waar\",F27=\"Beschermd\",\"Waar\",F28=\"Beschermd\",\"Waar\",F29=\"Beschermd\",\"Waar\",F30=\"Beschermd\",\"Waar\",F31=\"Beschermd\",\"Waar\",F32=\"Beschermd\",\"Waar\",F33=\"Beschermd\",\"Waar\",F34=\"Beschermd\",\"Waar\",F35=\"Beschermd\",\"Waar\",F36=\"Beschermd\",\"Waar\",F37=\"Beschermd\",\"Waar\",F38=\"Beschermd\",\"Waar\",F39=\"Beschermd\",\"Waar\",F40=\"Beschermd\",\"Waar\",F41=\"Beschermd\",\"Waar\",F42=\"Beschermd\",\"Waar\",F43=\"Beschermd\",\"Waar\",F44=\"Beschermd\",\"Waar\",F45=\"Beschermd\",\"Waar\",F46=\"Beschermd\",\"Waar\",F47=\"Beschermd\",\"Waar\",F48=\"Beschermd\",\"Waar\",F49=\"Beschermd\",\"Waar\",F50=\"Beschermd\",\"Waar\")","v":{"$error":"#N/A"}}]
[]
["Muziekwerk","Componist / Tekstdichter","Arrangeur / Bewerker","Tijdsduur",null,"Beschermd of vrij"]
["Titel ","Voor- en achternaam","Voor- en achternaam"," In minuten",null,null,null,null,"Tijd Beschermd","Tijd onbeschermd"]
[null,null,null,null,null,null,null,null,{"$f":"IF($F11=\"Beschermd\",D11,0)","v":0},{"$f":"IF($F11=\"Vrij\",D11,0)","v":0}]
[null,null,null,null,null,null,null,null,0,0]
[null,null,null,null,null,null,null,null,0,0]
[null,null,null,null,null,null,null,null,0,0]
[null,null,null,null,null,null,null,null,0,0]
[null,null,null,null,null,null,null,null,0,0]
[null,null,null,null,null,null,null,null,0,0]
[null,null,null,null,null,null,null,null,0,0]
[null,null,null,null,null,null,null,null,0,0]
[null,null,null,null,null,null,null,null,0,0]
[null,null,null,null,null,null,null,null,0,0]
[null,null,null,null,null,null,null,null,0,0]
[null,null,null,null,null,null,null,null,0,0]
[null,null,null,null,null,null,null,null,0,0]
[null,null,null,null,null,null,null,null,0,0]
[null,null,null,null,null,null,null,null,0,0]
[null,null,null,null,null,null,null,null,0,0]
[null,null,null,null,null,null,null,null,0,0]
[null,null,null,null,null,null,null,null,0,0]
[null,null,null,null,null,null,null,null,0,0]
[null,null,null,null,null,null,null,null,0,0]
[null,null,null,null,null,null,null,null,0,0]
[null,null,null,null,null,null,null,null,0,0]
[null,null,null,null,null,null,null,null,0,0]
[null,null,null,null,null,null,null,null,0,0]
[null,null,null,null,null,null,null,null,0,0]
[null,null,null,null,null,null,null,null,0,0]
[null,null,null,null,null,null,null,null,0,0]
[null,null,null,null,null,null,null,null,0,0]
[null,null,null,null,null,null,null,null,0,0]
[null,null,null,null,null,null,null,null,0,0]
[null,null,null,null,null,null,null,null,0,0]
[null,null,null,null,null,null,null,null,0,0]
[null,null,null,null,null,null,null,null,0,0]
[null,null,null,null,null,null,null,null,0,0]
[null,null,null,null,null,null,null,null,0,0]
[null,null,null,null,null,null,null,null,0,0]
[null,null,null,null,null,null,null,null,0,0]
[null,null,null,null,null,null,null,null,0,0]
[null,null,null,null,null,null,null,null,0,0]
[null,null,null,null,null,{"$f":"COUNTIF(F11:F50,\"Beschermd\")","v":0},null,null,{"$f":"SUM(I11:I50)","v":0},{"$f":"SUM(J11:J50)","v":0}]

{"sheet":"Rep 12","index":14,"n_rows":51,"n_cols":11,"rows_kept":51,"cut":false,"hidden":false,"merged":[[6,0,6,3]]}
[]
["Naam uitvoerend artiest(en)","Datum optreden "]
[{"$f":"IF('Podia opgaven'!D18=\"\",\"\",'Podia opgaven'!D18)","v":""},{"$f":"IF('Podia opgaven'!C18,'Podia opgaven'!C18,\"\")","v":""}]
[]
[null,null,null,null,null,null,null,null,null,null,"Percentage"]
[null,null,null,null,null,null,null,null,{"$f":"I51+J51","v":0},{"$f":"I51/I6","v":{"$error":"#DIV/0!"}},{"$f":"IF(J6=0,0,IF(J6<0.34,3, IF(J6<0.67,5,7)))","v":{"$error":"#DIV/0!"}}]
["Gespeeld repertoire",null,null,null,null,{"$f":"_xlfn.IFS(F11=\"Beschermd\",\"Waar\",F12=\"Beschermd\",\"Waar\",F13=\"Beschermd\",\"Waar\",F14=\"Beschermd\",\"Waar\",F15=\"Beschermd\",\"Waar\",F16=\"Beschermd\",\"Waar\",F17=\"Beschermd\",\"Waar\",F18=\"Beschermd\",\"Waar\",F19=\"Beschermd\",\"Waar\",F20=\"Beschermd\",\"Waar\",F21=\"Beschermd\",\"Waar\",F22=\"Beschermd\",\"Waar\",F23=\"Beschermd\",\"Waar\",F24=\"Beschermd\",\"Waar\",F25=\"Beschermd\",\"Waar\",F26=\"Beschermd\",\"Waar\",F27=\"Beschermd\",\"Waar\",F28=\"Beschermd\",\"Waar\",F29=\"Beschermd\",\"Waar\",F30=\"Beschermd\",\"Waar\",F31=\"Beschermd\",\"Waar\",F32=\"Beschermd\",\"Waar\",F33=\"Beschermd\",\"Waar\",F34=\"Beschermd\",\"Waar\",F35=\"Beschermd\",\"Waar\",F36=\"Beschermd\",\"Waar\",F37=\"Beschermd\",\"Waar\",F38=\"Beschermd\",\"Waar\",F39=\"Beschermd\",\"Waar\",F40=\"Beschermd\",\"Waar\",F41=\"Beschermd\",\"Waar\",F42=\"Beschermd\",\"Waar\",F43=\"Beschermd\",\"Waar\",F44=\"Beschermd\",\"Waar\",F45=\"Beschermd\",\"Waar\",F46=\"Beschermd\",\"Waar\",F47=\"Beschermd\",\"Waar\",F48=\"Beschermd\",\"Waar\",F49=\"Beschermd\",\"Waar\",F50=\"Beschermd\",\"Waar\")","v":{"$error":"#N/A"}}]
[]
["Muziekwerk","Componist / Tekstdichter","Arrangeur / Bewerker","Tijdsduur",null,"Beschermd of vrij"]
["Titel ","Voor- en achternaam","Voor- en achternaam"," In minuten",null,null,null,null,"Tijd Beschermd","Tijd onbeschermd"]
[null,null,null,null,null,null,null,null,{"$f":"IF($F11=\"Beschermd\",D11,0)","v":0},{"$f":"IF($F11=\"Vrij\",D11,0)","v":0}]
[null,null,null,null,null,null,null,null,{"$f":"IF($F12=\"Beschermd\",D12,0)","v":0},{"$f":"IF($F12=\"Vrij\",D12,0)","v":0}]
[null,null,null,null,null,null,null,null,0,0]
[null,null,null,null,null,null,null,null,0,0]
[null,null,null,null,null,null,null,null,0,0]
[null,null,null,null,null,null,null,null,0,0]
[null,null,null,null,null,null,null,null,0,0]
[null,null,null,null,null,null,null,null,0,0]
[null,null,null,null,null,null,null,null,0,0]
[null,null,null,null,null,null,null,null,0,0]
[null,null,null,null,null,null,null,null,0,0]
[null,null,null,null,null,null,null,null,0,0]
[null,null,null,null,null,null,null,null,0,0]
[null,null,null,null,null,null,null,null,0,0]
[null,null,null,null,null,null,null,null,0,0]
[null,null,null,null,null,null,null,null,0,0]
[null,null,null,null,null,null,null,null,0,0]
[null,null,null,null,null,null,null,null,0,0]
[null,null,null,null,null,null,null,null,0,0]
[null,null,null,null,null,null,null,null,0,0]
[null,null,null,null,null,null,null,null,0,0]
[null,null,null,null,null,null,null,null,0,0]
[null,null,null,null,null,null,null,null,0,0]
[null,null,null,null,null,null,null,null,0,0]
[null,null,null,null,null,null,null,null,0,0]
[null,null,null,null,null,null,null,null,0,0]
[null,null,null,null,null,null,null,null,0,0]
[null,null,null,null,null,null,null,null,0,0]
[null,null,null,null,null,null,null,null,0,0]
[null,null,null,null,null,null,null,null,0,0]
[null,null,null,null,null,null,null,null,0,0]
[null,null,null,null,null,null,null,null,0,0]
[null,null,null,null,null,null,null,null,0,0]
[null,null,null,null,null,null,null,null,0,0]
[null,null,null,null,null,null,null,null,0,0]
[null,null,null,null,null,null,null,null,0,0]
[null,null,null,null,null,null,null,null,0,0]
[null,null,null,null,null,null,null,null,0,0]
[null,null,null,null,null,null,null,null,0,0]
[null,null,null,null,null,null,null,null,0,0]
[null,null,null,null,null,{"$f":"COUNTIF(F11:F50,\"Beschermd\")","v":0},null,null,{"$f":"SUM(I11:I50)","v":0},{"$f":"SUM(J11:J50)","v":0}]

{"sheet":"Rep 13","index":15,"n_rows":51,"n_cols":11,"rows_kept":51,"cut":false,"hidden":false,"merged":[[6,0,6,3]]}
[]
["Naam uitvoerend artiest(en)","Datum optreden "]
[{"$f":"IF('Podia opgaven'!D19=\"\",\"\",'Podia opgaven'!D19)","v":""},{"$f":"IF('Podia opgaven'!C19,'Podia opgaven'!C19,\"\")","v":""}]
[]
[null,null,null,null,null,null,null,null,null,null,"Percentage"]
[null,null,null,null,null,null,null,null,{"$f":"I51+J51","v":0},{"$f":"I51/I6","v":{"$error":"#DIV/0!"}},{"$f":"IF(J6=0,0,IF(J6<0.34,3, IF(J6<0.67,5,7)))","v":{"$error":"#DIV/0!"}}]
["Gespeeld repertoire",null,null,null,null,{"$f":"_xlfn.IFS(F11=\"Beschermd\",\"Waar\",F12=\"Beschermd\",\"Waar\",F13=\"Beschermd\",\"Waar\",F14=\"Beschermd\",\"Waar\",F15=\"Beschermd\",\"Waar\",F16=\"Beschermd\",\"Waar\",F17=\"Beschermd\",\"Waar\",F18=\"Beschermd\",\"Waar\",F19=\"Beschermd\",\"Waar\",F20=\"Beschermd\",\"Waar\",F21=\"Beschermd\",\"Waar\",F22=\"Beschermd\",\"Waar\",F23=\"Beschermd\",\"Waar\",F24=\"Beschermd\",\"Waar\",F25=\"Beschermd\",\"Waar\",F26=\"Beschermd\",\"Waar\",F27=\"Beschermd\",\"Waar\",F28=\"Beschermd\",\"Waar\",F29=\"Beschermd\",\"Waar\",F30=\"Beschermd\",\"Waar\",F31=\"Beschermd\",\"Waar\",F32=\"Beschermd\",\"Waar\",F33=\"Beschermd\",\"Waar\",F34=\"Beschermd\",\"Waar\",F35=\"Beschermd\",\"Waar\",F36=\"Beschermd\",\"Waar\",F37=\"Beschermd\",\"Waar\",F38=\"Beschermd\",\"Waar\",F39=\"Beschermd\",\"Waar\",F40=\"Beschermd\",\"Waar\",F41=\"Beschermd\",\"Waar\",F42=\"Beschermd\",\"Waar\",F43=\"Beschermd\",\"Waar\",F44=\"Beschermd\",\"Waar\",F45=\"Beschermd\",\"Waar\",F46=\"Beschermd\",\"Waar\",F47=\"Beschermd\",\"Waar\",F48=\"Beschermd\",\"Waar\",F49=\"Beschermd\",\"Waar\",F50=\"Beschermd\",\"Waar\")","v":{"$error":"#N/A"}}]
[]
["Muziekwerk","Componist / Tekstdichter","Arrangeur / Bewerker","Tijdsduur",null,"Beschermd of vrij"]
["Titel ","Voor- en achternaam","Voor- en achternaam"," In minuten",null,null,null,null,"Tijd Beschermd","Tijd onbeschermd"]
[null,null,null,null,null,null,null,null,{"$f":"IF($F11=\"Beschermd\",D11,0)","v":0},{"$f":"IF($F11=\"Vrij\",D11,0)","v":0}]
[null,null,null,null,null,null,null,null,{"$f":"IF($F12=\"Beschermd\",D12,0)","v":0},{"$f":"IF($F12=\"Vrij\",D12,0)","v":0}]
[null,null,null,null,null,null,null,null,0,0]
[null,null,null,null,null,null,null,null,0,0]
[null,null,null,null,null,null,null,null,0,0]
[null,null,null,null,null,null,null,null,0,0]
[null,null,null,null,null,null,null,null,0,0]
[null,null,null,null,null,null,null,null,0,0]
[null,null,null,null,null,null,null,null,0,0]
[null,null,null,null,null,null,null,null,0,0]
[null,null,null,null,null,null,null,null,0,0]
[null,null,null,null,null,null,null,null,0,0]
[null,null,null,null,null,null,null,null,0,0]
[null,null,null,null,null,null,null,null,0,0]
[null,null,null,null,null,null,null,null,0,0]
[null,null,null,null,null,null,null,null,0,0]
[null,null,null,null,null,null,null,null,0,0]
[null,null,null,null,null,null,null,null,0,0]
[null,null,null,null,null,null,null,null,0,0]
[null,null,null,null,null,null,null,null,0,0]
[null,null,null,null,null,null,null,null,0,0]
[null,null,null,null,null,null,null,null,0,0]
[null,null,null,null,null,null,null,null,0,0]
[null,null,null,null,null,null,null,null,0,0]
[null,null,null,null,null,null,null,null,0,0]
[null,null,null,null,null,null,null,null,0,0]
[null,null,null,null,null,null,null,null,0,0]
[null,null,null,null,null,null,null,null,0,0]
[null,null,null,null,null,null,null,null,0,0]
[null,null,null,null,null,null,null,null,0,0]
[null,null,null,null,null,null,null,null,0,0]
[null,null,null,null,null,null,null,null,0,0]
[null,null,null,null,null,null,null,null,0,0]
[null,null,null,null,null,null,null,null,0,0]
[null,null,null,null,null,null,null,null,0,0]
[null,null,null,null,null,null,null,null,0,0]
[null,null,null,null,null,null,null,null,0,0]
[null,null,null,null,null,null,null,null,0,0]
[null,null,null,null,null,null,null,null,0,0]
[null,null,null,null,null,null,null,null,0,0]
[null,null,null,null,null,{"$f":"COUNTIF(F11:F50,\"Beschermd\")","v":0},null,null,{"$f":"SUM(I11:I50)","v":0},{"$f":"SUM(J11:J50)","v":0}]

{"sheet":"Rep 14","index":16,"n_rows":51,"n_cols":11,"rows_kept":51,"cut":false,"hidden":false,"merged":[[6,0,6,3]]}
[]
["Naam uitvoerend artiest(en)","Datum optreden "]
[{"$f":"IF('Podia opgaven'!D20=\"\",\"\",'Podia opgaven'!D20)","v":""},{"$f":"IF('Podia opgaven'!C20,'Podia opgaven'!C20,\"\")","v":""}]
[]
[null,null,null,null,null,null,null,null,null,null,"Percentage"]
[null,null,null,null,null,null,null,null,{"$f":"I51+J51","v":0},{"$f":"I51/I6","v":{"$error":"#DIV/0!"}},{"$f":"IF(J6=0,0,IF(J6<0.34,3, IF(J6<0.67,5,7)))","v":{"$error":"#DIV/0!"}}]
["Gespeeld repertoire",null,null,null,null,{"$f":"_xlfn.IFS(F11=\"Beschermd\",\"Waar\",F12=\"Beschermd\",\"Waar\",F13=\"Beschermd\",\"Waar\",F14=\"Beschermd\",\"Waar\",F15=\"Beschermd\",\"Waar\",F16=\"Beschermd\",\"Waar\",F17=\"Beschermd\",\"Waar\",F18=\"Beschermd\",\"Waar\",F19=\"Beschermd\",\"Waar\",F20=\"Beschermd\",\"Waar\",F21=\"Beschermd\",\"Waar\",F22=\"Beschermd\",\"Waar\",F23=\"Beschermd\",\"Waar\",F24=\"Beschermd\",\"Waar\",F25=\"Beschermd\",\"Waar\",F26=\"Beschermd\",\"Waar\",F27=\"Beschermd\",\"Waar\",F28=\"Beschermd\",\"Waar\",F29=\"Beschermd\",\"Waar\",F30=\"Beschermd\",\"Waar\",F31=\"Beschermd\",\"Waar\",F32=\"Beschermd\",\"Waar\",F33=\"Beschermd\",\"Waar\",F34=\"Beschermd\",\"Waar\",F35=\"Beschermd\",\"Waar\",F36=\"Beschermd\",\"Waar\",F37=\"Beschermd\",\"Waar\",F38=\"Beschermd\",\"Waar\",F39=\"Beschermd\",\"Waar\",F40=\"Beschermd\",\"Waar\",F41=\"Beschermd\",\"Waar\",F42=\"Beschermd\",\"Waar\",F43=\"Beschermd\",\"Waar\",F44=\"Beschermd\",\"Waar\",F45=\"Beschermd\",\"Waar\",F46=\"Beschermd\",\"Waar\",F47=\"Beschermd\",\"Waar\",F48=\"Beschermd\",\"Waar\",F49=\"Beschermd\",\"Waar\",F50=\"Beschermd\",\"Waar\")","v":{"$error":"#N/A"}}]
[]
["Muziekwerk","Componist / Tekstdichter","Arrangeur / Bewerker","Tijdsduur",null,"Beschermd of vrij"]
["Titel ","Voor- en achternaam","Voor- en achternaam"," In minuten",null,null,null,null,"Tijd Beschermd","Tijd onbeschermd"]
[null,null,null,null,null,null,null,null,{"$f":"IF($F11=\"Beschermd\",D11,0)","v":0},{"$f":"IF($F11=\"Vrij\",D11,0)","v":0}]
[null,null,null,null,null,null,null,null,{"$f":"IF($F12=\"Beschermd\",D12,0)","v":0},{"$f":"IF($F12=\"Vrij\",D12,0)","v":0}]
[null,null,null,null,null,null,null,null,0,0]
[null,null,null,null,null,null,null,null,0,0]
[null,null,null,null,null,null,null,null,0,0]
[null,null,null,null,null,null,null,null,0,0]
[null,null,null,null,null,null,null,null,0,0]
[null,null,null,null,null,null,null,null,0,0]
[null,null,null,null,null,null,null,null,0,0]
[null,null,null,null,null,null,null,null,0,0]
[null,null,null,null,null,null,null,null,0,0]
[null,null,null,null,null,null,null,null,0,0]
[null,null,null,null,null,null,null,null,0,0]
[null,null,null,null,null,null,null,null,0,0]
[null,null,null,null,null,null,null,null,0,0]
[null,null,null,null,null,null,null,null,0,0]
[null,null,null,null,null,null,null,null,0,0]
[null,null,null,null,null,null,null,null,0,0]
[null,null,null,null,null,null,null,null,0,0]
[null,null,null,null,null,null,null,null,0,0]
[null,null,null,null,null,null,null,null,0,0]
[null,null,null,null,null,null,null,null,0,0]
[null,null,null,null,null,null,null,null,0,0]
[null,null,null,null,null,null,null,null,0,0]
[null,null,null,null,null,null,null,null,0,0]
[null,null,null,null,null,null,null,null,0,0]
[null,null,null,null,null,null,null,null,0,0]
[null,null,null,null,null,null,null,null,0,0]
[null,null,null,null,null,null,null,null,0,0]
[null,null,null,null,null,null,null,null,0,0]
[null,null,null,null,null,null,null,null,0,0]
[null,null,null,null,null,null,null,null,0,0]
[null,null,null,null,null,null,null,null,0,0]
[null,null,null,null,null,null,null,null,0,0]
[null,null,null,null,null,null,null,null,0,0]
[null,null,null,null,null,null,null,null,0,0]
[null,null,null,null,null,null,null,null,0,0]
[null,null,null,null,null,null,null,null,0,0]
[null,null,null,null,null,null,null,null,0,0]
[null,null,null,null,null,null,null,null,0,0]
[null,null,null,null,null,{"$f":"COUNTIF(F11:F50,\"Beschermd\")","v":0},null,null,{"$f":"SUM(I11:I50)","v":0},{"$f":"SUM(J11:J50)","v":0}]

{"sheet":"Rep 15","index":17,"n_rows":51,"n_cols":11,"rows_kept":51,"cut":false,"hidden":false,"merged":[[6,0,6,3]]}
[]
["Naam uitvoerend artiest(en)","Datum optreden "]
[{"$f":"IF('Podia opgaven'!D21=\"\",\"\",'Podia opgaven'!D21)","v":""},{"$f":"IF('Podia opgaven'!C21,'Podia opgaven'!C21,\"\")","v":""}]
[]
[null,null,null,null,null,null,null,null,null,null,"Percentage"]
[null,null,null,null,null,null,null,null,{"$f":"I51+J51","v":0},{"$f":"I51/I6","v":{"$error":"#DIV/0!"}},{"$f":"IF(J6=0,0,IF(J6<0.34,3, IF(J6<0.67,5,7)))","v":{"$error":"#DIV/0!"}}]
["Gespeeld repertoire",null,null,null,null,{"$f":"_xlfn.IFS(F11=\"Beschermd\",\"Waar\",F12=\"Beschermd\",\"Waar\",F13=\"Beschermd\",\"Waar\",F14=\"Beschermd\",\"Waar\",F15=\"Beschermd\",\"Waar\",F16=\"Beschermd\",\"Waar\",F17=\"Beschermd\",\"Waar\",F18=\"Beschermd\",\"Waar\",F19=\"Beschermd\",\"Waar\",F20=\"Beschermd\",\"Waar\",F21=\"Beschermd\",\"Waar\",F22=\"Beschermd\",\"Waar\",F23=\"Beschermd\",\"Waar\",F24=\"Beschermd\",\"Waar\",F25=\"Beschermd\",\"Waar\",F26=\"Beschermd\",\"Waar\",F27=\"Beschermd\",\"Waar\",F28=\"Beschermd\",\"Waar\",F29=\"Beschermd\",\"Waar\",F30=\"Beschermd\",\"Waar\",F31=\"Beschermd\",\"Waar\",F32=\"Beschermd\",\"Waar\",F33=\"Beschermd\",\"Waar\",F34=\"Beschermd\",\"Waar\",F35=\"Beschermd\",\"Waar\",F36=\"Beschermd\",\"Waar\",F37=\"Beschermd\",\"Waar\",F38=\"Beschermd\",\"Waar\",F39=\"Beschermd\",\"Waar\",F40=\"Beschermd\",\"Waar\",F41=\"Beschermd\",\"Waar\",F42=\"Beschermd\",\"Waar\",F43=\"Beschermd\",\"Waar\",F44=\"Beschermd\",\"Waar\",F45=\"Beschermd\",\"Waar\",F46=\"Beschermd\",\"Waar\",F47=\"Beschermd\",\"Waar\",F48=\"Beschermd\",\"Waar\",F49=\"Beschermd\",\"Waar\",F50=\"Beschermd\",\"Waar\")","v":{"$error":"#N/A"}}]
[]
["Muziekwerk","Componist / Tekstdichter","Arrangeur / Bewerker","Tijdsduur",null,"Beschermd of vrij"]
["Titel ","Voor- en achternaam","Voor- en achternaam"," In minuten",null,null,null,null,"Tijd Beschermd","Tijd onbeschermd"]
[null,null,null,null,null,null,null,null,{"$f":"IF($F11=\"Beschermd\",D11,0)","v":0},{"$f":"IF($F11=\"Vrij\",D11,0)","v":0}]
[null,null,null,null,null,null,null,null,{"$f":"IF($F12=\"Beschermd\",D12,0)","v":0},{"$f":"IF($F12=\"Vrij\",D12,0)","v":0}]
[null,null,null,null,null,null,null,null,0,0]
[null,null,null,null,null,null,null,null,0,0]
[null,null,null,null,null,null,null,null,0,0]
[null,null,null,null,null,null,null,null,0,0]
[null,null,null,null,null,null,null,null,0,0]
[null,null,null,null,null,null,null,null,0,0]
[null,null,null,null,null,null,null,null,0,0]
[null,null,null,null,null,null,null,null,0,0]
[null,null,null,null,null,null,null,null,0,0]
[null,null,null,null,null,null,null,null,0,0]
[null,null,null,null,null,null,null,null,0,0]
[null,null,null,null,null,null,null,null,0,0]
[null,null,null,null,null,null,null,null,0,0]
[null,null,null,null,null,null,null,null,0,0]
[null,null,null,null,null,null,null,null,0,0]
[null,null,null,null,null,null,null,null,0,0]
[null,null,null,null,null,null,null,null,0,0]
[null,null,null,null,null,null,null,null,0,0]
[null,null,null,null,null,null,null,null,0,0]
[null,null,null,null,null,null,null,null,0,0]
[null,null,null,null,null,null,null,null,0,0]
[null,null,null,null,null,null,null,null,0,0]
[null,null,null,null,null,null,null,null,0,0]
[null,null,null,null,null,null,null,null,0,0]
[null,null,null,null,null,null,null,null,0,0]
[null,null,null,null,null,null,null,null,0,0]
[null,null,null,null,null,null,null,null,0,0]
[null,null,null,null,null,null,null,null,0,0]
[null,null,null,null,null,null,null,null,0,0]
[null,null,null,null,null,null,null,null,0,0]
[null,null,null,null,null,null,null,null,0,0]
[null,null,null,null,null,null,null,null,0,0]
[null,null,null,null,null,null,null,null,0,0]
[null,null,null,null,null,null,null,null,0,0]
[null,null,null,null,null,null,null,null,0,0]
[null,null,null,null,null,null,null,null,0,0]
[null,null,null,null,null,null,null,null,0,0]
[null,null,null,null,null,null,null,null,0,0]
[null,null,null,null,null,{"$f":"COUNTIF(F11:F50,\"Beschermd\")","v":0},null,null,{"$f":"SUM(I11:I50)","v":0},{"$f":"SUM(J11:J50)","v":0}]

{"sheet":"Rep 16","index":18,"n_rows":51,"n_cols":11,"rows_kept":51,"cut":false,"hidden":false,"merged":[[6,0,6,3]]}
[]
["Naam uitvoerend artiest(en)","Datum optreden "]
[{"$f":"IF('Podia opgaven'!D22=\"\",\"\",'Podia opgaven'!D22)","v":""},{"$f":"IF('Podia opgaven'!C22,'Podia opgaven'!C22,\"\")","v":""}]
[]
[null,null,null,null,null,null,null,null,null,null,"Percentage"]
[null,null,null,null,null,null,null,null,{"$f":"I51+J51","v":0},{"$f":"I51/I6","v":{"$error":"#DIV/0!"}},{"$f":"IF(J6=0,0,IF(J6<0.34,3, IF(J6<0.67,5,7)))","v":{"$error":"#DIV/0!"}}]
["Gespeeld repertoire",null,null,null,null,{"$f":"_xlfn.IFS(F11=\"Beschermd\",\"Waar\",F12=\"Beschermd\",\"Waar\",F13=\"Beschermd\",\"Waar\",F14=\"Beschermd\",\"Waar\",F15=\"Beschermd\",\"Waar\",F16=\"Beschermd\",\"Waar\",F17=\"Beschermd\",\"Waar\",F18=\"Beschermd\",\"Waar\",F19=\"Beschermd\",\"Waar\",F20=\"Beschermd\",\"Waar\",F21=\"Beschermd\",\"Waar\",F22=\"Beschermd\",\"Waar\",F23=\"Beschermd\",\"Waar\",F24=\"Beschermd\",\"Waar\",F25=\"Beschermd\",\"Waar\",F26=\"Beschermd\",\"Waar\",F27=\"Beschermd\",\"Waar\",F28=\"Beschermd\",\"Waar\",F29=\"Beschermd\",\"Waar\",F30=\"Beschermd\",\"Waar\",F31=\"Beschermd\",\"Waar\",F32=\"Beschermd\",\"Waar\",F33=\"Beschermd\",\"Waar\",F34=\"Beschermd\",\"Waar\",F35=\"Beschermd\",\"Waar\",F36=\"Beschermd\",\"Waar\",F37=\"Beschermd\",\"Waar\",F38=\"Beschermd\",\"Waar\",F39=\"Beschermd\",\"Waar\",F40=\"Beschermd\",\"Waar\",F41=\"Beschermd\",\"Waar\",F42=\"Beschermd\",\"Waar\",F43=\"Beschermd\",\"Waar\",F44=\"Beschermd\",\"Waar\",F45=\"Beschermd\",\"Waar\",F46=\"Beschermd\",\"Waar\",F47=\"Beschermd\",\"Waar\",F48=\"Beschermd\",\"Waar\",F49=\"Beschermd\",\"Waar\",F50=\"Beschermd\",\"Waar\")","v":{"$error":"#N/A"}}]
[]
["Muziekwerk","Componist / Tekstdichter","Arrangeur / Bewerker","Tijdsduur",null,"Beschermd of vrij"]
["Titel ","Voor- en achternaam","Voor- en achternaam"," In minuten",null,null,null,null,"Tijd Beschermd","Tijd onbeschermd"]
[null,null,null,null,null,null,null,null,{"$f":"IF($F11=\"Beschermd\",D11,0)","v":0},{"$f":"IF($F11=\"Vrij\",D11,0)","v":0}]
[null,null,null,null,null,null,null,null,{"$f":"IF($F12=\"Beschermd\",D12,0)","v":0},{"$f":"IF($F12=\"Vrij\",D12,0)","v":0}]
[null,null,null,null,null,null,null,null,0,0]
[null,null,null,null,null,null,null,null,0,0]
[null,null,null,null,null,null,null,null,0,0]
[null,null,null,null,null,null,null,null,0,0]
[null,null,null,null,null,null,null,null,0,0]
[null,null,null,null,null,null,null,null,0,0]
[null,null,null,null,null,null,null,null,0,0]
[null,null,null,null,null,null,null,null,0,0]
[null,null,null,null,null,null,null,null,0,0]
[null,null,null,null,null,null,null,null,0,0]
[null,null,null,null,null,null,null,null,0,0]
[null,null,null,null,null,null,null,null,0,0]
[null,null,null,null,null,null,null,null,0,0]
[null,null,null,null,null,null,null,null,0,0]
[null,null,null,null,null,null,null,null,0,0]
[null,null,null,null,null,null,null,null,0,0]
[null,null,null,null,null,null,null,null,0,0]
[null,null,null,null,null,null,null,null,0,0]
[null,null,null,null,null,null,null,null,0,0]
[null,null,null,null,null,null,null,null,0,0]
[null,null,null,null,null,null,null,null,0,0]
[null,null,null,null,null,null,null,null,0,0]
[null,null,null,null,null,null,null,null,0,0]
[null,null,null,null,null,null,null,null,0,0]
[null,null,null,null,null,null,null,null,0,0]
[null,null,null,null,null,null,null,null,0,0]
[null,null,null,null,null,null,null,null,0,0]
[null,null,null,null,null,null,null,null,0,0]
[null,null,null,null,null,null,null,null,0,0]
[null,null,null,null,null,null,null,null,0,0]
[null,null,null,null,null,null,null,null,0,0]
[null,null,null,null,null,null,null,null,0,0]
[null,null,null,null,null,null,null,null,0,0]
[null,null,null,null,null,null,null,null,0,0]
[null,null,null,null,null,null,null,null,0,0]
[null,null,null,null,null,null,null,null,0,0]
[null,null,null,null,null,null,null,null,0,0]
[null,null,null,null,null,null,null,null,0,0]
[null,null,null,null,null,{"$f":"COUNTIF(F11:F50,\"Beschermd\")","v":0},null,null,{"$f":"SUM(I11:I50)","v":0},{"$f":"SUM(J11:J50)","v":0}]

{"sheet":"Rep 17","index":19,"n_rows":51,"n_cols":11,"rows_kept":51,"cut":false,"hidden":false,"merged":[[6,0,6,3]]}
[]
["Naam uitvoerend artiest(en)","Datum optreden "]
[{"$f":"IF('Podia opgaven'!D23=\"\",\"\",'Podia opgaven'!D23)","v":""},{"$f":"IF('Podia opgaven'!C23,'Podia opgaven'!C23,\"\")","v":""}]
[]
[null,null,null,null,null,null,null,null,null,null,"Percentage"]
[null,null,null,null,null,null,null,null,{"$f":"I51+J51","v":0},{"$f":"I51/I6","v":{"$error":"#DIV/0!"}},{"$f":"IF(J6=0,0,IF(J6<0.34,3, IF(J6<0.67,5,7)))","v":{"$error":"#DIV/0!"}}]
["Gespeeld repertoire",null,null,null,null,{"$f":"_xlfn.IFS(F11=\"Beschermd\",\"Waar\",F12=\"Beschermd\",\"Waar\",F13=\"Beschermd\",\"Waar\",F14=\"Beschermd\",\"Waar\",F15=\"Beschermd\",\"Waar\",F16=\"Beschermd\",\"Waar\",F17=\"Beschermd\",\"Waar\",F18=\"Beschermd\",\"Waar\",F19=\"Beschermd\",\"Waar\",F20=\"Beschermd\",\"Waar\",F21=\"Beschermd\",\"Waar\",F22=\"Beschermd\",\"Waar\",F23=\"Beschermd\",\"Waar\",F24=\"Beschermd\",\"Waar\",F25=\"Beschermd\",\"Waar\",F26=\"Beschermd\",\"Waar\",F27=\"Beschermd\",\"Waar\",F28=\"Beschermd\",\"Waar\",F29=\"Beschermd\",\"Waar\",F30=\"Beschermd\",\"Waar\",F31=\"Beschermd\",\"Waar\",F32=\"Beschermd\",\"Waar\",F33=\"Beschermd\",\"Waar\",F34=\"Beschermd\",\"Waar\",F35=\"Beschermd\",\"Waar\",F36=\"Beschermd\",\"Waar\",F37=\"Beschermd\",\"Waar\",F38=\"Beschermd\",\"Waar\",F39=\"Beschermd\",\"Waar\",F40=\"Beschermd\",\"Waar\",F41=\"Beschermd\",\"Waar\",F42=\"Beschermd\",\"Waar\",F43=\"Beschermd\",\"Waar\",F44=\"Beschermd\",\"Waar\",F45=\"Beschermd\",\"Waar\",F46=\"Beschermd\",\"Waar\",F47=\"Beschermd\",\"Waar\",F48=\"Beschermd\",\"Waar\",F49=\"Beschermd\",\"Waar\",F50=\"Beschermd\",\"Waar\")","v":{"$error":"#N/A"}}]
[]
["Muziekwerk","Componist / Tekstdichter","Arrangeur / Bewerker","Tijdsduur",null,"Beschermd of vrij"]
["Titel ","Voor- en achternaam","Voor- en achternaam"," In minuten",null,null,null,null,"Tijd Beschermd","Tijd onbeschermd"]
[null,null,null,null,null,null,null,null,{"$f":"IF($F11=\"Beschermd\",D11,0)","v":0},{"$f":"IF($F11=\"Vrij\",D11,0)","v":0}]
[null,null,null,null,null,null,null,null,{"$f":"IF($F12=\"Beschermd\",D12,0)","v":0},{"$f":"IF($F12=\"Vrij\",D12,0)","v":0}]
[null,null,null,null,null,null,null,null,0,0]
[null,null,null,null,null,null,null,null,0,0]
[null,null,null,null,null,null,null,null,0,0]
[null,null,null,null,null,null,null,null,0,0]
[null,null,null,null,null,null,null,null,0,0]
[null,null,null,null,null,null,null,null,0,0]
[null,null,null,null,null,null,null,null,0,0]
[null,null,null,null,null,null,null,null,0,0]
[null,null,null,null,null,null,null,null,0,0]
[null,null,null,null,null,null,null,null,0,0]
[null,null,null,null,null,null,null,null,0,0]
[null,null,null,null,null,null,null,null,0,0]
[null,null,null,null,null,null,null,null,0,0]
[null,null,null,null,null,null,null,null,0,0]
[null,null,null,null,null,null,null,null,0,0]
[null,null,null,null,null,null,null,null,0,0]
[null,null,null,null,null,null,null,null,0,0]
[null,null,null,null,null,null,null,null,0,0]
[null,null,null,null,null,null,null,null,0,0]
[null,null,null,null,null,null,null,null,0,0]
[null,null,null,null,null,null,null,null,0,0]
[null,null,null,null,null,null,null,null,0,0]
[null,null,null,null,null,null,null,null,0,0]
[null,null,null,null,null,null,null,null,0,0]
[null,null,null,null,null,null,null,null,0,0]
[null,null,null,null,null,null,null,null,0,0]
[null,null,null,null,null,null,null,null,0,0]
[null,null,null,null,null,null,null,null,0,0]
[null,null,null,null,null,null,null,null,0,0]
[null,null,null,null,null,null,null,null,0,0]
[null,null,null,null,null,null,null,null,0,0]
[null,null,null,null,null,null,null,null,0,0]
[null,null,null,null,null,null,null,null,0,0]
[null,null,null,null,null,null,null,null,0,0]
[null,null,null,null,null,null,null,null,0,0]
[null,null,null,null,null,null,null,null,0,0]
[null,null,null,null,null,null,null,null,0,0]
[null,null,null,null,null,null,null,null,0,0]
[null,null,null,null,null,{"$f":"COUNTIF(F11:F50,\"Beschermd\")","v":0},null,null,{"$f":"SUM(I11:I50)","v":0},{"$f":"SUM(J11:J50)","v":0}]

{"sheet":"Rep 18","index":20,"n_rows":51,"n_cols":11,"rows_kept":51,"cut":false,"hidden":false,"merged":[[6,0,6,3]]}
[]
["Naam uitvoerend artiest(en)","Datum optreden "]
[{"$f":"IF('Podia opgaven'!D24=\"\",\"\",'Podia opgaven'!D24)","v":""},{"$f":"IF('Podia opgaven'!C24,'Podia opgaven'!C24,\"\")","v":""}]
[]
[null,null,null,null,null,null,null,null,null,null,"Percentage"]
[null,null,null,null,null,null,null,null,{"$f":"I51+J51","v":0},{"$f":"I51/I6","v":{"$error":"#DIV/0!"}},{"$f":"IF(J6=0,0,IF(J6<0.34,3, IF(J6<0.67,5,7)))","v":{"$error":"#DIV/0!"}}]
["Gespeeld repertoire",null,null,null,null,{"$f":"_xlfn.IFS(F11=\"Beschermd\",\"Waar\",F12=\"Beschermd\",\"Waar\",F13=\"Beschermd\",\"Waar\",F14=\"Beschermd\",\"Waar\",F15=\"Beschermd\",\"Waar\",F16=\"Beschermd\",\"Waar\",F17=\"Beschermd\",\"Waar\",F18=\"Beschermd\",\"Waar\",F19=\"Beschermd\",\"Waar\",F20=\"Beschermd\",\"Waar\",F21=\"Beschermd\",\"Waar\",F22=\"Beschermd\",\"Waar\",F23=\"Beschermd\",\"Waar\",F24=\"Beschermd\",\"Waar\",F25=\"Beschermd\",\"Waar\",F26=\"Beschermd\",\"Waar\",F27=\"Beschermd\",\"Waar\",F28=\"Beschermd\",\"Waar\",F29=\"Beschermd\",\"Waar\",F30=\"Beschermd\",\"Waar\",F31=\"Beschermd\",\"Waar\",F32=\"Beschermd\",\"Waar\",F33=\"Beschermd\",\"Waar\",F34=\"Beschermd\",\"Waar\",F35=\"Beschermd\",\"Waar\",F36=\"Beschermd\",\"Waar\",F37=\"Beschermd\",\"Waar\",F38=\"Beschermd\",\"Waar\",F39=\"Beschermd\",\"Waar\",F40=\"Beschermd\",\"Waar\",F41=\"Beschermd\",\"Waar\",F42=\"Beschermd\",\"Waar\",F43=\"Beschermd\",\"Waar\",F44=\"Beschermd\",\"Waar\",F45=\"Beschermd\",\"Waar\",F46=\"Beschermd\",\"Waar\",F47=\"Beschermd\",\"Waar\",F48=\"Beschermd\",\"Waar\",F49=\"Beschermd\",\"Waar\",F50=\"Beschermd\",\"Waar\")","v":{"$error":"#N/A"}}]
[]
["Muziekwerk","Componist / Tekstdichter","Arrangeur / Bewerker","Tijdsduur",null,"Beschermd of vrij"]
["Titel ","Voor- en achternaam","Voor- en achternaam"," In minuten",null,null,null,null,"Tijd Beschermd","Tijd onbeschermd"]
[null,null,null,null,null,null,null,null,{"$f":"IF($F11=\"Beschermd\",D11,0)","v":0},{"$f":"IF($F11=\"Vrij\",D11,0)","v":0}]
[null,null,null,null,null,null,null,null,{"$f":"IF($F12=\"Beschermd\",D12,0)","v":0},{"$f":"IF($F12=\"Vrij\",D12,0)","v":0}]
[null,null,null,null,null,null,null,null,0,0]
[null,null,null,null,null,null,null,null,0,0]
[null,null,null,null,null,null,null,null,0,0]
[null,null,null,null,null,null,null,null,0,0]
[null,null,null,null,null,null,null,null,0,0]
[null,null,null,null,null,null,null,null,0,0]
[null,null,null,null,null,null,null,null,0,0]
[null,null,null,null,null,null,null,null,0,0]
[null,null,null,null,null,null,null,null,0,0]
[null,null,null,null,null,null,null,null,0,0]
[null,null,null,null,null,null,null,null,0,0]
[null,null,null,null,null,null,null,null,0,0]
[null,null,null,null,null,null,null,null,0,0]
[null,null,null,null,null,null,null,null,0,0]
[null,null,null,null,null,null,null,null,0,0]
[null,null,null,null,null,null,null,null,0,0]
[null,null,null,null,null,null,null,null,0,0]
[null,null,null,null,null,null,null,null,0,0]
[null,null,null,null,null,null,null,null,0,0]
[null,null,null,null,null,null,null,null,0,0]
[null,null,null,null,null,null,null,null,0,0]
[null,null,null,null,null,null,null,null,0,0]
[null,null,null,null,null,null,null,null,0,0]
[null,null,null,null,null,null,null,null,0,0]
[null,null,null,null,null,null,null,null,0,0]
[null,null,null,null,null,null,null,null,0,0]
[null,null,null,null,null,null,null,null,0,0]
[null,null,null,null,null,null,null,null,0,0]
[null,null,null,null,null,null,null,null,0,0]
[null,null,null,null,null,null,null,null,0,0]
[null,null,null,null,null,null,null,null,0,0]
[null,null,null,null,null,null,null,null,0,0]
[null,null,null,null,null,null,null,null,0,0]
[null,null,null,null,null,null,null,null,0,0]
[null,null,null,null,null,null,null,null,0,0]
[null,null,null,null,null,null,null,null,0,0]
[null,null,null,null,null,null,null,null,0,0]
[null,null,null,null,null,null,null,null,0,0]
[null,null,null,null,null,{"$f":"COUNTIF(F11:F50,\"Beschermd\")","v":0},null,null,{"$f":"SUM(I11:I50)","v":0},{"$f":"SUM(J11:J50)","v":0}]

{"sheet":"Rep 19","index":21,"n_rows":51,"n_cols":11,"rows_kept":51,"cut":false,"hidden":false,"merged":[[6,0,6,3]]}
[]
["Naam uitvoerend artiest(en)","Datum optreden "]
[{"$f":"IF('Podia opgaven'!D25=\"\",\"\",'Podia opgaven'!D25)","v":""},{"$f":"IF('Podia opgaven'!C25,'Podia opgaven'!C25,\"\")","v":""}]
[]
[null,null,null,null,null,null,null,null,null,null,"Percentage"]
[null,null,null,null,null,null,null,null,{"$f":"I51+J51","v":0},{"$f":"I51/I6","v":{"$error":"#DIV/0!"}},{"$f":"IF(J6=0,0,IF(J6<0.34,3, IF(J6<0.67,5,7)))","v":{"$error":"#DIV/0!"}}]
["Gespeeld repertoire",null,null,null,null,{"$f":"_xlfn.IFS(F11=\"Beschermd\",\"Waar\",F12=\"Beschermd\",\"Waar\",F13=\"Beschermd\",\"Waar\",F14=\"Beschermd\",\"Waar\",F15=\"Beschermd\",\"Waar\",F16=\"Beschermd\",\"Waar\",F17=\"Beschermd\",\"Waar\",F18=\"Beschermd\",\"Waar\",F19=\"Beschermd\",\"Waar\",F20=\"Beschermd\",\"Waar\",F21=\"Beschermd\",\"Waar\",F22=\"Beschermd\",\"Waar\",F23=\"Beschermd\",\"Waar\",F24=\"Beschermd\",\"Waar\",F25=\"Beschermd\",\"Waar\",F26=\"Beschermd\",\"Waar\",F27=\"Beschermd\",\"Waar\",F28=\"Beschermd\",\"Waar\",F29=\"Beschermd\",\"Waar\",F30=\"Beschermd\",\"Waar\",F31=\"Beschermd\",\"Waar\",F32=\"Beschermd\",\"Waar\",F33=\"Beschermd\",\"Waar\",F34=\"Beschermd\",\"Waar\",F35=\"Beschermd\",\"Waar\",F36=\"Beschermd\",\"Waar\",F37=\"Beschermd\",\"Waar\",F38=\"Beschermd\",\"Waar\",F39=\"Beschermd\",\"Waar\",F40=\"Beschermd\",\"Waar\",F41=\"Beschermd\",\"Waar\",F42=\"Beschermd\",\"Waar\",F43=\"Beschermd\",\"Waar\",F44=\"Beschermd\",\"Waar\",F45=\"Beschermd\",\"Waar\",F46=\"Beschermd\",\"Waar\",F47=\"Beschermd\",\"Waar\",F48=\"Beschermd\",\"Waar\",F49=\"Beschermd\",\"Waar\",F50=\"Beschermd\",\"Waar\")","v":{"$error":"#N/A"}}]
[]
["Muziekwerk","Componist / Tekstdichter","Arrangeur / Bewerker","Tijdsduur",null,"Beschermd of vrij"]
["Titel ","Voor- en achternaam","Voor- en achternaam"," In minuten",null,null,null,null,"Tijd Beschermd","Tijd onbeschermd"]
[null,null,null,null,null,null,null,null,{"$f":"IF($F11=\"Beschermd\",D11,0)","v":0},{"$f":"IF($F11=\"Vrij\",D11,0)","v":0}]
[null,null,null,null,null,null,null,null,{"$f":"IF($F12=\"Beschermd\",D12,0)","v":0},{"$f":"IF($F12=\"Vrij\",D12,0)","v":0}]
[null,null,null,null,null,null,null,null,0,0]
[null,null,null,null,null,null,null,null,0,0]
[null,null,null,null,null,null,null,null,0,0]
[null,null,null,null,null,null,null,null,0,0]
[null,null,null,null,null,null,null,null,0,0]
[null,null,null,null,null,null,null,null,0,0]
[null,null,null,null,null,null,null,null,0,0]
[null,null,null,null,null,null,null,null,0,0]
[null,null,null,null,null,null,null,null,0,0]
[null,null,null,null,null,null,null,null,0,0]
[null,null,null,null,null,null,null,null,0,0]
[null,null,null,null,null,null,null,null,0,0]
[null,null,null,null,null,null,null,null,0,0]
[null,null,null,null,null,null,null,null,0,0]
[null,null,null,null,null,null,null,null,0,0]
[null,null,null,null,null,null,null,null,0,0]
[null,null,null,null,null,null,null,null,0,0]
[null,null,null,null,null,null,null,null,0,0]
[null,null,null,null,null,null,null,null,0,0]
[null,null,null,null,null,null,null,null,0,0]
[null,null,null,null,null,null,null,null,0,0]
[null,null,null,null,null,null,null,null,0,0]
[null,null,null,null,null,null,null,null,0,0]
[null,null,null,null,null,null,null,null,0,0]
[null,null,null,null,null,null,null,null,0,0]
[null,null,null,null,null,null,null,null,0,0]
[null,null,null,null,null,null,null,null,0,0]
[null,null,null,null,null,null,null,null,0,0]
[null,null,null,null,null,null,null,null,0,0]
[null,null,null,null,null,null,null,null,0,0]
[null,null,null,null,null,null,null,null,0,0]
[null,null,null,null,null,null,null,null,0,0]
[null,null,null,null,null,null,null,null,0,0]
[null,null,null,null,null,null,null,null,0,0]
[null,null,null,null,null,null,null,null,0,0]
[null,null,null,null,null,null,null,null,0,0]
[null,null,null,null,null,null,null,null,0,0]
[null,null,null,null,null,null,null,null,0,0]
[null,null,null,null,null,{"$f":"COUNTIF(F11:F50,\"Beschermd\")","v":0},null,null,{"$f":"SUM(I11:I50)","v":0},{"$f":"SUM(J11:J50)","v":0}]

{"sheet":"Rep 20","index":22,"n_rows":51,"n_cols":11,"rows_kept":51,"cut":false,"hidden":false,"merged":[[6,0,6,3]]}
[]
["Naam uitvoerend artiest(en)","Datum optreden "]
[{"$f":"IF('Podia opgaven'!D26=\"\",\"\",'Podia opgaven'!D26)","v":""},{"$f":"IF('Podia opgaven'!C26,'Podia opgaven'!C26,\"\")","v":""}]
[]
[null,null,null,null,null,null,null,null,null,null,"Percentage"]
[null,null,null,null,null,null,null,null,{"$f":"I51+J51","v":0},{"$f":"I51/I6","v":{"$error":"#DIV/0!"}},{"$f":"IF(J6=0,0,IF(J6<0.34,3, IF(J6<0.67,5,7)))","v":{"$error":"#DIV/0!"}}]
["Gespeeld repertoire",null,null,null,null,{"$f":"_xlfn.IFS(F11=\"Beschermd\",\"Waar\",F12=\"Beschermd\",\"Waar\",F13=\"Beschermd\",\"Waar\",F14=\"Beschermd\",\"Waar\",F15=\"Beschermd\",\"Waar\",F16=\"Beschermd\",\"Waar\",F17=\"Beschermd\",\"Waar\",F18=\"Beschermd\",\"Waar\",F19=\"Beschermd\",\"Waar\",F20=\"Beschermd\",\"Waar\",F21=\"Beschermd\",\"Waar\",F22=\"Beschermd\",\"Waar\",F23=\"Beschermd\",\"Waar\",F24=\"Beschermd\",\"Waar\",F25=\"Beschermd\",\"Waar\",F26=\"Beschermd\",\"Waar\",F27=\"Beschermd\",\"Waar\",F28=\"Beschermd\",\"Waar\",F29=\"Beschermd\",\"Waar\",F30=\"Beschermd\",\"Waar\",F31=\"Beschermd\",\"Waar\",F32=\"Beschermd\",\"Waar\",F33=\"Beschermd\",\"Waar\",F34=\"Beschermd\",\"Waar\",F35=\"Beschermd\",\"Waar\",F36=\"Beschermd\",\"Waar\",F37=\"Beschermd\",\"Waar\",F38=\"Beschermd\",\"Waar\",F39=\"Beschermd\",\"Waar\",F40=\"Beschermd\",\"Waar\",F41=\"Beschermd\",\"Waar\",F42=\"Beschermd\",\"Waar\",F43=\"Beschermd\",\"Waar\",F44=\"Beschermd\",\"Waar\",F45=\"Beschermd\",\"Waar\",F46=\"Beschermd\",\"Waar\",F47=\"Beschermd\",\"Waar\",F48=\"Beschermd\",\"Waar\",F49=\"Beschermd\",\"Waar\",F50=\"Beschermd\",\"Waar\")","v":{"$error":"#N/A"}}]
[]
["Muziekwerk","Componist / Tekstdichter","Arrangeur / Bewerker","Tijdsduur",null,"Beschermd of vrij"]
["Titel ","Voor- en achternaam","Voor- en achternaam"," In minuten",null,null,null,null,"Tijd Beschermd","Tijd onbeschermd"]
[null,null,null,null,null,null,null,null,{"$f":"IF($F11=\"Beschermd\",D11,0)","v":0},{"$f":"IF($F11=\"Vrij\",D11,0)","v":0}]
[null,null,null,null,null,null,null,null,{"$f":"IF($F12=\"Beschermd\",D12,0)","v":0},{"$f":"IF($F12=\"Vrij\",D12,0)","v":0}]
[null,null,null,null,null,null,null,null,0,0]
[null,null,null,null,null,null,null,null,0,0]
[null,null,null,null,null,null,null,null,0,0]
[null,null,null,null,null,null,null,null,0,0]
[null,null,null,null,null,null,null,null,0,0]
[null,null,null,null,null,null,null,null,0,0]
[null,null,null,null,null,null,null,null,0,0]
[null,null,null,null,null,null,null,null,0,0]
[null,null,null,null,null,null,null,null,0,0]
[null,null,null,null,null,null,null,null,0,0]
[null,null,null,null,null,null,null,null,0,0]
[null,null,null,null,null,null,null,null,0,0]
[null,null,null,null,null,null,null,null,0,0]
[null,null,null,null,null,null,null,null,0,0]
[null,null,null,null,null,null,null,null,0,0]
[null,null,null,null,null,null,null,null,0,0]
[null,null,null,null,null,null,null,null,0,0]
[null,null,null,null,null,null,null,null,0,0]
[null,null,null,null,null,null,null,null,0,0]
[null,null,null,null,null,null,null,null,0,0]
[null,null,null,null,null,null,null,null,0,0]
[null,null,null,null,null,null,null,null,0,0]
[null,null,null,null,null,null,null,null,0,0]
[null,null,null,null,null,null,null,null,0,0]
[null,null,null,null,null,null,null,null,0,0]
[null,null,null,null,null,null,null,null,0,0]
[null,null,null,null,null,null,null,null,0,0]
[null,null,null,null,null,null,null,null,0,0]
[null,null,null,null,null,null,null,null,0,0]
[null,null,null,null,null,null,null,null,0,0]
[null,null,null,null,null,null,null,null,0,0]
[null,null,null,null,null,null,null,null,0,0]
[null,null,null,null,null,null,null,null,0,0]
[null,null,null,null,null,null,null,null,0,0]
[null,null,null,null,null,null,null,null,0,0]
[null,null,null,null,null,null,null,null,0,0]
[null,null,null,null,null,null,null,null,0,0]
[null,null,null,null,null,null,null,null,0,0]
[null,null,null,null,null,{"$f":"COUNTIF(F11:F50,\"Beschermd\")","v":0},null,null,{"$f":"SUM(I11:I50)","v":0},{"$f":"SUM(J11:J50)","v":0}]